Body_Code,Body_Name,GL Code,GL Code Desc,Posting Date,Doc Number,Doc Net Amount,Supplier Name
http://statistics.data.gov.uk/id/local-authority/38,Oxfordshire County Council,5686,,13/02/2019,3110506801,"-119,377.20",MacIntyre Academies
http://statistics.data.gov.uk/id/local-authority/38,Oxfordshire County Council,5688,,13/02/2019,3110506090,"-54,396.34",H F TRUST LTD
http://statistics.data.gov.uk/id/local-authority/38,Oxfordshire County Council,5500,Payments to Other Local Authorities,28/02/2019,2200608556,"-51,700.00",LONDON BOROUGH OF CAMDEN
http://statistics.data.gov.uk/id/local-authority/38,Oxfordshire County Council,5688,,13/02/2019,3110506092,"-45,816.68",H F TRUST LTD
http://statistics.data.gov.uk/id/local-authority/38,Oxfordshire County Council,5687,,13/02/2019,3110508738,"-42,093.71",Tall Trees
http://statistics.data.gov.uk/id/local-authority/38,Oxfordshire County Council,5685,B*Cycle tracks,13/02/2019,3110506730,"-39,019.02",Coxwell Hall & Mews Nursing Home
http://statistics.data.gov.uk/id/local-authority/38,Oxfordshire County Council,8103,Payments to sub contractor,27/02/2019,2200608426,"-36,037.36",Oxford City Council
http://statistics.data.gov.uk/id/local-authority/38,Oxfordshire County Council,5686,,13/02/2019,3110507934,"-33,536.55",Orders of St John
http://statistics.data.gov.uk/id/local-authority/38,Oxfordshire County Council,5681,,13/02/2019,3110506802,"-21,892.00",MacIntyre Academies
http://statistics.data.gov.uk/id/local-authority/38,Oxfordshire County Council,5687,,13/02/2019,3110506357,"-21,792.85",Chacombe Park Care Home
http://statistics.data.gov.uk/id/local-authority/38,Oxfordshire County Council,5681,,13/02/2019,3110506805,"-21,612.88",MacIntyre Academies
http://statistics.data.gov.uk/id/local-authority/38,Oxfordshire County Council,5526,Payments to Private Contractors,27/02/2019,2200608428,"-20,794.69",Oxford City Council
http://statistics.data.gov.uk/id/local-authority/38,Oxfordshire County Council,5687,,13/02/2019,3110507720,"-18,538.65",Orders of St John
http://statistics.data.gov.uk/id/local-authority/38,Oxfordshire County Council,5687,,13/02/2019,3110507901,"-17,914.28",Meadow View Nursing Home
http://statistics.data.gov.uk/id/local-authority/38,Oxfordshire County Council,5687,,13/02/2019,3110505069,"-16,800.01",Freeland House
http://statistics.data.gov.uk/id/local-authority/38,Oxfordshire County Council,5686,,13/02/2019,3110505336,"-16,621.41",ST ANNES RESIDENTIAL  HOME
http://statistics.data.gov.uk/id/local-authority/38,Oxfordshire County Council,5558,,04/02/2019,2200599033,"-16,368.00",Hillcrest Care Services Ltd
http://statistics.data.gov.uk/id/local-authority/38,Oxfordshire County Council,5558,,04/02/2019,2200598998,"-15,597.43",Hillcrest Care Services Ltd
http://statistics.data.gov.uk/id/local-authority/38,Oxfordshire County Council,5558,,04/02/2019,2200599004,"-15,597.43",Hillcrest Care Services Ltd
http://statistics.data.gov.uk/id/local-authority/38,Oxfordshire County Council,5558,,11/02/2019,2200602149,"-15,597.43",Hillcrest Care Services Ltd
http://statistics.data.gov.uk/id/local-authority/38,Oxfordshire County Council,5686,,13/02/2019,3110506871,"-15,534.99",Ferendune Court (Anchor Trust)
http://statistics.data.gov.uk/id/local-authority/38,Oxfordshire County Council,5558,,06/02/2019,2200600174,"-15,094.29",Hillcrest Care Services Ltd
http://statistics.data.gov.uk/id/local-authority/38,Oxfordshire County Council,5558,,06/02/2019,2200600288,"-15,094.29",Hillcrest Care Services Ltd
http://statistics.data.gov.uk/id/local-authority/38,Oxfordshire County Council,5537,Payments to Other Establishments,26/02/2019,2200607109,"-14,320.00",Carfax College
http://statistics.data.gov.uk/id/local-authority/38,Oxfordshire County Council,5558,,04/02/2019,2200598991,"-14,100.00",Hillcrest Care Services Ltd
http://statistics.data.gov.uk/id/local-authority/38,Oxfordshire County Council,5686,,13/02/2019,3110508654,"-13,540.90",St Johns Residential Home
http://statistics.data.gov.uk/id/local-authority/38,Oxfordshire County Council,5558,,06/02/2019,2200600164,"-13,461.43",Hillcrest Care Services Ltd
http://statistics.data.gov.uk/id/local-authority/38,Oxfordshire County Council,5687,,13/02/2019,3110508983,"-12,960.01",The Langston
http://statistics.data.gov.uk/id/local-authority/38,Oxfordshire County Council,5687,,13/02/2019,3110505061,"-12,000.01",Freeland House
http://statistics.data.gov.uk/id/local-authority/38,Oxfordshire County Council,5687,,13/02/2019,3110508910,"-11,807.14",Four Seasons (Headington) Ltd
http://statistics.data.gov.uk/id/local-authority/38,Oxfordshire County Council,5688,,13/02/2019,3110506240,"-11,486.36",MacIntyre Care (Womaston)
http://statistics.data.gov.uk/id/local-authority/38,Oxfordshire County Council,5558,,04/02/2019,2200599018,"-11,314.29",Hillcrest Care Services Ltd
http://statistics.data.gov.uk/id/local-authority/38,Oxfordshire County Council,5687,,13/02/2019,3110507399,"-10,359.20",The Julie Richardson Nursing Home
http://statistics.data.gov.uk/id/local-authority/38,Oxfordshire County Council,5681,,13/02/2019,3110506828,"-10,098.57",Enstone House
http://statistics.data.gov.uk/id/local-authority/38,Oxfordshire County Council,5039,ITC Services,11/02/2019,2200602077,"-9,625.00",CIVICA SERVICES LTD
http://statistics.data.gov.uk/id/local-authority/38,Oxfordshire County Council,5686,,13/02/2019,3110508375,"-9,122.08",PURLEY PARK TRUST LTD
http://statistics.data.gov.uk/id/local-authority/38,Oxfordshire County Council,5687,,13/02/2019,3110505205,"-8,277.43",Huntercombe Hall Ltd
http://statistics.data.gov.uk/id/local-authority/38,Oxfordshire County Council,5687,,13/02/2019,3110504653,"-8,015.00",Banbury Heights Nursing Home
http://statistics.data.gov.uk/id/local-authority/38,Oxfordshire County Council,5537,Payments to Other Establishments,20/02/2019,3110512737,"-8,000.00",Oxford's British Orchard Nursery
http://statistics.data.gov.uk/id/local-authority/38,Oxfordshire County Council,5686,,13/02/2019,3110506847,"-7,971.43",Featherton House
http://statistics.data.gov.uk/id/local-authority/38,Oxfordshire County Council,5686,,13/02/2019,3110508250,"-7,407.15",Orders of St John
http://statistics.data.gov.uk/id/local-authority/38,Oxfordshire County Council,5692,,13/02/2019,3110509020,"-7,290.39",The Old Prebendal House
http://statistics.data.gov.uk/id/local-authority/38,Oxfordshire County Council,5692,,13/02/2019,3110509014,"-7,201.79",The Old Prebendal House
http://statistics.data.gov.uk/id/local-authority/38,Oxfordshire County Council,5686,,13/02/2019,3110508060,"-7,197.28",Orders of St John
http://statistics.data.gov.uk/id/local-authority/38,Oxfordshire County Council,5687,,13/02/2019,3110506702,"-7,042.86",Coxwell Hall & Mews Nursing Home
http://statistics.data.gov.uk/id/local-authority/38,Oxfordshire County Council,5685,B*Cycle tracks,13/02/2019,3110507638,"-6,962.49",Lashbrook House Care Home
http://statistics.data.gov.uk/id/local-authority/38,Oxfordshire County Council,5692,,13/02/2019,3110509011,"-6,958.14",The Old Prebendal House
http://statistics.data.gov.uk/id/local-authority/38,Oxfordshire County Council,5692,,13/02/2019,3110508297,"-6,913.84",Orders of St John
http://statistics.data.gov.uk/id/local-authority/38,Oxfordshire County Council,5687,,13/02/2019,3110508261,"-6,775.62",Oxford Beaumont
http://statistics.data.gov.uk/id/local-authority/38,Oxfordshire County Council,5687,,13/02/2019,3110508613,"-6,428.57",Stowford House
http://statistics.data.gov.uk/id/local-authority/38,Oxfordshire County Council,5688,,13/02/2019,3110505575,"-6,348.49",AFFINITY TRUST
http://statistics.data.gov.uk/id/local-authority/38,Oxfordshire County Council,5686,,13/02/2019,3110507576,"-6,326.57",Orders of St John
http://statistics.data.gov.uk/id/local-authority/38,Oxfordshire County Council,5685,B*Cycle tracks,13/02/2019,3110508871,"-6,192.76",The Grange Care Centre
http://statistics.data.gov.uk/id/local-authority/38,Oxfordshire County Council,5692,,13/02/2019,3110506947,"-6,168.23",Godswell Park
http://statistics.data.gov.uk/id/local-authority/38,Oxfordshire County Council,3200,Staff Advertising - General,26/02/2019,2200607608,"-6,000.00",HCL Social Care Ltd
http://statistics.data.gov.uk/id/local-authority/38,Oxfordshire County Council,5687,,13/02/2019,3110504665,"-5,950.00",Banbury Heights Nursing Home
http://statistics.data.gov.uk/id/local-authority/38,Oxfordshire County Council,5681,,13/02/2019,3110506804,"-5,816.60",MacIntyre Academies
http://statistics.data.gov.uk/id/local-authority/38,Oxfordshire County Council,5686,,13/02/2019,3110508338,"-5,559.71",Orders of St John
http://statistics.data.gov.uk/id/local-authority/38,Oxfordshire County Council,5687,,13/02/2019,3110504744,"-5,464.28",Banbury Heights Nursing Home
http://statistics.data.gov.uk/id/local-authority/38,Oxfordshire County Council,5687,,13/02/2019,3110506239,"-5,107.29",METHODIST HOMES
http://statistics.data.gov.uk/id/local-authority/38,Oxfordshire County Council,5685,B*Cycle tracks,13/02/2019,3110508337,"-5,015.55",Penhurst Gardens
http://statistics.data.gov.uk/id/local-authority/38,Oxfordshire County Council,5687,,13/02/2019,3110508973,"-4,974.90",The Langston
http://statistics.data.gov.uk/id/local-authority/38,Oxfordshire County Council,5688,,13/02/2019,3110507219,"-4,949.77",Turning Point (Services) Ltd
http://statistics.data.gov.uk/id/local-authority/38,Oxfordshire County Council,5686,,13/02/2019,3110505072,"-4,908.64",Freeland House
http://statistics.data.gov.uk/id/local-authority/38,Oxfordshire County Council,5692,,13/02/2019,3110508665,"-4,744.79",St. Lukes Oxford - Free Nursing
http://statistics.data.gov.uk/id/local-authority/38,Oxfordshire County Council,5686,,13/02/2019,3110507613,"-4,601.14",Orders of St John
http://statistics.data.gov.uk/id/local-authority/38,Oxfordshire County Council,5687,,13/02/2019,3110508543,"-4,478.57",Barchester Healthcare Homes Ltd
http://statistics.data.gov.uk/id/local-authority/38,Oxfordshire County Council,5687,,13/02/2019,3110505121,"-4,464.29",Glebefields Care Home
http://statistics.data.gov.uk/id/local-authority/38,Oxfordshire County Council,5685,B*Cycle tracks,13/02/2019,3110509223,"-4,421.68",Caring Homes Healthcare Group Ltd
http://statistics.data.gov.uk/id/local-authority/38,Oxfordshire County Council,5687,,13/02/2019,3110505304,"-4,203.76",SANCTUARY CARE PROPERTY (2) LTD
http://statistics.data.gov.uk/id/local-authority/38,Oxfordshire County Council,5692,,13/02/2019,3110509015,"-4,157.34",The Old Prebendal House
http://statistics.data.gov.uk/id/local-authority/38,Oxfordshire County Council,5687,,13/02/2019,3110505350,"-4,068.43",The Albany Care Home
http://statistics.data.gov.uk/id/local-authority/38,Oxfordshire County Council,5692,,13/02/2019,3110506363,"-3,976.59",Chacombe Park Care Home
http://statistics.data.gov.uk/id/local-authority/38,Oxfordshire County Council,5692,,13/02/2019,3110505232,"-3,795.83",Mill House Nursing Home
http://statistics.data.gov.uk/id/local-authority/38,Oxfordshire County Council,5555,Payments to Carers,13/02/2019,3110504902,"-3,690.21",Redacted Personal Data
http://statistics.data.gov.uk/id/local-authority/38,Oxfordshire County Council,5537,Payments to Other Establishments,07/02/2019,3110503222,"-3,616.64",Mortimer Hall Pre-School CIO
http://statistics.data.gov.uk/id/local-authority/38,Oxfordshire County Council,5685,B*Cycle tracks,13/02/2019,3110505495,"-3,553.39",Wallingford Care Ltd
http://statistics.data.gov.uk/id/local-authority/38,Oxfordshire County Council,5686,,13/02/2019,3110508595,"-3,452.07",St Andrews Residential Care Home L
http://statistics.data.gov.uk/id/local-authority/38,Oxfordshire County Council,5692,,13/02/2019,3110508859,"-3,343.95",The Grange Care Centre
http://statistics.data.gov.uk/id/local-authority/38,Oxfordshire County Council,5687,,13/02/2019,3110509157,"-3,342.86",MARIA MALLABAND CARE GROUP
http://statistics.data.gov.uk/id/local-authority/38,Oxfordshire County Council,5692,,13/02/2019,3110506372,"-3,185.79",Chacombe Park Care Home
http://statistics.data.gov.uk/id/local-authority/38,Oxfordshire County Council,5686,,13/02/2019,3110506480,"-3,157.14",Cherwood House Care Centre
http://statistics.data.gov.uk/id/local-authority/38,Oxfordshire County Council,5686,,13/02/2019,3110505181,"-3,157.14",Huntercombe Hall Ltd
http://statistics.data.gov.uk/id/local-authority/38,Oxfordshire County Council,5687,,13/02/2019,3110506291,"-3,121.43",METHODIST HOMES
http://statistics.data.gov.uk/id/local-authority/38,Oxfordshire County Council,5687,,13/02/2019,3110508183,"-3,085.71",Oxford Beaumont
http://statistics.data.gov.uk/id/local-authority/38,Oxfordshire County Council,5692,,13/02/2019,3110505129,"-3,005.03",Glebefields Care Home
http://statistics.data.gov.uk/id/local-authority/38,Oxfordshire County Council,5692,,13/02/2019,3110505439,"-3,005.03",SANCTUARY CARE LTD
http://statistics.data.gov.uk/id/local-authority/38,Oxfordshire County Council,5686,,13/02/2019,3110507796,"-2,971.57",Orders of St John
http://statistics.data.gov.uk/id/local-authority/38,Oxfordshire County Council,5692,,13/02/2019,3110505102,"-2,937.25",Freeland House
http://statistics.data.gov.uk/id/local-authority/38,Oxfordshire County Council,5688,,13/02/2019,3110506371,"-2,637.87",Mencap Contracts
http://statistics.data.gov.uk/id/local-authority/38,Oxfordshire County Council,5537,Payments to Other Establishments,22/02/2019,3110513754,"-2,535.87",North Oxfordshire Academy
http://statistics.data.gov.uk/id/local-authority/38,Oxfordshire County Council,5687,,13/02/2019,3110507086,"-2,510.00",Gracewell Healthcare Ltd
http://statistics.data.gov.uk/id/local-authority/38,Oxfordshire County Council,5686,,13/02/2019,3110507696,"-2,499.99",Leafield Rest Home
http://statistics.data.gov.uk/id/local-authority/38,Oxfordshire County Council,5687,,13/02/2019,3110508682,"-2,497.50",St Lukes Nursing Home (Oxford)
http://statistics.data.gov.uk/id/local-authority/38,Oxfordshire County Council,5686,,13/02/2019,3110509146,"-2,427.49",White Leaf Support Ltd
http://statistics.data.gov.uk/id/local-authority/38,Oxfordshire County Council,5687,,13/02/2019,3110506736,"-2,414.29",Coxwell Hall & Mews Nursing Home
http://statistics.data.gov.uk/id/local-authority/38,Oxfordshire County Council,5688,,13/02/2019,3110507314,"-2,381.89",UNITED RESPONSE
http://statistics.data.gov.uk/id/local-authority/38,Oxfordshire County Council,5687,,13/02/2019,3110509206,"-2,228.57",MARIA MALLABAND CARE GROUP
http://statistics.data.gov.uk/id/local-authority/38,Oxfordshire County Council,8004,Design Consultant,27/02/2019,2200608332,"-2,186.58",Skanska Construction UK Ltd Sp
http://statistics.data.gov.uk/id/local-authority/38,Oxfordshire County Council,5687,,13/02/2019,3110504785,"-2,171.43",Banbury Heights Nursing Home
http://statistics.data.gov.uk/id/local-authority/38,Oxfordshire County Council,4861,Hired and Contracted Services,28/02/2019,2200608692,"-2,150.00",Oxford Direct Services
http://statistics.data.gov.uk/id/local-authority/38,Oxfordshire County Council,5686,,13/02/2019,3110507549,"-2,071.43",Orders of St John
http://statistics.data.gov.uk/id/local-authority/38,Oxfordshire County Council,5500,Payments to Other Local Authorities,15/02/2019,3110509960,"-2,040.00",Broadway Taxis Ltd (Bridgewater)
http://statistics.data.gov.uk/id/local-authority/38,Oxfordshire County Council,5688,,13/02/2019,3110507270,"-2,000.97",Turning Point (Services) Ltd
http://statistics.data.gov.uk/id/local-authority/38,Oxfordshire County Council,3103,Other Training Courses and Qualification,20/02/2019,3110512735,"-1,961.20",OCC One Time Vendor
http://statistics.data.gov.uk/id/local-authority/38,Oxfordshire County Council,5687,,13/02/2019,3110505463,"-1,944.20",SANCTUARY CARE LTD
http://statistics.data.gov.uk/id/local-authority/38,Oxfordshire County Council,5686,,13/02/2019,3110508114,"-1,942.86",Newland House
http://statistics.data.gov.uk/id/local-authority/38,Oxfordshire County Council,5686,,13/02/2019,3110507784,"-1,917.14",Orders of St John
http://statistics.data.gov.uk/id/local-authority/38,Oxfordshire County Council,5687,,13/02/2019,3110508927,"-1,901.57",Four Seasons (Headington) Ltd
http://statistics.data.gov.uk/id/local-authority/38,Oxfordshire County Council,5685,B*Cycle tracks,13/02/2019,3110507226,"-1,878.49",Cedar Court Care Home
http://statistics.data.gov.uk/id/local-authority/38,Oxfordshire County Council,5692,,13/02/2019,3110506294,"-1,830.13",METHODIST HOMES
http://statistics.data.gov.uk/id/local-authority/38,Oxfordshire County Council,5692,,13/02/2019,3110508477,"-1,830.13",Rushcourt Nursing Home
http://statistics.data.gov.uk/id/local-authority/38,Oxfordshire County Council,5687,,13/02/2019,3110504930,"-1,821.43",Fewcott Healthcare Ltd
http://statistics.data.gov.uk/id/local-authority/38,Oxfordshire County Council,5686,,13/02/2019,3110507420,"-1,821.00",Orders of St John
http://statistics.data.gov.uk/id/local-authority/38,Oxfordshire County Council,5692,,13/02/2019,3110506358,"-1,807.54",Chacombe Park Care Home
http://statistics.data.gov.uk/id/local-authority/38,Oxfordshire County Council,5686,,13/02/2019,3110507850,"-1,771.43",Lyndhurst Residential Care Home
http://statistics.data.gov.uk/id/local-authority/38,Oxfordshire County Council,5688,,13/02/2019,3110507349,"-1,745.00",Life Path Trust Ltd
http://statistics.data.gov.uk/id/local-authority/38,Oxfordshire County Council,5692,,13/02/2019,3110505332,"-1,739.75",SANCTUARY CARE PROPERTY (2) LTD
http://statistics.data.gov.uk/id/local-authority/38,Oxfordshire County Council,5687,,13/02/2019,3110506509,"-1,671.43",Cherwood House Care Centre
http://statistics.data.gov.uk/id/local-authority/38,Oxfordshire County Council,5687,,13/02/2019,3110505235,"-1,650.00",Mill House Nursing Home
http://statistics.data.gov.uk/id/local-authority/38,Oxfordshire County Council,5687,,13/02/2019,3110508376,"-1,628.71",Orders of St John
http://statistics.data.gov.uk/id/local-authority/38,Oxfordshire County Council,5692,,13/02/2019,3110507155,"-1,604.19",Green Pastures Christian NH
http://statistics.data.gov.uk/id/local-authority/38,Oxfordshire County Council,5195,Grant Aid and Donations,07/02/2019,3110503229,"-1,500.00",Eynsham Parish Council
http://statistics.data.gov.uk/id/local-authority/38,Oxfordshire County Council,5686,,13/02/2019,3110506424,"-1,485.71",Cheney House Care Home
http://statistics.data.gov.uk/id/local-authority/38,Oxfordshire County Council,5227,Other Transport Arrangements,01/02/2019,9300036996,"-1,469.85",OCC SS Oxford City Div 1 Bank
http://statistics.data.gov.uk/id/local-authority/38,Oxfordshire County Council,5687,,13/02/2019,3110508570,"-1,454.14",Barchester Healthcare Homes Ltd
http://statistics.data.gov.uk/id/local-authority/38,Oxfordshire County Council,5687,,13/02/2019,3110505829,"-1,453.57",ACER HEALTHCARE LTD
http://statistics.data.gov.uk/id/local-authority/38,Oxfordshire County Council,5687,,13/02/2019,3110509056,"-1,419.17",The Triangle Nursing Home
http://statistics.data.gov.uk/id/local-authority/38,Oxfordshire County Council,5687,,13/02/2019,3110508556,"-1,414.29",Barchester Healthcare Homes Ltd
http://statistics.data.gov.uk/id/local-authority/38,Oxfordshire County Council,5687,,13/02/2019,3110507685,"-1,378.14",Orders of St John
http://statistics.data.gov.uk/id/local-authority/38,Oxfordshire County Council,5687,,13/02/2019,3110508901,"-1,371.43",Four Seasons (Headington) Ltd
http://statistics.data.gov.uk/id/local-authority/38,Oxfordshire County Council,3942,Hire of Accommodation and Facilities,28/02/2019,2200609096,"-1,310.50",NYS CORPORATE LTD
http://statistics.data.gov.uk/id/local-authority/38,Oxfordshire County Council,5692,,13/02/2019,3110505528,"-1,220.09",SANCTUARY CARE LTD
http://statistics.data.gov.uk/id/local-authority/38,Oxfordshire County Council,5690,,13/02/2019,3110504686,"-1,219.24",Mencap Contracts
http://statistics.data.gov.uk/id/local-authority/38,Oxfordshire County Council,5685,B*Cycle tracks,13/02/2019,3110505240,"-1,192.46",Mill House Nursing Home
http://statistics.data.gov.uk/id/local-authority/38,Oxfordshire County Council,5692,,13/02/2019,3110508934,"-1,129.71",Four Seasons (Headington) Ltd
http://statistics.data.gov.uk/id/local-authority/38,Oxfordshire County Council,5687,,13/02/2019,3110506220,"-1,118.57",METHODIST HOMES
http://statistics.data.gov.uk/id/local-authority/38,Oxfordshire County Council,5692,,13/02/2019,3110509022,"-1,107.12",The Old Prebendal House
http://statistics.data.gov.uk/id/local-authority/38,Oxfordshire County Council,5687,,13/02/2019,3110505278,"-1,092.86",Oakenholt Care Ltd
http://statistics.data.gov.uk/id/local-authority/38,Oxfordshire County Council,4940,Other Services,28/02/2019,3110515355,"-1,074.00",Word Fountain Christian Ministries
http://statistics.data.gov.uk/id/local-authority/38,Oxfordshire County Council,5691,,19/02/2019,2200605268,"-1,049.51",Orders of St John Care Trust
http://statistics.data.gov.uk/id/local-authority/38,Oxfordshire County Council,5686,,13/02/2019,3110507427,"-1,040.57",Orders of St John
http://statistics.data.gov.uk/id/local-authority/38,Oxfordshire County Council,5692,,13/02/2019,3110507132,"-1,016.74",Green Pastures Christian NH
http://statistics.data.gov.uk/id/local-authority/38,Oxfordshire County Council,5692,,13/02/2019,3110505213,"-1,016.74",Huntercombe Hall Ltd
http://statistics.data.gov.uk/id/local-authority/38,Oxfordshire County Council,5687,,13/02/2019,3110507639,-977.14,Orders of St John
http://statistics.data.gov.uk/id/local-authority/38,Oxfordshire County Council,5688,,13/02/2019,3110507266,-968.15,Turning Point (Services) Ltd
http://statistics.data.gov.uk/id/local-authority/38,Oxfordshire County Council,5687,,13/02/2019,3110507211,-950,Cedar Court Care Home
http://statistics.data.gov.uk/id/local-authority/38,Oxfordshire County Council,5537,Payments to Other Establishments,27/02/2019,3110514637,-950,Lode Heath School
http://statistics.data.gov.uk/id/local-authority/38,Oxfordshire County Council,5686,,13/02/2019,3110506750,-928.57,CUMNOR HILL HOUSE
http://statistics.data.gov.uk/id/local-authority/38,Oxfordshire County Council,5685,B*Cycle tracks,13/02/2019,3110506213,-913,METHODIST HOMES
http://statistics.data.gov.uk/id/local-authority/38,Oxfordshire County Council,4861,Hired and Contracted Services,27/02/2019,2200608424,-900,Oxford City Council Incomes
http://statistics.data.gov.uk/id/local-authority/38,Oxfordshire County Council,5692,,13/02/2019,3110508479,-880.51,Rushcourt Nursing Home
http://statistics.data.gov.uk/id/local-authority/38,Oxfordshire County Council,3257,,11/02/2019,3110503605,-866,OCC One Time Vendor
http://statistics.data.gov.uk/id/local-authority/38,Oxfordshire County Council,5526,Payments to Private Contractors,11/02/2019,3110503625,-857.21,OCC One Time Vendor
http://statistics.data.gov.uk/id/local-authority/38,Oxfordshire County Council,5686,,13/02/2019,3110506485,-857.14,Cherwood House Care Centre
http://statistics.data.gov.uk/id/local-authority/38,Oxfordshire County Council,1448,Blackfield Inc & Exp A/c,21/02/2019,3110513630,-837.6,OCC One Time Vendor
http://statistics.data.gov.uk/id/local-authority/38,Oxfordshire County Council,5685,B*Cycle tracks,13/02/2019,3110505864,-836.37,ACER HEALTHCARE LTD
http://statistics.data.gov.uk/id/local-authority/38,Oxfordshire County Council,5227,Other Transport Arrangements,05/02/2019,3110501610,-828.6,Go Green Taxis
http://statistics.data.gov.uk/id/local-authority/38,Oxfordshire County Council,5692,,13/02/2019,3110505441,-813.39,SANCTUARY CARE LTD
http://statistics.data.gov.uk/id/local-authority/38,Oxfordshire County Council,5688,,13/02/2019,3110506272,-795.14,Mencap Contracts
http://statistics.data.gov.uk/id/local-authority/38,Oxfordshire County Council,5692,,13/02/2019,3110505628,-790.8,Abbey Crest Nursing Home
http://statistics.data.gov.uk/id/local-authority/38,Oxfordshire County Council,8102,Payments to main contractor,27/02/2019,2200608381,-776.7,Skanska Construction UK Ltd Sp
http://statistics.data.gov.uk/id/local-authority/38,Oxfordshire County Council,5686,,13/02/2019,3110507611,-766.86,Orders of St John
http://statistics.data.gov.uk/id/local-authority/38,Oxfordshire County Council,5686,,13/02/2019,3110507444,-747.43,Orders of St John
http://statistics.data.gov.uk/id/local-authority/38,Oxfordshire County Council,3951,Non System - Electricity,15/02/2019,3110509905,-744.95,NPOWER
http://statistics.data.gov.uk/id/local-authority/38,Oxfordshire County Council,5687,,13/02/2019,3110507095,-712.94,Green Pastures Christian NH
http://statistics.data.gov.uk/id/local-authority/38,Oxfordshire County Council,5687,,13/02/2019,3110505048,-701,Freeland House
http://statistics.data.gov.uk/id/local-authority/38,Oxfordshire County Council,5692,,13/02/2019,3110508662,-700.43,St. Lukes Oxford - Free Nursing
http://statistics.data.gov.uk/id/local-authority/38,Oxfordshire County Council,5687,,13/02/2019,3110508015,-688.38,Middletown Grange Care Home
http://statistics.data.gov.uk/id/local-authority/38,Oxfordshire County Council,3257,,05/02/2019,3110501508,-665,OCC One Time Vendor
http://statistics.data.gov.uk/id/local-authority/38,Oxfordshire County Council,5692,,13/02/2019,3110508659,-655.23,St. Lukes Oxford - Free Nursing
http://statistics.data.gov.uk/id/local-authority/38,Oxfordshire County Council,3257,,11/02/2019,3110503604,-647,OCC One Time Vendor
http://statistics.data.gov.uk/id/local-authority/38,Oxfordshire County Council,5688,,13/02/2019,3110506278,-638.64,Mencap Contracts
http://statistics.data.gov.uk/id/local-authority/38,Oxfordshire County Council,5692,,13/02/2019,3110505872,-632.64,ACER HEALTHCARE LTD
http://statistics.data.gov.uk/id/local-authority/38,Oxfordshire County Council,5692,,13/02/2019,3110505457,-632.64,SANCTUARY CARE LTD
http://statistics.data.gov.uk/id/local-authority/38,Oxfordshire County Council,5685,B*Cycle tracks,13/02/2019,3110505504,-632.64,Wallingford Care Ltd
http://statistics.data.gov.uk/id/local-authority/38,Oxfordshire County Council,3951,Non System - Electricity,15/02/2019,3110509904,-627.74,NPOWER
http://statistics.data.gov.uk/id/local-authority/38,Oxfordshire County Council,4330,Transport to School Activities,20/02/2019,3110512740,-612,Streamline Peppard Taxi
http://statistics.data.gov.uk/id/local-authority/38,Oxfordshire County Council,4320,Pupil / Client Travel Reimbursement,20/02/2019,3110512728,-600,OCC One Time Vendor
http://statistics.data.gov.uk/id/local-authority/38,Oxfordshire County Council,5686,,13/02/2019,3110507762,-575.14,Orders of St John
http://statistics.data.gov.uk/id/local-authority/38,Oxfordshire County Council,5692,,13/02/2019,3110508676,-564.86,St. Lukes Oxford - Free Nursing
http://statistics.data.gov.uk/id/local-authority/38,Oxfordshire County Council,5692,,13/02/2019,3110505464,-542.26,SANCTUARY CARE LTD
http://statistics.data.gov.uk/id/local-authority/38,Oxfordshire County Council,5692,,13/02/2019,3110505320,-542.26,SANCTUARY CARE PROPERTY (2) LTD
http://statistics.data.gov.uk/id/local-authority/38,Oxfordshire County Council,5686,,13/02/2019,3110507047,-542,GCH (St Katherines) Ltd
http://statistics.data.gov.uk/id/local-authority/38,Oxfordshire County Council,4322,"Season Tickets - Bus, Rail & Ferry",20/02/2019,3110512865,-535,Carousel Buses Ltd
http://statistics.data.gov.uk/id/local-authority/38,Oxfordshire County Council,5686,,13/02/2019,3110506893,-514.29,Framland
http://statistics.data.gov.uk/id/local-authority/38,Oxfordshire County Council,5251,Legal Costs,01/02/2019,2200598524,500,A Collinson
http://statistics.data.gov.uk/id/local-authority/38,Oxfordshire County Council,5251,Legal Costs,26/02/2019,2200607684,500,Miss H Little
http://statistics.data.gov.uk/id/local-authority/38,Oxfordshire County Council,5460,Entertainment Expenses,06/02/2019,2200600358,500,NETWORKING WOMEN IN THE FIRE SERVIC
http://statistics.data.gov.uk/id/local-authority/38,Oxfordshire County Council,3100,Educational and Vocational Training,18/02/2019,2200605200,500,Nicolas Watts
http://statistics.data.gov.uk/id/local-authority/38,Oxfordshire County Council,5055,Insurance Costs,04/02/2019,3110501349,500,OCC One Time Vendor
http://statistics.data.gov.uk/id/local-authority/38,Oxfordshire County Council,5055,Insurance Costs,06/02/2019,3110503193,500,OCC One Time Vendor
http://statistics.data.gov.uk/id/local-authority/38,Oxfordshire County Council,5055,Insurance Costs,06/02/2019,3110503209,500,OCC One Time Vendor
http://statistics.data.gov.uk/id/local-authority/38,Oxfordshire County Council,5055,Insurance Costs,14/02/2019,3110509715,500,OCC One Time Vendor
http://statistics.data.gov.uk/id/local-authority/38,Oxfordshire County Council,1441,Uncleared Misc Income Receipts,20/02/2019,3110512733,500,OCC One Time Vendor
http://statistics.data.gov.uk/id/local-authority/38,Oxfordshire County Council,5055,Insurance Costs,21/02/2019,3110513628,500,OCC One Time Vendor
http://statistics.data.gov.uk/id/local-authority/38,Oxfordshire County Council,5227,Other Transport Arrangements,13/02/2019,3110509364,500,Oxon Transport Services Ltd
http://statistics.data.gov.uk/id/local-authority/38,Oxfordshire County Council,5227,Other Transport Arrangements,13/02/2019,3110509394,500,Oxon Transport Services Ltd
http://statistics.data.gov.uk/id/local-authority/38,Oxfordshire County Council,5227,Other Transport Arrangements,13/02/2019,3110509454,500,Oxon Transport Services Ltd
http://statistics.data.gov.uk/id/local-authority/38,Oxfordshire County Council,5899,Social Care - Direct Payments,19/02/2019,3110511492,500,Purple Conversation Com In Co (DP)
http://statistics.data.gov.uk/id/local-authority/38,Oxfordshire County Council,5899,Social Care - Direct Payments,19/02/2019,3110511716,500,Purple Conversation Com In Co (DP)
http://statistics.data.gov.uk/id/local-authority/38,Oxfordshire County Council,2040,Agency Staff,04/02/2019,2200598656,500,SJG Consultancy Ltd
http://statistics.data.gov.uk/id/local-authority/38,Oxfordshire County Council,4859,Medical and Counselling Fees,05/02/2019,2200599306,500,The Annex Project
http://statistics.data.gov.uk/id/local-authority/38,Oxfordshire County Council,5696,,06/02/2019,3110503125,500.4,Housing&care21
http://statistics.data.gov.uk/id/local-authority/38,Oxfordshire County Council,5696,,06/02/2019,3110503126,500.4,Housing&care21
http://statistics.data.gov.uk/id/local-authority/38,Oxfordshire County Council,5251,Legal Costs,25/02/2019,2200606642,500.46,Psychassessments Ltd
http://statistics.data.gov.uk/id/local-authority/38,Oxfordshire County Council,5664,B*Holiday Allowance,06/02/2019,3110502582,500.9,Redacted Personal Data
http://statistics.data.gov.uk/id/local-authority/38,Oxfordshire County Council,5664,B*Holiday Allowance,13/02/2019,3110504140,500.9,Redacted Personal Data
http://statistics.data.gov.uk/id/local-authority/38,Oxfordshire County Council,5664,B*Holiday Allowance,20/02/2019,3110510786,500.9,Redacted Personal Data
http://statistics.data.gov.uk/id/local-authority/38,Oxfordshire County Council,5664,B*Holiday Allowance,27/02/2019,3110513991,500.9,Redacted Personal Data
http://statistics.data.gov.uk/id/local-authority/38,Oxfordshire County Council,5687,,13/02/2019,3110507503,501.14,Orders of St John
http://statistics.data.gov.uk/id/local-authority/38,Oxfordshire County Council,5698,,27/02/2019,3110514752,501.45,Bridges Home Care Ltd
http://statistics.data.gov.uk/id/local-authority/38,Oxfordshire County Council,4232,Vehicle Fuel,26/02/2019,2200607222,501.5,Certas Energy UK Ltd
http://statistics.data.gov.uk/id/local-authority/38,Oxfordshire County Council,4940,Other Services,28/02/2019,3110515339,501.73,Aston Tirrold Parish Council
http://statistics.data.gov.uk/id/local-authority/38,Oxfordshire County Council,4685,Clothing and Uniforms,22/02/2019,9300037425,501.85,OCC SS Oxford City Div 1 Cash
http://statistics.data.gov.uk/id/local-authority/38,Oxfordshire County Council,5899,Social Care - Direct Payments,19/02/2019,3110511951,502.28,Purple Conversation Com In Co (DP)
http://statistics.data.gov.uk/id/local-authority/38,Oxfordshire County Council,5899,Social Care - Direct Payments,19/02/2019,3110510650,502.32,Redacted Personal Data
http://statistics.data.gov.uk/id/local-authority/38,Oxfordshire County Council,5690,,13/02/2019,3110504779,502.32,Turning Point (Services) Ltd
http://statistics.data.gov.uk/id/local-authority/38,Oxfordshire County Council,5688,,13/02/2019,3110507250,502.32,Turning Point (Services) Ltd
http://statistics.data.gov.uk/id/local-authority/38,Oxfordshire County Council,5689,,05/02/2019,3110502425,502.56,PLL Care Services
http://statistics.data.gov.uk/id/local-authority/38,Oxfordshire County Council,5689,,05/02/2019,3110502238,502.69,My Carer Ltd
http://statistics.data.gov.uk/id/local-authority/38,Oxfordshire County Council,5689,,05/02/2019,3110502348,502.69,Oxford University Hospitals NHS FT
http://statistics.data.gov.uk/id/local-authority/38,Oxfordshire County Council,5548,B*Fostering - Special Rates & Plus Amou,20/02/2019,3110511217,502.78,Redacted Personal Data
http://statistics.data.gov.uk/id/local-authority/38,Oxfordshire County Council,5665,B*Fostering Project Care Fee,19/02/2019,9300037376,502.8,OCC SS Oxford City Div 1 Cash
http://statistics.data.gov.uk/id/local-authority/38,Oxfordshire County Council,5537,Payments to Other Establishments,18/02/2019,3110512510,502.94,Nicola Broome
http://statistics.data.gov.uk/id/local-authority/38,Oxfordshire County Council,5693,,27/02/2019,3110514494,502.97,1st Homecare (Oxford) Ltd
http://statistics.data.gov.uk/id/local-authority/38,Oxfordshire County Council,1162,VAT - Input Adjustment,08/02/2019,3110503546,503,Ross & Roberts Ltd
http://statistics.data.gov.uk/id/local-authority/38,Oxfordshire County Council,5899,Social Care - Direct Payments,19/02/2019,3110510290,504,Redacted Personal Data
http://statistics.data.gov.uk/id/local-authority/38,Oxfordshire County Council,5251,Legal Costs,26/02/2019,2200607098,504,ORCHID CELLMARK LTD
http://statistics.data.gov.uk/id/local-authority/38,Oxfordshire County Council,5899,Social Care - Direct Payments,19/02/2019,3110511788,504,Purple Conversation Com In Co (DP)
http://statistics.data.gov.uk/id/local-authority/38,Oxfordshire County Council,5899,Social Care - Direct Payments,19/02/2019,3110512117,504,Purple Conversation Com In Co (DP)
http://statistics.data.gov.uk/id/local-authority/38,Oxfordshire County Council,5573,,13/02/2019,3110504186,504.25,Redacted Personal Data
http://statistics.data.gov.uk/id/local-authority/38,Oxfordshire County Council,5573,,20/02/2019,3110510828,504.25,Redacted Personal Data
http://statistics.data.gov.uk/id/local-authority/38,Oxfordshire County Council,5573,,27/02/2019,3110514032,504.25,Redacted Personal Data
http://statistics.data.gov.uk/id/local-authority/38,Oxfordshire County Council,5251,Legal Costs,26/02/2019,2200607434,504.44,DR A J WILKINS
http://statistics.data.gov.uk/id/local-authority/38,Oxfordshire County Council,5251,Legal Costs,28/02/2019,2200608737,505,N KEENE
http://statistics.data.gov.uk/id/local-authority/38,Oxfordshire County Council,5227,Other Transport Arrangements,25/02/2019,3110513681,505.44,Mills Transport Ltd
http://statistics.data.gov.uk/id/local-authority/38,Oxfordshire County Council,5698,,27/02/2019,3110514887,505.72,Charterville Care At Home Ltd
http://statistics.data.gov.uk/id/local-authority/38,Oxfordshire County Council,5202,Use of Mortuary Services,15/02/2019,2200604449,506.1,Dr Lucinda Winter
http://statistics.data.gov.uk/id/local-authority/38,Oxfordshire County Council,5696,,20/02/2019,3110512827,506.27,Orders of St John Care Trust
http://statistics.data.gov.uk/id/local-authority/38,Oxfordshire County Council,5691,,06/02/2019,3110503331,506.32,Bluebird Care (Oxford South & West)
http://statistics.data.gov.uk/id/local-authority/38,Oxfordshire County Council,5698,,27/02/2019,3110515091,507.23,Day & Night Care Assistance
http://statistics.data.gov.uk/id/local-authority/38,Oxfordshire County Council,5698,,27/02/2019,3110515244,507.29,Oxford Private Care
http://statistics.data.gov.uk/id/local-authority/38,Oxfordshire County Council,5689,,05/02/2019,3110502385,507.36,Oxford University Hospitals NHS FT
http://statistics.data.gov.uk/id/local-authority/38,Oxfordshire County Council,5573,,06/02/2019,3110502876,507.55,Redacted Personal Data
http://statistics.data.gov.uk/id/local-authority/38,Oxfordshire County Council,5573,,13/02/2019,3110504400,507.55,Redacted Personal Data
http://statistics.data.gov.uk/id/local-authority/38,Oxfordshire County Council,5573,,20/02/2019,3110511189,507.55,Redacted Personal Data
http://statistics.data.gov.uk/id/local-authority/38,Oxfordshire County Council,5573,,27/02/2019,3110514281,507.55,Redacted Personal Data
http://statistics.data.gov.uk/id/local-authority/38,Oxfordshire County Council,5537,Payments to Other Establishments,18/02/2019,3110512335,507.78,Daffodil Nursery Ltd
http://statistics.data.gov.uk/id/local-authority/38,Oxfordshire County Council,5697,,13/02/2019,3110505801,508,Guideposts Trust
http://statistics.data.gov.uk/id/local-authority/38,Oxfordshire County Council,5899,Social Care - Direct Payments,19/02/2019,3110511557,508,Purple Conversation Com In Co (DP)
http://statistics.data.gov.uk/id/local-authority/38,Oxfordshire County Council,5899,Social Care - Direct Payments,19/02/2019,3110511735,508,Purple Conversation Com In Co (DP)
http://statistics.data.gov.uk/id/local-authority/38,Oxfordshire County Council,5899,Social Care - Direct Payments,19/02/2019,3110512142,508.32,Purple Conversation Com In Co (DP)
http://statistics.data.gov.uk/id/local-authority/38,Oxfordshire County Council,5899,Social Care - Direct Payments,19/02/2019,3110510552,508.36,Redacted Personal Data
http://statistics.data.gov.uk/id/local-authority/38,Oxfordshire County Council,5899,Social Care - Direct Payments,19/02/2019,3110511782,509.32,Purple Conversation Com In Co (DP)
http://statistics.data.gov.uk/id/local-authority/38,Oxfordshire County Council,5689,,05/02/2019,3110501997,509.64,Day and Nightcare Assistance
http://statistics.data.gov.uk/id/local-authority/38,Oxfordshire County Council,5227,Other Transport Arrangements,15/02/2019,3110509934,510,A2B Castle Cars Ltd
http://statistics.data.gov.uk/id/local-authority/38,Oxfordshire County Council,5691,,01/02/2019,3110501241,510,Bluebird Care (Oxford South & West)
http://statistics.data.gov.uk/id/local-authority/38,Oxfordshire County Council,5227,Other Transport Arrangements,15/02/2019,3110510054,510,C V OSullivan
http://statistics.data.gov.uk/id/local-authority/38,Oxfordshire County Council,4330,Transport to School Activities,04/02/2019,3110501420,510,Go Green Taxis
http://statistics.data.gov.uk/id/local-authority/38,Oxfordshire County Council,5227,Other Transport Arrangements,13/02/2019,3110509315,510,Luxicars Ltd
http://statistics.data.gov.uk/id/local-authority/38,Oxfordshire County Council,5689,,05/02/2019,3110501898,510.25,Oxfordshire Crossroads
http://statistics.data.gov.uk/id/local-authority/38,Oxfordshire County Council,5682,,21/02/2019,3110513499,510.32,The Brandon Trust
http://statistics.data.gov.uk/id/local-authority/38,Oxfordshire County Council,5899,Social Care - Direct Payments,19/02/2019,3110510577,510.4,Redacted Personal Data
http://statistics.data.gov.uk/id/local-authority/38,Oxfordshire County Council,5689,,05/02/2019,3110502010,510.93,Day and Nightcare Assistance
http://statistics.data.gov.uk/id/local-authority/38,Oxfordshire County Council,5698,,27/02/2019,3110515181,511.53,Oxford Private Care
http://statistics.data.gov.uk/id/local-authority/38,Oxfordshire County Council,5693,,27/02/2019,3110514527,512,Redacted Personal Data
http://statistics.data.gov.uk/id/local-authority/38,Oxfordshire County Council,5899,Social Care - Direct Payments,19/02/2019,3110511510,512,Purple Conversation Com In Co (DP)
http://statistics.data.gov.uk/id/local-authority/38,Oxfordshire County Council,5899,Social Care - Direct Payments,19/02/2019,3110511525,512,Purple Conversation Com In Co (DP)
http://statistics.data.gov.uk/id/local-authority/38,Oxfordshire County Council,5899,Social Care - Direct Payments,19/02/2019,3110511678,512,Purple Conversation Com In Co (DP)
http://statistics.data.gov.uk/id/local-authority/38,Oxfordshire County Council,5899,Social Care - Direct Payments,19/02/2019,3110511827,512,Purple Conversation Com In Co (DP)
http://statistics.data.gov.uk/id/local-authority/38,Oxfordshire County Council,5689,,05/02/2019,3110501760,512.24,Caremark (West Oxfordshire & Cherwe
http://statistics.data.gov.uk/id/local-authority/38,Oxfordshire County Council,5696,,21/02/2019,3110513368,512.33,Orders of St John Care Trust
http://statistics.data.gov.uk/id/local-authority/38,Oxfordshire County Council,5227,Other Transport Arrangements,26/02/2019,3110513961,513,C V OSullivan
http://statistics.data.gov.uk/id/local-authority/38,Oxfordshire County Council,4940,Other Services,04/02/2019,3110501368,513,Guys and St Thomas NHS Foundation
http://statistics.data.gov.uk/id/local-authority/38,Oxfordshire County Council,5691,,11/02/2019,3110503791,513,The Caring Company (Oxon)
http://statistics.data.gov.uk/id/local-authority/38,Oxfordshire County Council,5698,,27/02/2019,3110514999,513.3,Day & Night Care Assistance
http://statistics.data.gov.uk/id/local-authority/38,Oxfordshire County Council,5691,,01/02/2019,3110501287,514.1,Bluebird Care (Oxford South & West)
http://statistics.data.gov.uk/id/local-authority/38,Oxfordshire County Council,5698,,27/02/2019,3110515312,514.14,Oxfordshire Crossroads
http://statistics.data.gov.uk/id/local-authority/38,Oxfordshire County Council,8102,Payments to main contractor,22/02/2019,2200606329,515,Darke & Taylor Ltd
http://statistics.data.gov.uk/id/local-authority/38,Oxfordshire County Council,5899,Social Care - Direct Payments,19/02/2019,3110511536,515.2,Purple Conversation Com In Co (DP)
http://statistics.data.gov.uk/id/local-authority/38,Oxfordshire County Council,5899,Social Care - Direct Payments,19/02/2019,3110511933,515.2,Purple Conversation Com In Co (DP)
http://statistics.data.gov.uk/id/local-authority/38,Oxfordshire County Council,5899,Social Care - Direct Payments,19/02/2019,3110510286,515.52,Redacted Personal Data
http://statistics.data.gov.uk/id/local-authority/38,Oxfordshire County Council,5682,,21/02/2019,3110513571,515.64,The Brandon Trust
http://statistics.data.gov.uk/id/local-authority/38,Oxfordshire County Council,5691,,13/02/2019,3110509635,515.75,Care With Dignity Partnerships
http://statistics.data.gov.uk/id/local-authority/38,Oxfordshire County Council,4320,Pupil / Client Travel Reimbursement,07/02/2019,3110503404,515.97,Redacted Personal Data
http://statistics.data.gov.uk/id/local-authority/38,Oxfordshire County Council,5689,,05/02/2019,3110502039,516.16,Elite Care Agency
http://statistics.data.gov.uk/id/local-authority/38,Oxfordshire County Council,5690,,13/02/2019,3110504703,516.2,OXFORD HEALTH NHS FOUNDATION TRUST
http://statistics.data.gov.uk/id/local-authority/38,Oxfordshire County Council,5690,,13/02/2019,3110504745,516.2,OXFORD HEALTH NHS FOUNDATION TRUST
http://statistics.data.gov.uk/id/local-authority/38,Oxfordshire County Council,5548,B*Fostering - Special Rates & Plus Amou,20/02/2019,3110511109,516.4,Redacted Personal Data
http://statistics.data.gov.uk/id/local-authority/38,Oxfordshire County Council,5537,Payments to Other Establishments,27/02/2019,3110515585,516.67,Abingdon Little Angels
http://statistics.data.gov.uk/id/local-authority/38,Oxfordshire County Council,5537,Payments to Other Establishments,27/02/2019,3110515581,516.67,Lord Williams School Da
http://statistics.data.gov.uk/id/local-authority/38,Oxfordshire County Council,5537,Payments to Other Establishments,27/02/2019,3110515635,516.67,South Moreton Pre-School
http://statistics.data.gov.uk/id/local-authority/38,Oxfordshire County Council,5899,Social Care - Direct Payments,26/02/2019,3110513800,517.18,Redacted Personal Data
http://statistics.data.gov.uk/id/local-authority/38,Oxfordshire County Council,5899,Social Care - Direct Payments,26/02/2019,3110513852,517.18,Purple Conversation Com In Co (DP)
http://statistics.data.gov.uk/id/local-authority/38,Oxfordshire County Council,5227,Other Transport Arrangements,27/02/2019,2200607802,517.35,The Oxfordshire Taxi Company Ltd T/
http://statistics.data.gov.uk/id/local-authority/38,Oxfordshire County Council,5698,,27/02/2019,3110515219,517.94,Oxford Private Care
http://statistics.data.gov.uk/id/local-authority/38,Oxfordshire County Council,5698,,27/02/2019,3110515066,518.08,Day & Night Care Assistance
http://statistics.data.gov.uk/id/local-authority/38,Oxfordshire County Council,4539,"Books, DVDs and CDs",07/02/2019,3110503443,518.1,ASKEWS & HOLTS LIBRARY SERVICES LTD
http://statistics.data.gov.uk/id/local-authority/38,Oxfordshire County Council,5899,Social Care - Direct Payments,19/02/2019,3110511965,518.4,Purple Conversation Com In Co (DP)
http://statistics.data.gov.uk/id/local-authority/38,Oxfordshire County Council,5682,,21/02/2019,3110513483,518.4,The Brandon Trust
http://statistics.data.gov.uk/id/local-authority/38,Oxfordshire County Council,5415,Residential Activities,06/02/2019,9300037058,518.7,OCC SS Oxford City Div 1 Cash
http://statistics.data.gov.uk/id/local-authority/38,Oxfordshire County Council,5552,B*Fostering - Retainer Fee,06/02/2019,3110502989,519.04,Redacted Personal Data
http://statistics.data.gov.uk/id/local-authority/38,Oxfordshire County Council,5552,B*Fostering - Retainer Fee,13/02/2019,3110504497,519.04,Redacted Personal Data
http://statistics.data.gov.uk/id/local-authority/38,Oxfordshire County Council,5552,B*Fostering - Retainer Fee,20/02/2019,3110511243,519.04,Redacted Personal Data
http://statistics.data.gov.uk/id/local-authority/38,Oxfordshire County Council,5552,B*Fostering - Retainer Fee,27/02/2019,3110514363,519.04,Redacted Personal Data
http://statistics.data.gov.uk/id/local-authority/38,Oxfordshire County Council,5689,,05/02/2019,3110501946,519.31,Day and Nightcare Assistance
http://statistics.data.gov.uk/id/local-authority/38,Oxfordshire County Council,5604,,08/02/2019,2200601440,519.49,KEY2 FUTURES LTD
http://statistics.data.gov.uk/id/local-authority/38,Oxfordshire County Council,5692,,13/02/2019,3110507980,519.67,Merryfield Nursing Home
http://statistics.data.gov.uk/id/local-authority/38,Oxfordshire County Council,5698,,27/02/2019,3110515131,519.81,Day & Night Care Assistance
http://statistics.data.gov.uk/id/local-authority/38,Oxfordshire County Council,5899,Social Care - Direct Payments,19/02/2019,3110510750,520,Redacted Personal Data
http://statistics.data.gov.uk/id/local-authority/38,Oxfordshire County Council,5899,Social Care - Direct Payments,19/02/2019,3110510430,520,Redacted Personal Data
http://statistics.data.gov.uk/id/local-authority/38,Oxfordshire County Council,5227,Other Transport Arrangements,13/02/2019,3110509388,520,Oxon Transport Services Ltd
http://statistics.data.gov.uk/id/local-authority/38,Oxfordshire County Council,5899,Social Care - Direct Payments,19/02/2019,3110511837,520,Purple Conversation Com In Co (DP)
http://statistics.data.gov.uk/id/local-authority/38,Oxfordshire County Council,5899,Social Care - Direct Payments,19/02/2019,3110511874,520,Purple Conversation Com In Co (DP)
http://statistics.data.gov.uk/id/local-authority/38,Oxfordshire County Council,4270,HTM / Other Vehicle - Hire Charges,15/02/2019,2200604432,520,West Wallasey Fleet Hire Services
http://statistics.data.gov.uk/id/local-authority/38,Oxfordshire County Council,4934,,01/02/2019,3110503769,520.32,Boots the Chemist
http://statistics.data.gov.uk/id/local-authority/38,Oxfordshire County Council,5537,Payments to Other Establishments,18/02/2019,3110512373,520.68,Gemma Nash
http://statistics.data.gov.uk/id/local-authority/38,Oxfordshire County Council,5899,Social Care - Direct Payments,19/02/2019,3110512059,521.2,Purple Conversation Com In Co (DP)
http://statistics.data.gov.uk/id/local-authority/38,Oxfordshire County Council,5693,,06/02/2019,3110503086,521.3,The Caring Company (Oxon)
http://statistics.data.gov.uk/id/local-authority/38,Oxfordshire County Council,5698,,27/02/2019,3110514741,521.32,Bridges Home Care Ltd
http://statistics.data.gov.uk/id/local-authority/38,Oxfordshire County Council,5698,,27/02/2019,3110515280,521.47,Oxford Private Care
http://statistics.data.gov.uk/id/local-authority/38,Oxfordshire County Council,5548,B*Fostering - Special Rates & Plus Amou,20/02/2019,3110510817,521.85,Redacted Personal Data
http://statistics.data.gov.uk/id/local-authority/38,Oxfordshire County Council,5548,B*Fostering - Special Rates & Plus Amou,06/02/2019,3110502575,521.85,Redacted Personal Data
http://statistics.data.gov.uk/id/local-authority/38,Oxfordshire County Council,4232,Vehicle Fuel,11/02/2019,2200602165,522,C Track UK
http://statistics.data.gov.uk/id/local-authority/38,Oxfordshire County Council,5693,,06/02/2019,3110503087,522,The Caring Company (Oxon)
http://statistics.data.gov.uk/id/local-authority/38,Oxfordshire County Council,5537,Payments to Other Establishments,18/02/2019,3110512286,522.29,Carol Pohlman
http://statistics.data.gov.uk/id/local-authority/38,Oxfordshire County Council,5537,Payments to Other Establishments,18/02/2019,3110512500,522.29,Naomi O'callaghan
http://statistics.data.gov.uk/id/local-authority/38,Oxfordshire County Council,5537,Payments to Other Establishments,18/02/2019,3110512615,522.29,Stephanie Allen
http://statistics.data.gov.uk/id/local-authority/38,Oxfordshire County Council,5689,,05/02/2019,3110502443,522.6,PLL Care Services
http://statistics.data.gov.uk/id/local-authority/38,Oxfordshire County Council,5696,,21/02/2019,3110513512,522.64,Orders of St John Care Trust
http://statistics.data.gov.uk/id/local-authority/38,Oxfordshire County Council,4330,Transport to School Activities,21/02/2019,3110513302,523,Oxon Transport Services Ltd
http://statistics.data.gov.uk/id/local-authority/38,Oxfordshire County Council,5689,,05/02/2019,3110502120,523.09,Greigcare Home Service
http://statistics.data.gov.uk/id/local-authority/38,Oxfordshire County Council,5698,,27/02/2019,3110514845,523.64,Charterville Care At Home Ltd
http://statistics.data.gov.uk/id/local-authority/38,Oxfordshire County Council,5698,,27/02/2019,3110514727,524,Bridges Home Care Ltd
http://statistics.data.gov.uk/id/local-authority/38,Oxfordshire County Council,5526,Payments to Private Contractors,19/02/2019,2200605383,524,DBM Plant Hire
http://statistics.data.gov.uk/id/local-authority/38,Oxfordshire County Council,5899,Social Care - Direct Payments,19/02/2019,3110510733,524,Redacted Personal Data
http://statistics.data.gov.uk/id/local-authority/38,Oxfordshire County Council,4934,,01/02/2019,3110504004,524.16,Boots the Chemist
http://statistics.data.gov.uk/id/local-authority/38,Oxfordshire County Council,4934,,01/02/2019,3110504014,524.16,Day Lewis Pharmacy
http://statistics.data.gov.uk/id/local-authority/38,Oxfordshire County Council,4934,,01/02/2019,3110504027,524.16,Lloyds Pharmacy
http://statistics.data.gov.uk/id/local-authority/38,Oxfordshire County Council,5698,,27/02/2019,3110515264,524.21,Oxford Private Care
http://statistics.data.gov.uk/id/local-authority/38,Oxfordshire County Council,3951,Non System - Electricity,11/02/2019,2200602391,524.47,NPOWER
http://statistics.data.gov.uk/id/local-authority/38,Oxfordshire County Council,5555,Payments to Carers,13/02/2019,3110504798,524.48,Redacted Personal Data
http://statistics.data.gov.uk/id/local-authority/38,Oxfordshire County Council,5689,,05/02/2019,3110502140,524.83,MiHomecare Ltd
http://statistics.data.gov.uk/id/local-authority/38,Oxfordshire County Council,5663,B*Birthday Allowance,27/02/2019,3110514084,524.95,Redacted Personal Data
http://statistics.data.gov.uk/id/local-authority/38,Oxfordshire County Council,5227,Other Transport Arrangements,15/02/2019,3110510046,525,Airport Transfers Banbury Ltd
http://statistics.data.gov.uk/id/local-authority/38,Oxfordshire County Council,5541,B*Foster Parents,06/02/2019,3110502993,525.31,Redacted Personal Data
http://statistics.data.gov.uk/id/local-authority/38,Oxfordshire County Council,5541,B*Foster Parents,13/02/2019,3110504502,525.31,Redacted Personal Data
http://statistics.data.gov.uk/id/local-authority/38,Oxfordshire County Council,5541,B*Foster Parents,20/02/2019,3110511245,525.31,Redacted Personal Data
http://statistics.data.gov.uk/id/local-authority/38,Oxfordshire County Council,5541,B*Foster Parents,27/02/2019,3110514366,525.31,Redacted Personal Data
http://statistics.data.gov.uk/id/local-authority/38,Oxfordshire County Council,5541,B*Foster Parents,06/02/2019,3110502828,525.31,Redacted Personal Data
http://statistics.data.gov.uk/id/local-authority/38,Oxfordshire County Council,5541,B*Foster Parents,13/02/2019,3110504368,525.31,Redacted Personal Data
http://statistics.data.gov.uk/id/local-authority/38,Oxfordshire County Council,5541,B*Foster Parents,20/02/2019,3110511129,525.31,Redacted Personal Data
http://statistics.data.gov.uk/id/local-authority/38,Oxfordshire County Council,5541,B*Foster Parents,27/02/2019,3110514218,525.31,Redacted Personal Data
http://statistics.data.gov.uk/id/local-authority/38,Oxfordshire County Council,5541,B*Foster Parents,06/02/2019,3110502907,525.31,Redacted Personal Data
http://statistics.data.gov.uk/id/local-authority/38,Oxfordshire County Council,5541,B*Foster Parents,13/02/2019,3110504417,525.31,Redacted Personal Data
http://statistics.data.gov.uk/id/local-authority/38,Oxfordshire County Council,5541,B*Foster Parents,20/02/2019,3110511202,525.31,Redacted Personal Data
http://statistics.data.gov.uk/id/local-authority/38,Oxfordshire County Council,5541,B*Foster Parents,27/02/2019,3110514305,525.31,Redacted Personal Data
http://statistics.data.gov.uk/id/local-authority/38,Oxfordshire County Council,5689,,05/02/2019,3110502468,527.62,Premier Personal Care
http://statistics.data.gov.uk/id/local-authority/38,Oxfordshire County Council,4495,IT Software,19/02/2019,2200605371,528,Bytes Software Services
http://statistics.data.gov.uk/id/local-authority/38,Oxfordshire County Council,5693,,27/02/2019,3110514528,528,Eaton Care Services
http://statistics.data.gov.uk/id/local-authority/38,Oxfordshire County Council,5899,Social Care - Direct Payments,19/02/2019,3110511864,528,Purple Conversation Com In Co (DP)
http://statistics.data.gov.uk/id/local-authority/38,Oxfordshire County Council,5899,Social Care - Direct Payments,19/02/2019,3110512092,528,Purple Conversation Com In Co (DP)
http://statistics.data.gov.uk/id/local-authority/38,Oxfordshire County Council,5899,Social Care - Direct Payments,19/02/2019,3110510351,528,Redacted Personal Data
http://statistics.data.gov.uk/id/local-authority/38,Oxfordshire County Council,4525,Furniture,06/02/2019,3110502968,529.02,Redacted Personal Data
http://statistics.data.gov.uk/id/local-authority/38,Oxfordshire County Council,5698,,27/02/2019,3110514919,529.12,Charterville Care At Home Ltd
http://statistics.data.gov.uk/id/local-authority/38,Oxfordshire County Council,5664,B*Holiday Allowance,06/02/2019,3110502855,529.56,Redacted Personal Data
http://statistics.data.gov.uk/id/local-authority/38,Oxfordshire County Council,5664,B*Holiday Allowance,13/02/2019,3110504514,529.56,Redacted Personal Data
http://statistics.data.gov.uk/id/local-authority/38,Oxfordshire County Council,5664,B*Holiday Allowance,20/02/2019,3110511017,529.56,Redacted Personal Data
http://statistics.data.gov.uk/id/local-authority/38,Oxfordshire County Council,5664,B*Holiday Allowance,27/02/2019,3110514289,529.56,Redacted Personal Data
http://statistics.data.gov.uk/id/local-authority/38,Oxfordshire County Council,5537,Payments to Other Establishments,27/02/2019,3110515475,529.92,Blewbury Pre-School Playgroup
http://statistics.data.gov.uk/id/local-authority/38,Oxfordshire County Council,5537,Payments to Other Establishments,27/02/2019,3110515615,529.92,Robin Playgroup
http://statistics.data.gov.uk/id/local-authority/38,Oxfordshire County Council,5696,,13/02/2019,3110505896,530.1,Optalis
http://statistics.data.gov.uk/id/local-authority/38,Oxfordshire County Council,5899,Social Care - Direct Payments,19/02/2019,3110511769,530.48,Purple Conversation Com In Co (DP)
http://statistics.data.gov.uk/id/local-authority/38,Oxfordshire County Council,5689,,05/02/2019,3110501632,530.49,Alina Homecare
http://statistics.data.gov.uk/id/local-authority/38,Oxfordshire County Council,5689,,05/02/2019,3110502118,530.6,Greigcare Home Service
http://statistics.data.gov.uk/id/local-authority/38,Oxfordshire County Council,5689,,05/02/2019,3110502445,530.71,PLL Care Services
http://statistics.data.gov.uk/id/local-authority/38,Oxfordshire County Council,5689,,05/02/2019,3110501815,531.03,Caremark (West Oxfordshire & Cherwe
http://statistics.data.gov.uk/id/local-authority/38,Oxfordshire County Council,5899,Social Care - Direct Payments,19/02/2019,3110511572,531.2,Purple Conversation Com In Co (DP)
http://statistics.data.gov.uk/id/local-authority/38,Oxfordshire County Council,4232,Vehicle Fuel,08/02/2019,2200601380,531.37,Allstar Business Solutions Ltd
http://statistics.data.gov.uk/id/local-authority/38,Oxfordshire County Council,5689,,05/02/2019,3110502532,531.39,Response Organisation
http://statistics.data.gov.uk/id/local-authority/38,Oxfordshire County Council,5689,,05/02/2019,3110502011,531.55,Day and Nightcare Assistance
http://statistics.data.gov.uk/id/local-authority/38,Oxfordshire County Council,5537,Payments to Other Establishments,18/02/2019,3110512377,531.96,Gillian Stannard
http://statistics.data.gov.uk/id/local-authority/38,Oxfordshire County Council,5899,Social Care - Direct Payments,19/02/2019,3110510603,532,Redacted Personal Data
http://statistics.data.gov.uk/id/local-authority/38,Oxfordshire County Council,5899,Social Care - Direct Payments,19/02/2019,3110511566,532,Purple Conversation Com In Co (DP)
http://statistics.data.gov.uk/id/local-authority/38,Oxfordshire County Council,5690,,13/02/2019,3110505095,532,Style Acre
http://statistics.data.gov.uk/id/local-authority/38,Oxfordshire County Council,5549,B*Fostering Allowance - Regulation 38,06/02/2019,3110502909,532.18,Redacted Personal Data
http://statistics.data.gov.uk/id/local-authority/38,Oxfordshire County Council,5549,B*Fostering Allowance - Regulation 38,13/02/2019,3110504418,532.18,Redacted Personal Data
http://statistics.data.gov.uk/id/local-authority/38,Oxfordshire County Council,5549,B*Fostering Allowance - Regulation 38,20/02/2019,3110511203,532.18,Redacted Personal Data
http://statistics.data.gov.uk/id/local-authority/38,Oxfordshire County Council,5549,B*Fostering Allowance - Regulation 38,27/02/2019,3110514306,532.18,Redacted Personal Data
http://statistics.data.gov.uk/id/local-authority/38,Oxfordshire County Council,5548,B*Fostering - Special Rates & Plus Amou,06/02/2019,3110502711,532.19,Redacted Personal Data
http://statistics.data.gov.uk/id/local-authority/38,Oxfordshire County Council,5548,B*Fostering - Special Rates & Plus Amou,06/02/2019,3110502601,532.19,Redacted Personal Data
http://statistics.data.gov.uk/id/local-authority/38,Oxfordshire County Council,5548,B*Fostering - Special Rates & Plus Amou,13/02/2019,3110504164,532.19,Redacted Personal Data
http://statistics.data.gov.uk/id/local-authority/38,Oxfordshire County Council,5548,B*Fostering - Special Rates & Plus Amou,20/02/2019,3110510804,532.19,Redacted Personal Data
http://statistics.data.gov.uk/id/local-authority/38,Oxfordshire County Council,5548,B*Fostering - Special Rates & Plus Amou,27/02/2019,3110514006,532.19,Redacted Personal Data
http://statistics.data.gov.uk/id/local-authority/38,Oxfordshire County Council,5548,B*Fostering - Special Rates & Plus Amou,06/02/2019,3110502732,532.19,Redacted Personal Data
http://statistics.data.gov.uk/id/local-authority/38,Oxfordshire County Council,5548,B*Fostering - Special Rates & Plus Amou,13/02/2019,3110504298,532.19,Redacted Personal Data
http://statistics.data.gov.uk/id/local-authority/38,Oxfordshire County Council,5548,B*Fostering - Special Rates & Plus Amou,20/02/2019,3110510970,532.19,Redacted Personal Data
http://statistics.data.gov.uk/id/local-authority/38,Oxfordshire County Council,5548,B*Fostering - Special Rates & Plus Amou,27/02/2019,3110514132,532.19,Redacted Personal Data
http://statistics.data.gov.uk/id/local-authority/38,Oxfordshire County Council,4539,"Books, DVDs and CDs",12/02/2019,3110503963,532.65,ASKEWS & HOLTS LIBRARY SERVICES LTD
http://statistics.data.gov.uk/id/local-authority/38,Oxfordshire County Council,4539,"Books, DVDs and CDs",07/02/2019,3110503499,532.95,ASKEWS & HOLTS LIBRARY SERVICES LTD
http://statistics.data.gov.uk/id/local-authority/38,Oxfordshire County Council,4861,Hired and Contracted Services,04/02/2019,2200598614,533,Chinnor Village Centre
http://statistics.data.gov.uk/id/local-authority/38,Oxfordshire County Council,5689,,05/02/2019,3110502427,533.52,PLL Care Services
http://statistics.data.gov.uk/id/local-authority/38,Oxfordshire County Council,5899,Social Care - Direct Payments,19/02/2019,3110512152,533.56,Purple Conversation Com In Co (DP)
http://statistics.data.gov.uk/id/local-authority/38,Oxfordshire County Council,5899,Social Care - Direct Payments,19/02/2019,3110512187,533.56,Purple Conversation Com In Co (DP)
http://statistics.data.gov.uk/id/local-authority/38,Oxfordshire County Council,5251,Legal Costs,01/02/2019,2200598578,533.63,DR A J WILKINS
http://statistics.data.gov.uk/id/local-authority/38,Oxfordshire County Council,5537,Payments to Other Establishments,22/02/2019,3110513766,533.75,St Gregory the Great
http://statistics.data.gov.uk/id/local-authority/38,Oxfordshire County Council,5899,Social Care - Direct Payments,19/02/2019,3110511719,533.84,Purple Conversation Com In Co (DP)
http://statistics.data.gov.uk/id/local-authority/38,Oxfordshire County Council,5693,,06/02/2019,3110503112,534.08,Helping Hands
http://statistics.data.gov.uk/id/local-authority/38,Oxfordshire County Council,5693,,27/02/2019,3110514553,534.08,Helping Hands
http://statistics.data.gov.uk/id/local-authority/38,Oxfordshire County Council,5689,,05/02/2019,3110502559,535.03,AVR (Oxon) Ltd
http://statistics.data.gov.uk/id/local-authority/38,Oxfordshire County Council,5689,,05/02/2019,3110501912,535.34,Oxfordshire Crossroads
http://statistics.data.gov.uk/id/local-authority/38,Oxfordshire County Council,5251,Legal Costs,13/02/2019,2200603575,535.5,DR A J WILKINS
http://statistics.data.gov.uk/id/local-authority/38,Oxfordshire County Council,5899,Social Care - Direct Payments,19/02/2019,3110511664,535.92,Purple Conversation Com In Co (DP)
http://statistics.data.gov.uk/id/local-authority/38,Oxfordshire County Council,5691,,18/02/2019,3110510194,535.98,Paterson Recruitment
http://statistics.data.gov.uk/id/local-authority/38,Oxfordshire County Council,5899,Social Care - Direct Payments,19/02/2019,3110510305,536,Redacted Personal Data
http://statistics.data.gov.uk/id/local-authority/38,Oxfordshire County Council,5899,Social Care - Direct Payments,19/02/2019,3110510382,536,Redacted Personal Data
http://statistics.data.gov.uk/id/local-authority/38,Oxfordshire County Council,5698,,27/02/2019,3110514781,536.23,Bridges Home Care Ltd
http://statistics.data.gov.uk/id/local-authority/38,Oxfordshire County Council,5573,,06/02/2019,3110502840,536.31,Redacted Personal Data
http://statistics.data.gov.uk/id/local-authority/38,Oxfordshire County Council,5573,,13/02/2019,3110504376,536.31,Redacted Personal Data
http://statistics.data.gov.uk/id/local-authority/38,Oxfordshire County Council,5689,,05/02/2019,3110502012,536.7,Day and Nightcare Assistance
http://statistics.data.gov.uk/id/local-authority/38,Oxfordshire County Council,5689,,05/02/2019,3110502021,536.7,Day and Nightcare Assistance
http://statistics.data.gov.uk/id/local-authority/38,Oxfordshire County Council,5689,,05/02/2019,3110501750,537.09,Caremark (West Oxfordshire & Cherwe
http://statistics.data.gov.uk/id/local-authority/38,Oxfordshire County Council,5689,,05/02/2019,3110502216,537.72,My Carer Ltd
http://statistics.data.gov.uk/id/local-authority/38,Oxfordshire County Council,5526,Payments to Private Contractors,27/02/2019,2200608418,538.01,Skanska Construction UK Ltd Sp
http://statistics.data.gov.uk/id/local-authority/38,Oxfordshire County Council,5689,,05/02/2019,3110501844,538.44,Caretree Ltd
http://statistics.data.gov.uk/id/local-authority/38,Oxfordshire County Council,5696,,21/02/2019,3110513331,538.51,Orders of St John Care Trust
http://statistics.data.gov.uk/id/local-authority/38,Oxfordshire County Council,5548,B*Fostering - Special Rates & Plus Amou,20/02/2019,3110510934,538.69,Redacted Personal Data
http://statistics.data.gov.uk/id/local-authority/38,Oxfordshire County Council,5698,,27/02/2019,3110514780,538.9,Bridges Home Care Ltd
http://statistics.data.gov.uk/id/local-authority/38,Oxfordshire County Council,5899,Social Care - Direct Payments,19/02/2019,3110511732,539,Purple Conversation Com In Co (DP)
http://statistics.data.gov.uk/id/local-authority/38,Oxfordshire County Council,5555,Payments to Carers,13/02/2019,3110505056,539.4,Redacted Personal Data
http://statistics.data.gov.uk/id/local-authority/38,Oxfordshire County Council,5227,Other Transport Arrangements,07/02/2019,3110503259,540,1St Taxis
http://statistics.data.gov.uk/id/local-authority/38,Oxfordshire County Council,5227,Other Transport Arrangements,20/02/2019,3110512960,540,A2B Castle Cars Ltd
http://statistics.data.gov.uk/id/local-authority/38,Oxfordshire County Council,5227,Other Transport Arrangements,14/02/2019,3110509814,540,ABC Travel(Wokingham) limited t/a A
http://statistics.data.gov.uk/id/local-authority/38,Oxfordshire County Council,5227,Other Transport Arrangements,26/02/2019,3110513959,540,C V OSullivan
http://statistics.data.gov.uk/id/local-authority/38,Oxfordshire County Council,5690,,13/02/2019,3110504688,540,H F TRUST LTD
http://statistics.data.gov.uk/id/local-authority/38,Oxfordshire County Council,5227,Other Transport Arrangements,13/02/2019,3110509313,540,Luxicars Ltd
http://statistics.data.gov.uk/id/local-authority/38,Oxfordshire County Council,5227,Other Transport Arrangements,13/02/2019,3110509319,540,Luxicars Ltd
http://statistics.data.gov.uk/id/local-authority/38,Oxfordshire County Council,5690,,13/02/2019,3110504876,540,MacIntyre Care (Womaston)
http://statistics.data.gov.uk/id/local-authority/38,Oxfordshire County Council,5690,,13/02/2019,3110504904,540,MacIntyre Care (Womaston)
http://statistics.data.gov.uk/id/local-authority/38,Oxfordshire County Council,5227,Other Transport Arrangements,13/02/2019,3110509398,540,Oxon Transport Services Ltd
http://statistics.data.gov.uk/id/local-authority/38,Oxfordshire County Council,5227,Other Transport Arrangements,13/02/2019,3110509405,540,Oxon Transport Services Ltd
http://statistics.data.gov.uk/id/local-authority/38,Oxfordshire County Council,5227,Other Transport Arrangements,13/02/2019,3110509480,540,Oxon Transport Services Ltd
http://statistics.data.gov.uk/id/local-authority/38,Oxfordshire County Council,5227,Other Transport Arrangements,13/02/2019,3110509488,540,Oxon Transport Services Ltd
http://statistics.data.gov.uk/id/local-authority/38,Oxfordshire County Council,5227,Other Transport Arrangements,13/02/2019,3110509492,540,Oxon Transport Services Ltd
http://statistics.data.gov.uk/id/local-authority/38,Oxfordshire County Council,5227,Other Transport Arrangements,13/02/2019,3110509527,540,Oxon Transport Services Ltd
http://statistics.data.gov.uk/id/local-authority/38,Oxfordshire County Council,5698,,27/02/2019,3110515054,540.21,Day & Night Care Assistance
http://statistics.data.gov.uk/id/local-authority/38,Oxfordshire County Council,5696,,21/02/2019,3110513489,540.31,Orders of St John Care Trust
http://statistics.data.gov.uk/id/local-authority/38,Oxfordshire County Council,4933,,01/02/2019,3110503728,540.8,27 Beaumont Street
http://statistics.data.gov.uk/id/local-authority/38,Oxfordshire County Council,4933,,01/02/2019,3110503731,540.8,Didcot Health Centre
http://statistics.data.gov.uk/id/local-authority/38,Oxfordshire County Council,4933,,01/02/2019,3110503741,540.8,The Hart Surgery
http://statistics.data.gov.uk/id/local-authority/38,Oxfordshire County Council,5689,,05/02/2019,3110501929,541,Oxfordshire Crossroads
http://statistics.data.gov.uk/id/local-authority/38,Oxfordshire County Council,5689,,05/02/2019,3110501982,541.21,Day and Nightcare Assistance
http://statistics.data.gov.uk/id/local-authority/38,Oxfordshire County Council,5689,,05/02/2019,3110502004,541.21,Day and Nightcare Assistance
http://statistics.data.gov.uk/id/local-authority/38,Oxfordshire County Council,5689,,05/02/2019,3110501739,541.25,Caremark (West Oxfordshire & Cherwe
http://statistics.data.gov.uk/id/local-authority/38,Oxfordshire County Council,5689,,05/02/2019,3110502073,541.85,Greigcare Home Service
http://statistics.data.gov.uk/id/local-authority/38,Oxfordshire County Council,5690,,13/02/2019,3110504758,542.01,OXFORD HEALTH NHS FOUNDATION TRUST
http://statistics.data.gov.uk/id/local-authority/38,Oxfordshire County Council,4665,Catering,06/02/2019,2200600018,542.1,Ann's Munchies Ltd
http://statistics.data.gov.uk/id/local-authority/38,Oxfordshire County Council,5692,,13/02/2019,3110508673,542.27,St. Lukes Oxford - Free Nursing
http://statistics.data.gov.uk/id/local-authority/38,Oxfordshire County Council,5668,Technical and Professional Consultant F,14/02/2019,2200604096,542.28,Ros Nicholson
http://statistics.data.gov.uk/id/local-authority/38,Oxfordshire County Council,5899,Social Care - Direct Payments,26/02/2019,3110513810,542.4,Redacted Personal Data
http://statistics.data.gov.uk/id/local-authority/38,Oxfordshire County Council,5899,Social Care - Direct Payments,26/02/2019,3110513832,543.55,Purple Conversation Com In Co (DP)
http://statistics.data.gov.uk/id/local-authority/38,Oxfordshire County Council,5689,,05/02/2019,3110502472,543.68,Premier Personal Care
http://statistics.data.gov.uk/id/local-authority/38,Oxfordshire County Council,5899,Social Care - Direct Payments,19/02/2019,3110510690,544,Redacted Personal Data
http://statistics.data.gov.uk/id/local-authority/38,Oxfordshire County Council,4933,,04/02/2019,3110501535,544,Nettlebed Surgery
http://statistics.data.gov.uk/id/local-authority/38,Oxfordshire County Council,4330,Transport to School Activities,07/02/2019,3110503433,544,S S Taxis
http://statistics.data.gov.uk/id/local-authority/38,Oxfordshire County Council,5227,Other Transport Arrangements,19/02/2019,3110510116,544,The Oxfordshire Taxi Company Ltd T/
http://statistics.data.gov.uk/id/local-authority/38,Oxfordshire County Council,5537,Payments to Other Establishments,18/02/2019,3110512716,544.05,New Marston School
http://statistics.data.gov.uk/id/local-authority/38,Oxfordshire County Council,5688,,13/02/2019,3110505673,544.12,The Laurels (Witney)
http://statistics.data.gov.uk/id/local-authority/38,Oxfordshire County Council,5227,Other Transport Arrangements,13/02/2019,3110509421,544.5,Oxon Transport Services Ltd
http://statistics.data.gov.uk/id/local-authority/38,Oxfordshire County Council,5227,Other Transport Arrangements,13/02/2019,3110509425,544.5,Oxon Transport Services Ltd
http://statistics.data.gov.uk/id/local-authority/38,Oxfordshire County Council,4685,Clothing and Uniforms,07/02/2019,9300037080,545,OCC SS Oxford City Div 1 Cash
http://statistics.data.gov.uk/id/local-authority/38,Oxfordshire County Council,5689,,05/02/2019,3110501968,545.08,Day and Nightcare Assistance
http://statistics.data.gov.uk/id/local-authority/38,Oxfordshire County Council,5251,Legal Costs,28/02/2019,2200608808,545.8,Communicourt Limited
http://statistics.data.gov.uk/id/local-authority/38,Oxfordshire County Council,5537,Payments to Other Establishments,27/02/2019,3110515640,546.48,St Peters Under 5s
http://statistics.data.gov.uk/id/local-authority/38,Oxfordshire County Council,5689,,05/02/2019,3110502430,546.86,PLL Care Services
http://statistics.data.gov.uk/id/local-authority/38,Oxfordshire County Council,5690,,13/02/2019,3110504923,547.04,MacIntyre Care (Womaston)
http://statistics.data.gov.uk/id/local-authority/38,Oxfordshire County Council,5696,,21/02/2019,3110513455,547.67,Orders of St John Care Trust
http://statistics.data.gov.uk/id/local-authority/38,Oxfordshire County Council,4705,Printing,07/02/2019,2200600939,547.83,ANNODATA BUSINESS COMMUNICATIONS
http://statistics.data.gov.uk/id/local-authority/38,Oxfordshire County Council,3942,Hire of Accommodation and Facilities,07/02/2019,2200601116,548,Hill End Outdoor Education
http://statistics.data.gov.uk/id/local-authority/38,Oxfordshire County Council,5899,Social Care - Direct Payments,19/02/2019,3110512190,548,Purple Conversation Com In Co (DP)
http://statistics.data.gov.uk/id/local-authority/38,Oxfordshire County Council,5690,,13/02/2019,3110504753,548.16,Life Path Trust Ltd
http://statistics.data.gov.uk/id/local-authority/38,Oxfordshire County Council,5690,,13/02/2019,3110504870,548.16,Life Path Trust Ltd
http://statistics.data.gov.uk/id/local-authority/38,Oxfordshire County Council,5689,,05/02/2019,3110501798,548.37,Caremark (West Oxfordshire & Cherwe
http://statistics.data.gov.uk/id/local-authority/38,Oxfordshire County Council,1448,Blackfield Inc & Exp A/c,14/02/2019,3110509677,548.48,OCC One Time Vendor
http://statistics.data.gov.uk/id/local-authority/38,Oxfordshire County Council,5689,,05/02/2019,3110502402,548.69,Oxford University Hospitals NHS FT
http://statistics.data.gov.uk/id/local-authority/38,Oxfordshire County Council,5698,,27/02/2019,3110515097,548.88,Day & Night Care Assistance
http://statistics.data.gov.uk/id/local-authority/38,Oxfordshire County Council,5899,Social Care - Direct Payments,19/02/2019,3110510398,549,Redacted Personal Data
http://statistics.data.gov.uk/id/local-authority/38,Oxfordshire County Council,5899,Social Care - Direct Payments,19/02/2019,3110511661,549,Purple Conversation Com In Co (DP)
http://statistics.data.gov.uk/id/local-authority/38,Oxfordshire County Council,5251,Legal Costs,01/02/2019,2200598527,550,Alex Perry
http://statistics.data.gov.uk/id/local-authority/38,Oxfordshire County Council,5251,Legal Costs,25/02/2019,2200606724,550,Alexander Forbes
http://statistics.data.gov.uk/id/local-authority/38,Oxfordshire County Council,5251,Legal Costs,26/02/2019,2200607452,550,Alexander Forbes
http://statistics.data.gov.uk/id/local-authority/38,Oxfordshire County Council,5251,Legal Costs,26/02/2019,2200607674,550,Alexander Forbes
http://statistics.data.gov.uk/id/local-authority/38,Oxfordshire County Council,5251,Legal Costs,11/02/2019,2200602102,550,Annie Sayers
http://statistics.data.gov.uk/id/local-authority/38,Oxfordshire County Council,5251,Legal Costs,26/02/2019,2200607339,550,Annie Sayers
http://statistics.data.gov.uk/id/local-authority/38,Oxfordshire County Council,8102,Payments to main contractor,06/02/2019,2200600387,550,Darke & Taylor Ltd
http://statistics.data.gov.uk/id/local-authority/38,Oxfordshire County Council,5251,Legal Costs,25/02/2019,2200606671,550,Eleanor Howard
http://statistics.data.gov.uk/id/local-authority/38,Oxfordshire County Council,5251,Legal Costs,27/02/2019,2200607817,550,Eleanor Howard
http://statistics.data.gov.uk/id/local-authority/38,Oxfordshire County Council,4940,Other Services,28/02/2019,3110515342,550,Faringdon Town Council
http://statistics.data.gov.uk/id/local-authority/38,Oxfordshire County Council,5251,Legal Costs,27/02/2019,2200607879,550,Frances Harris
http://statistics.data.gov.uk/id/local-authority/38,Oxfordshire County Council,5227,Other Transport Arrangements,15/02/2019,3110510037,550,Henley Taxis Ltd
http://statistics.data.gov.uk/id/local-authority/38,Oxfordshire County Council,5251,Legal Costs,08/02/2019,2200601544,550,James Dove
http://statistics.data.gov.uk/id/local-authority/38,Oxfordshire County Council,5251,Legal Costs,26/02/2019,2200607484,550,Kit Firbank
http://statistics.data.gov.uk/id/local-authority/38,Oxfordshire County Council,5251,Legal Costs,25/02/2019,2200606442,550,Miss Alison Williams
http://statistics.data.gov.uk/id/local-authority/38,Oxfordshire County Council,5251,Legal Costs,28/02/2019,2200608688,550,Miss Alison Williams
http://statistics.data.gov.uk/id/local-authority/38,Oxfordshire County Council,5251,Legal Costs,27/02/2019,2200608420,550,Miss Anna Yarde
http://statistics.data.gov.uk/id/local-authority/38,Oxfordshire County Council,5251,Legal Costs,27/02/2019,2200608415,550,Miss Chloe Wilkins
http://statistics.data.gov.uk/id/local-authority/38,Oxfordshire County Council,5251,Legal Costs,25/02/2019,2200606904,550,Miss Emily Rayner
http://statistics.data.gov.uk/id/local-authority/38,Oxfordshire County Council,5251,Legal Costs,26/02/2019,2200607403,550,Miss Emily Rayner
http://statistics.data.gov.uk/id/local-authority/38,Oxfordshire County Council,5251,Legal Costs,25/02/2019,2200606739,550,Ms Emma Gatland
http://statistics.data.gov.uk/id/local-authority/38,Oxfordshire County Council,5251,Legal Costs,26/02/2019,2200607371,550,Ms Emma Gatland
http://statistics.data.gov.uk/id/local-authority/38,Oxfordshire County Council,4790,"Publicity, Promotions and Advertisement",04/02/2019,3110501340,550,OCC One Time Vendor
http://statistics.data.gov.uk/id/local-authority/38,Oxfordshire County Council,4210,Vehicles and Plant - Repairs and Main,06/02/2019,2200600333,550,Oxford Direct Services
http://statistics.data.gov.uk/id/local-authority/38,Oxfordshire County Council,3103,Other Training Courses and Qualification,01/02/2019,2200598440,550,Premier Partnership
http://statistics.data.gov.uk/id/local-authority/38,Oxfordshire County Council,5251,Legal Costs,25/02/2019,2200606694,550,Stephen Crispin
http://statistics.data.gov.uk/id/local-authority/38,Oxfordshire County Council,4330,Transport to School Activities,19/02/2019,3110510102,550,The Oxfordshire Taxi Company Ltd T/
http://statistics.data.gov.uk/id/local-authority/38,Oxfordshire County Council,5251,Legal Costs,25/02/2019,2200606443,550,Vicky Reynolds
http://statistics.data.gov.uk/id/local-authority/38,Oxfordshire County Council,5251,Legal Costs,25/02/2019,2200606445,550,Vicky Reynolds
http://statistics.data.gov.uk/id/local-authority/38,Oxfordshire County Council,5251,Legal Costs,25/02/2019,2200606923,550,Vicky Reynolds
http://statistics.data.gov.uk/id/local-authority/38,Oxfordshire County Council,5251,Legal Costs,25/02/2019,2200607002,550,Vicky Reynolds
http://statistics.data.gov.uk/id/local-authority/38,Oxfordshire County Council,5691,,13/02/2019,3110509644,550.11,Charterville Care At Home Ltd
http://statistics.data.gov.uk/id/local-authority/38,Oxfordshire County Council,5698,,27/02/2019,3110514711,550.39,Acquire Care Ltd
http://statistics.data.gov.uk/id/local-authority/38,Oxfordshire County Council,5689,,05/02/2019,3110502313,550.69,Oxford University Hospitals NHS FT
http://statistics.data.gov.uk/id/local-authority/38,Oxfordshire County Council,4539,"Books, DVDs and CDs",07/02/2019,3110503473,550.91,ASKEWS & HOLTS LIBRARY SERVICES LTD
http://statistics.data.gov.uk/id/local-authority/38,Oxfordshire County Council,5537,Payments to Other Establishments,18/02/2019,3110512415,551.3,Jane Tate
http://statistics.data.gov.uk/id/local-authority/38,Oxfordshire County Council,5691,,06/02/2019,3110503287,551.58,Bluebird Care (Oxford South & West)
http://statistics.data.gov.uk/id/local-authority/38,Oxfordshire County Council,5691,,25/02/2019,3110513887,551.58,Bluebird Care (Oxford South & West)
http://statistics.data.gov.uk/id/local-authority/38,Oxfordshire County Council,5537,Payments to Other Establishments,27/02/2019,3110515559,552,Krakatoa Pre-School
http://statistics.data.gov.uk/id/local-authority/38,Oxfordshire County Council,5899,Social Care - Direct Payments,19/02/2019,3110510326,552,Redacted Personal Data
http://statistics.data.gov.uk/id/local-authority/38,Oxfordshire County Council,3787,Premises Repairs,07/02/2019,2200600717,552,Speedy Hire Centres (Southern) Ltd
http://statistics.data.gov.uk/id/local-authority/38,Oxfordshire County Council,5696,,21/02/2019,3110513336,552.09,Orders of St John Care Trust
http://statistics.data.gov.uk/id/local-authority/38,Oxfordshire County Council,5696,,21/02/2019,3110513338,552.09,Orders of St John Care Trust
http://statistics.data.gov.uk/id/local-authority/38,Oxfordshire County Council,5696,,21/02/2019,3110513340,552.09,Orders of St John Care Trust
http://statistics.data.gov.uk/id/local-authority/38,Oxfordshire County Council,5696,,21/02/2019,3110513344,552.09,Orders of St John Care Trust
http://statistics.data.gov.uk/id/local-authority/38,Oxfordshire County Council,5696,,21/02/2019,3110513387,552.09,Orders of St John Care Trust
http://statistics.data.gov.uk/id/local-authority/38,Oxfordshire County Council,5696,,21/02/2019,3110513544,552.09,Orders of St John Care Trust
http://statistics.data.gov.uk/id/local-authority/38,Oxfordshire County Council,5691,,01/02/2019,3110501286,552.6,Bluebird Care (Oxford South & West)
http://statistics.data.gov.uk/id/local-authority/38,Oxfordshire County Council,5691,,01/02/2019,3110501288,552.6,Bluebird Care (Oxford South & West)
http://statistics.data.gov.uk/id/local-authority/38,Oxfordshire County Council,5691,,06/02/2019,3110503285,552.6,Bluebird Care (Oxford South & West)
http://statistics.data.gov.uk/id/local-authority/38,Oxfordshire County Council,5691,,06/02/2019,3110503333,552.6,Bluebird Care (Oxford South & West)
http://statistics.data.gov.uk/id/local-authority/38,Oxfordshire County Council,5691,,11/02/2019,3110503798,552.6,Bluebird Care (Oxford South & West)
http://statistics.data.gov.uk/id/local-authority/38,Oxfordshire County Council,5691,,25/02/2019,3110513889,552.6,Bluebird Care (Oxford South & West)
http://statistics.data.gov.uk/id/local-authority/38,Oxfordshire County Council,5689,,05/02/2019,3110502477,553.08,Premier Personal Care
http://statistics.data.gov.uk/id/local-authority/38,Oxfordshire County Council,4934,,01/02/2019,3110503993,553.28,Boots the Chemist
http://statistics.data.gov.uk/id/local-authority/38,Oxfordshire County Council,4934,,01/02/2019,3110504031,553.28,Lloyds Pharmacy
http://statistics.data.gov.uk/id/local-authority/38,Oxfordshire County Council,5689,,05/02/2019,3110501593,553.49,Alina Homecare
http://statistics.data.gov.uk/id/local-authority/38,Oxfordshire County Council,5689,,05/02/2019,3110501966,553.65,Day and Nightcare Assistance
http://statistics.data.gov.uk/id/local-authority/38,Oxfordshire County Council,5537,Payments to Other Establishments,27/02/2019,3110515588,554.21,Middle Barton Pre-School
http://statistics.data.gov.uk/id/local-authority/38,Oxfordshire County Council,5537,Payments to Other Establishments,25/02/2019,3110513699,554.4,Cogges Under 5s Association
http://statistics.data.gov.uk/id/local-authority/38,Oxfordshire County Council,5227,Other Transport Arrangements,13/02/2019,3110509441,554.4,Oxon Transport Services Ltd
http://statistics.data.gov.uk/id/local-authority/38,Oxfordshire County Council,5899,Social Care - Direct Payments,19/02/2019,3110511607,555.2,Purple Conversation Com In Co (DP)
http://statistics.data.gov.uk/id/local-authority/38,Oxfordshire County Council,5691,,01/02/2019,3110501321,555.26,Bluebird Care (Oxford South & West)
http://statistics.data.gov.uk/id/local-authority/38,Oxfordshire County Council,5690,,13/02/2019,3110504854,555.28,Life Path Trust Ltd
http://statistics.data.gov.uk/id/local-authority/38,Oxfordshire County Council,5526,Payments to Private Contractors,04/02/2019,2200598784,555.52,FCC Environment (UK) Ltd
http://statistics.data.gov.uk/id/local-authority/38,Oxfordshire County Council,5682,,21/02/2019,3110513486,555.93,The Brandon Trust
http://statistics.data.gov.uk/id/local-authority/38,Oxfordshire County Council,5682,,21/02/2019,3110513593,555.93,The Brandon Trust
http://statistics.data.gov.uk/id/local-authority/38,Oxfordshire County Council,5899,Social Care - Direct Payments,19/02/2019,3110510343,556,Redacted Personal Data
http://statistics.data.gov.uk/id/local-authority/38,Oxfordshire County Council,5689,,05/02/2019,3110502005,556.03,Day and Nightcare Assistance
http://statistics.data.gov.uk/id/local-authority/38,Oxfordshire County Council,5537,Payments to Other Establishments,27/02/2019,3110515538,556.42,Hanborough Pre-School
http://statistics.data.gov.uk/id/local-authority/38,Oxfordshire County Council,5696,,21/02/2019,3110513434,556.51,Orders of St John Care Trust
http://statistics.data.gov.uk/id/local-authority/38,Oxfordshire County Council,5682,,21/02/2019,3110513527,556.9,The Brandon Trust
http://statistics.data.gov.uk/id/local-authority/38,Oxfordshire County Council,4539,"Books, DVDs and CDs",07/02/2019,3110503523,557.09,ASKEWS & HOLTS LIBRARY SERVICES LTD
http://statistics.data.gov.uk/id/local-authority/38,Oxfordshire County Council,5681,,13/02/2019,3110506812,557.14,Enstone House
http://statistics.data.gov.uk/id/local-authority/38,Oxfordshire County Council,5687,,13/02/2019,3110508483,557.14,Rushcourt Nursing Home
http://statistics.data.gov.uk/id/local-authority/38,Oxfordshire County Council,5899,Social Care - Direct Payments,19/02/2019,3110511403,557.6,Purple Conversation Com In Co (DP)
http://statistics.data.gov.uk/id/local-authority/38,Oxfordshire County Council,5698,,27/02/2019,3110514844,557.9,Charterville Care At Home Ltd
http://statistics.data.gov.uk/id/local-authority/38,Oxfordshire County Council,5899,Social Care - Direct Payments,19/02/2019,3110510445,558,Redacted Personal Data
http://statistics.data.gov.uk/id/local-authority/38,Oxfordshire County Council,3787,Premises Repairs,14/02/2019,2200603630,558,SI Pumps Ltd
http://statistics.data.gov.uk/id/local-authority/38,Oxfordshire County Council,5689,,05/02/2019,3110502028,558.01,DoCare Ltd
http://statistics.data.gov.uk/id/local-authority/38,Oxfordshire County Council,5668,Technical and Professional Consultant F,21/02/2019,2200606038,558.35,Sandra Woodward
http://statistics.data.gov.uk/id/local-authority/38,Oxfordshire County Council,5691,,05/02/2019,3110501455,560,Oasis Private Care Ltd
http://statistics.data.gov.uk/id/local-authority/38,Oxfordshire County Council,5691,,20/02/2019,3110513478,560,Oasis Private Care Ltd
http://statistics.data.gov.uk/id/local-authority/38,Oxfordshire County Council,5691,,20/02/2019,3110513481,560,Oasis Private Care Ltd
http://statistics.data.gov.uk/id/local-authority/38,Oxfordshire County Council,5691,,26/02/2019,3110514482,560,Oasis Private Care Ltd
http://statistics.data.gov.uk/id/local-authority/38,Oxfordshire County Council,5227,Other Transport Arrangements,13/02/2019,3110509390,560,Oxon Transport Services Ltd
http://statistics.data.gov.uk/id/local-authority/38,Oxfordshire County Council,4330,Transport to School Activities,13/02/2019,3110509502,560,Oxon Transport Services Ltd
http://statistics.data.gov.uk/id/local-authority/38,Oxfordshire County Council,5899,Social Care - Direct Payments,19/02/2019,3110511534,560,Purple Conversation Com In Co (DP)
http://statistics.data.gov.uk/id/local-authority/38,Oxfordshire County Council,5899,Social Care - Direct Payments,19/02/2019,3110511635,560,Purple Conversation Com In Co (DP)
http://statistics.data.gov.uk/id/local-authority/38,Oxfordshire County Council,5899,Social Care - Direct Payments,19/02/2019,3110511750,560,Purple Conversation Com In Co (DP)
http://statistics.data.gov.uk/id/local-authority/38,Oxfordshire County Council,5899,Social Care - Direct Payments,19/02/2019,3110511839,560,Purple Conversation Com In Co (DP)
http://statistics.data.gov.uk/id/local-authority/38,Oxfordshire County Council,5899,Social Care - Direct Payments,19/02/2019,3110511952,560,Purple Conversation Com In Co (DP)
http://statistics.data.gov.uk/id/local-authority/38,Oxfordshire County Council,5899,Social Care - Direct Payments,19/02/2019,3110511976,560,Purple Conversation Com In Co (DP)
http://statistics.data.gov.uk/id/local-authority/38,Oxfordshire County Council,5899,Social Care - Direct Payments,19/02/2019,3110512103,560,Purple Conversation Com In Co (DP)
http://statistics.data.gov.uk/id/local-authority/38,Oxfordshire County Council,5899,Social Care - Direct Payments,19/02/2019,3110512124,560,Purple Conversation Com In Co (DP)
http://statistics.data.gov.uk/id/local-authority/38,Oxfordshire County Council,8004,Design Consultant,27/02/2019,2200608307,560.04,Skanska Construction UK Ltd Sp
http://statistics.data.gov.uk/id/local-authority/38,Oxfordshire County Council,5227,Other Transport Arrangements,20/02/2019,3110512915,560.5,Thunderbird Transport Ltd
http://statistics.data.gov.uk/id/local-authority/38,Oxfordshire County Council,5686,,13/02/2019,3110507907,560.57,Orders of St John
http://statistics.data.gov.uk/id/local-authority/38,Oxfordshire County Council,5698,,27/02/2019,3110514953,560.6,Day & Night Care Assistance
http://statistics.data.gov.uk/id/local-authority/38,Oxfordshire County Council,4933,,04/02/2019,3110501558,561,27 Beaumont Street
http://statistics.data.gov.uk/id/local-authority/38,Oxfordshire County Council,5227,Other Transport Arrangements,12/02/2019,3110504121,561,Toots Taxis
http://statistics.data.gov.uk/id/local-authority/38,Oxfordshire County Council,5698,,27/02/2019,3110514877,561.35,Charterville Care At Home Ltd
http://statistics.data.gov.uk/id/local-authority/38,Oxfordshire County Council,5899,Social Care - Direct Payments,19/02/2019,3110512039,561.44,Purple Conversation Com In Co (DP)
http://statistics.data.gov.uk/id/local-authority/38,Oxfordshire County Council,5552,B*Fostering - Retainer Fee,06/02/2019,3110502958,562.05,Redacted Personal Data
http://statistics.data.gov.uk/id/local-authority/38,Oxfordshire County Council,5552,B*Fostering - Retainer Fee,13/02/2019,3110504465,562.05,Redacted Personal Data
http://statistics.data.gov.uk/id/local-authority/38,Oxfordshire County Council,5552,B*Fostering - Retainer Fee,20/02/2019,3110511228,562.05,Redacted Personal Data
http://statistics.data.gov.uk/id/local-authority/38,Oxfordshire County Council,5552,B*Fostering - Retainer Fee,27/02/2019,3110514341,562.05,Redacted Personal Data
http://statistics.data.gov.uk/id/local-authority/38,Oxfordshire County Council,5526,Payments to Private Contractors,04/02/2019,2200598797,562.57,GRUNDON WASTE MANAGEMENT LTD
http://statistics.data.gov.uk/id/local-authority/38,Oxfordshire County Council,5698,,27/02/2019,3110515002,562.77,Day & Night Care Assistance
http://statistics.data.gov.uk/id/local-authority/38,Oxfordshire County Council,5537,Payments to Other Establishments,27/02/2019,3110515472,563.04,Begbroke Playgroup
http://statistics.data.gov.uk/id/local-authority/38,Oxfordshire County Council,5682,,21/02/2019,3110513549,563.32,The Brandon Trust
http://statistics.data.gov.uk/id/local-authority/38,Oxfordshire County Council,5698,,27/02/2019,3110514697,563.42,Acquire Care Ltd
http://statistics.data.gov.uk/id/local-authority/38,Oxfordshire County Council,5689,,05/02/2019,3110502143,563.68,MiHomecare Ltd
http://statistics.data.gov.uk/id/local-authority/38,Oxfordshire County Council,5899,Social Care - Direct Payments,19/02/2019,3110511463,564,Purple Conversation Com In Co (DP)
http://statistics.data.gov.uk/id/local-authority/38,Oxfordshire County Council,5899,Social Care - Direct Payments,19/02/2019,3110511841,564,Purple Conversation Com In Co (DP)
http://statistics.data.gov.uk/id/local-authority/38,Oxfordshire County Council,4539,"Books, DVDs and CDs",07/02/2019,3110503517,564.02,ASKEWS & HOLTS LIBRARY SERVICES LTD
http://statistics.data.gov.uk/id/local-authority/38,Oxfordshire County Council,5899,Social Care - Direct Payments,26/02/2019,3110513780,564.2,Redacted Personal Data
http://statistics.data.gov.uk/id/local-authority/38,Oxfordshire County Council,5899,Social Care - Direct Payments,26/02/2019,3110513843,564.2,Purple Conversation Com In Co (DP)
http://statistics.data.gov.uk/id/local-authority/38,Oxfordshire County Council,5899,Social Care - Direct Payments,26/02/2019,3110513781,564.2,Redacted Personal Data
http://statistics.data.gov.uk/id/local-authority/38,Oxfordshire County Council,5696,,21/02/2019,3110513372,565.34,Orders of St John Care Trust
http://statistics.data.gov.uk/id/local-authority/38,Oxfordshire County Council,5690,,13/02/2019,3110504667,565.44,Mencap Contracts
http://statistics.data.gov.uk/id/local-authority/38,Oxfordshire County Council,5690,,13/02/2019,3110504673,565.44,Mencap Contracts
http://statistics.data.gov.uk/id/local-authority/38,Oxfordshire County Council,5688,,13/02/2019,3110506266,565.44,Mencap Contracts
http://statistics.data.gov.uk/id/local-authority/38,Oxfordshire County Council,5688,,13/02/2019,3110506378,565.44,Mencap Contracts
http://statistics.data.gov.uk/id/local-authority/38,Oxfordshire County Council,5688,,13/02/2019,3110506432,565.44,Mencap Contracts
http://statistics.data.gov.uk/id/local-authority/38,Oxfordshire County Council,5696,,13/02/2019,3110505894,565.44,Optalis
http://statistics.data.gov.uk/id/local-authority/38,Oxfordshire County Council,5688,,13/02/2019,3110506463,565.44,Real Life Options
http://statistics.data.gov.uk/id/local-authority/38,Oxfordshire County Council,5899,Social Care - Direct Payments,19/02/2019,3110510775,565.88,Redacted Personal Data
http://statistics.data.gov.uk/id/local-authority/38,Oxfordshire County Council,5899,Social Care - Direct Payments,19/02/2019,3110511586,566,Purple Conversation Com In Co (DP)
http://statistics.data.gov.uk/id/local-authority/38,Oxfordshire County Council,5573,,06/02/2019,3110502950,566.01,Redacted Personal Data
http://statistics.data.gov.uk/id/local-authority/38,Oxfordshire County Council,5573,,13/02/2019,3110504458,566.01,Redacted Personal Data
http://statistics.data.gov.uk/id/local-authority/38,Oxfordshire County Council,5558,,12/02/2019,2200603012,567,HM PRISON SERVICE SHARED SERVICES
http://statistics.data.gov.uk/id/local-authority/38,Oxfordshire County Council,4940,Other Services,22/02/2019,3110513653,567,Longworth Village Hall Management
http://statistics.data.gov.uk/id/local-authority/38,Oxfordshire County Council,4539,"Books, DVDs and CDs",04/02/2019,2200598718,567.3,DX Network Services Ltd
http://statistics.data.gov.uk/id/local-authority/38,Oxfordshire County Council,5526,Payments to Private Contractors,27/02/2019,2200608337,567.42,Skanska Construction UK Ltd Sp
http://statistics.data.gov.uk/id/local-authority/38,Oxfordshire County Council,5899,Social Care - Direct Payments,19/02/2019,3110510730,567.6,Redacted Personal Data
http://statistics.data.gov.uk/id/local-authority/38,Oxfordshire County Council,5689,,05/02/2019,3110502032,567.83,DoCare Ltd
http://statistics.data.gov.uk/id/local-authority/38,Oxfordshire County Council,5899,Social Care - Direct Payments,19/02/2019,3110510551,567.84,Redacted Personal Data
http://statistics.data.gov.uk/id/local-authority/38,Oxfordshire County Council,5899,Social Care - Direct Payments,19/02/2019,3110511602,568,Purple Conversation Com In Co (DP)
http://statistics.data.gov.uk/id/local-authority/38,Oxfordshire County Council,5689,,05/02/2019,3110502097,568.79,Greigcare Home Service
http://statistics.data.gov.uk/id/local-authority/38,Oxfordshire County Council,4685,Clothing and Uniforms,08/02/2019,9300037138,568.98,OCC SS Oxford City Div 1 Cash
http://statistics.data.gov.uk/id/local-authority/38,Oxfordshire County Council,5698,,27/02/2019,3110514922,569.03,Charterville Care At Home Ltd
http://statistics.data.gov.uk/id/local-authority/38,Oxfordshire County Council,4111,Security Costs,05/02/2019,3110501454,569.4,Barnewood Limited
http://statistics.data.gov.uk/id/local-authority/38,Oxfordshire County Council,5559,,25/02/2019,2200606429,569.97,Compass Fostering South Limited
http://statistics.data.gov.uk/id/local-authority/38,Oxfordshire County Council,5227,Other Transport Arrangements,15/02/2019,3110509935,570,A2B Castle Cars Ltd
http://statistics.data.gov.uk/id/local-authority/38,Oxfordshire County Council,5227,Other Transport Arrangements,13/02/2019,3110509321,570,Luxicars Ltd
http://statistics.data.gov.uk/id/local-authority/38,Oxfordshire County Council,5227,Other Transport Arrangements,20/02/2019,3110512904,570,Thunderbird Transport Ltd
http://statistics.data.gov.uk/id/local-authority/38,Oxfordshire County Council,1448,Blackfield Inc & Exp A/c,18/02/2019,3110510063,570.19,OCC One Time Vendor
http://statistics.data.gov.uk/id/local-authority/38,Oxfordshire County Council,4407,Equipment,06/02/2019,2200600063,570.24,Boc Ltd
http://statistics.data.gov.uk/id/local-authority/38,Oxfordshire County Council,3787,Premises Repairs,14/02/2019,2200603628,570.6,Whitco Catering & Bakery Equipment
http://statistics.data.gov.uk/id/local-authority/38,Oxfordshire County Council,5698,,27/02/2019,3110514649,570.61,Acquire Care Ltd
http://statistics.data.gov.uk/id/local-authority/38,Oxfordshire County Council,4210,Vehicles and Plant - Repairs and Main,06/02/2019,2200600328,570.7,Oxford Direct Services
http://statistics.data.gov.uk/id/local-authority/38,Oxfordshire County Council,5899,Social Care - Direct Payments,19/02/2019,3110511521,571.2,Purple Conversation Com In Co (DP)
http://statistics.data.gov.uk/id/local-authority/38,Oxfordshire County Council,5899,Social Care - Direct Payments,19/02/2019,3110512162,571.2,Purple Conversation Com In Co (DP)
http://statistics.data.gov.uk/id/local-authority/38,Oxfordshire County Council,5548,B*Fostering - Special Rates & Plus Amou,06/02/2019,3110502709,571.45,Redacted Personal Data
http://statistics.data.gov.uk/id/local-authority/38,Oxfordshire County Council,5548,B*Fostering - Special Rates & Plus Amou,13/02/2019,3110504278,571.45,Redacted Personal Data
http://statistics.data.gov.uk/id/local-authority/38,Oxfordshire County Council,5548,B*Fostering - Special Rates & Plus Amou,20/02/2019,3110510931,571.45,Redacted Personal Data
http://statistics.data.gov.uk/id/local-authority/38,Oxfordshire County Council,5548,B*Fostering - Special Rates & Plus Amou,27/02/2019,3110514116,571.45,Redacted Personal Data
http://statistics.data.gov.uk/id/local-authority/38,Oxfordshire County Council,5689,,05/02/2019,3110501733,571.89,Caremark (West Oxfordshire & Cherwe
http://statistics.data.gov.uk/id/local-authority/38,Oxfordshire County Council,5899,Social Care - Direct Payments,19/02/2019,3110510350,572,Redacted Personal Data
http://statistics.data.gov.uk/id/local-authority/38,Oxfordshire County Council,5227,Other Transport Arrangements,13/02/2019,3110509444,572,Oxon Transport Services Ltd
http://statistics.data.gov.uk/id/local-authority/38,Oxfordshire County Council,5899,Social Care - Direct Payments,19/02/2019,3110511360,572,Purple Conversation Com In Co (DP)
http://statistics.data.gov.uk/id/local-authority/38,Oxfordshire County Council,5227,Other Transport Arrangements,11/02/2019,3110503631,572,The Oxford Minibus Company Ltd
http://statistics.data.gov.uk/id/local-authority/38,Oxfordshire County Council,5251,Legal Costs,26/02/2019,2200607345,572.75,PM Psychology
http://statistics.data.gov.uk/id/local-authority/38,Oxfordshire County Council,5682,,21/02/2019,3110513523,573.09,The Brandon Trust
http://statistics.data.gov.uk/id/local-authority/38,Oxfordshire County Council,5698,,27/02/2019,3110514691,573.31,Acquire Care Ltd
http://statistics.data.gov.uk/id/local-authority/38,Oxfordshire County Council,5696,,06/02/2019,3110503158,573.44,Orders of St John Care Trust
http://statistics.data.gov.uk/id/local-authority/38,Oxfordshire County Council,5698,,27/02/2019,3110515297,573.48,Oxford Private Care
http://statistics.data.gov.uk/id/local-authority/38,Oxfordshire County Council,5899,Social Care - Direct Payments,19/02/2019,3110510328,573.84,Redacted Personal Data
http://statistics.data.gov.uk/id/local-authority/38,Oxfordshire County Council,5696,,21/02/2019,3110513547,574.18,Orders of St John Care Trust
http://statistics.data.gov.uk/id/local-authority/38,Oxfordshire County Council,5899,Social Care - Direct Payments,19/02/2019,3110510345,574.6,Redacted Personal Data
http://statistics.data.gov.uk/id/local-authority/38,Oxfordshire County Council,4070,Cleaning services,01/02/2019,2200598553,575,Frazer's of Oxford Ltd
http://statistics.data.gov.uk/id/local-authority/38,Oxfordshire County Council,5251,Legal Costs,28/02/2019,2200609088,575,Stephen Crispin
http://statistics.data.gov.uk/id/local-authority/38,Oxfordshire County Council,3103,Other Training Courses and Qualification,11/02/2019,2200602461,575,Unipart Group Ltd
http://statistics.data.gov.uk/id/local-authority/38,Oxfordshire County Council,5899,Social Care - Direct Payments,19/02/2019,3110510465,575.2,Redacted Personal Data
http://statistics.data.gov.uk/id/local-authority/38,Oxfordshire County Council,5688,,13/02/2019,3110509269,575.36,Orders of St John Care Trust
http://statistics.data.gov.uk/id/local-authority/38,Oxfordshire County Council,2040,Agency Staff,27/02/2019,2200607828,575.82,Completely Care Ltd
http://statistics.data.gov.uk/id/local-authority/38,Oxfordshire County Council,5698,,27/02/2019,3110514920,575.97,Charterville Care At Home Ltd
http://statistics.data.gov.uk/id/local-authority/38,Oxfordshire County Council,5227,Other Transport Arrangements,07/02/2019,3110503257,576,1St Taxis
http://statistics.data.gov.uk/id/local-authority/38,Oxfordshire County Council,4330,Transport to School Activities,15/02/2019,3110509942,576,Courtesy Cars
http://statistics.data.gov.uk/id/local-authority/38,Oxfordshire County Council,5690,,13/02/2019,3110504901,576,MacIntyre Care (Womaston)
http://statistics.data.gov.uk/id/local-authority/38,Oxfordshire County Council,5899,Social Care - Direct Payments,19/02/2019,3110511322,576,Purple Conversation Com In Co (DP)
http://statistics.data.gov.uk/id/local-authority/38,Oxfordshire County Council,5899,Social Care - Direct Payments,19/02/2019,3110511509,576,Purple Conversation Com In Co (DP)
http://statistics.data.gov.uk/id/local-authority/38,Oxfordshire County Council,5664,B*Holiday Allowance,06/02/2019,3110503004,576.02,Redacted Personal Data
http://statistics.data.gov.uk/id/local-authority/38,Oxfordshire County Council,5664,B*Holiday Allowance,13/02/2019,3110504607,576.02,Redacted Personal Data
http://statistics.data.gov.uk/id/local-authority/38,Oxfordshire County Council,5664,B*Holiday Allowance,20/02/2019,3110511137,576.02,Redacted Personal Data
http://statistics.data.gov.uk/id/local-authority/38,Oxfordshire County Council,5664,B*Holiday Allowance,27/02/2019,3110514437,576.02,Redacted Personal Data
http://statistics.data.gov.uk/id/local-authority/38,Oxfordshire County Council,5899,Social Care - Direct Payments,19/02/2019,3110511280,576.04,Purple Conversation Com In Co (DP)
http://statistics.data.gov.uk/id/local-authority/38,Oxfordshire County Council,5696,,21/02/2019,3110513423,576.23,Orders of St John Care Trust
http://statistics.data.gov.uk/id/local-authority/38,Oxfordshire County Council,5689,,05/02/2019,3110502513,576.59,Response Organisation
http://statistics.data.gov.uk/id/local-authority/38,Oxfordshire County Council,5899,Social Care - Direct Payments,19/02/2019,3110511313,576.8,Purple Conversation Com In Co (DP)
http://statistics.data.gov.uk/id/local-authority/38,Oxfordshire County Council,5698,,27/02/2019,3110514677,576.9,Acquire Care Ltd
http://statistics.data.gov.uk/id/local-authority/38,Oxfordshire County Council,5227,Other Transport Arrangements,20/02/2019,3110511179,577.11,Redacted Personal Data
http://statistics.data.gov.uk/id/local-authority/38,Oxfordshire County Council,5698,,27/02/2019,3110515222,577.45,Oxford Private Care
http://statistics.data.gov.uk/id/local-authority/38,Oxfordshire County Council,5548,B*Fostering - Special Rates & Plus Amou,27/02/2019,3110514117,577.66,Redacted Personal Data
http://statistics.data.gov.uk/id/local-authority/38,Oxfordshire County Council,5682,,21/02/2019,3110513529,577.9,The Brandon Trust
http://statistics.data.gov.uk/id/local-authority/38,Oxfordshire County Council,5688,,13/02/2019,3110509267,577.96,Orders of St John Care Trust
http://statistics.data.gov.uk/id/local-authority/38,Oxfordshire County Council,4330,Transport to School Activities,14/02/2019,3110509852,578,001 Alpha Cars Ltd
http://statistics.data.gov.uk/id/local-authority/38,Oxfordshire County Council,4933,,04/02/2019,3110501541,578,Berinsfield Health Centre
http://statistics.data.gov.uk/id/local-authority/38,Oxfordshire County Council,4933,,04/02/2019,3110501556,578,Burford Surgery
http://statistics.data.gov.uk/id/local-authority/38,Oxfordshire County Council,4933,,04/02/2019,3110501563,578,East Oxford Health Centre
http://statistics.data.gov.uk/id/local-authority/38,Oxfordshire County Council,5698,,27/02/2019,3110514884,578.55,Charterville Care At Home Ltd
http://statistics.data.gov.uk/id/local-authority/38,Oxfordshire County Council,5686,,13/02/2019,3110506340,578.57,TLC Group
http://statistics.data.gov.uk/id/local-authority/38,Oxfordshire County Council,5689,,05/02/2019,3110502439,578.8,PLL Care Services
http://statistics.data.gov.uk/id/local-authority/38,Oxfordshire County Council,5698,,27/02/2019,3110515241,579.21,Oxford Private Care
http://statistics.data.gov.uk/id/local-authority/38,Oxfordshire County Council,5537,Payments to Other Establishments,27/02/2019,3110515490,579.6,Camilla Collins
http://statistics.data.gov.uk/id/local-authority/38,Oxfordshire County Council,5899,Social Care - Direct Payments,19/02/2019,3110511359,580,Purple Conversation Com In Co (DP)
http://statistics.data.gov.uk/id/local-authority/38,Oxfordshire County Council,5899,Social Care - Direct Payments,19/02/2019,3110511665,580,Purple Conversation Com In Co (DP)
http://statistics.data.gov.uk/id/local-authority/38,Oxfordshire County Council,4330,Transport to School Activities,14/02/2019,3110509543,580,The Oxfordshire Taxi Company Ltd T/
http://statistics.data.gov.uk/id/local-authority/38,Oxfordshire County Council,5537,Payments to Other Establishments,18/02/2019,3110512230,580.32,Redacted Personal Data
http://statistics.data.gov.uk/id/local-authority/38,Oxfordshire County Council,5537,Payments to Other Establishments,18/02/2019,3110512231,580.32,Alison Kennet
http://statistics.data.gov.uk/id/local-authority/38,Oxfordshire County Council,5537,Payments to Other Establishments,18/02/2019,3110512236,580.32,Amanda Sinclair
http://statistics.data.gov.uk/id/local-authority/38,Oxfordshire County Council,5537,Payments to Other Establishments,18/02/2019,3110512287,580.32,Carol Wakelin
http://statistics.data.gov.uk/id/local-authority/38,Oxfordshire County Council,5537,Payments to Other Establishments,18/02/2019,3110512393,580.32,Helen Dimmick
http://statistics.data.gov.uk/id/local-authority/38,Oxfordshire County Council,5537,Payments to Other Establishments,18/02/2019,3110512408,580.32,Jackie Forrester
http://statistics.data.gov.uk/id/local-authority/38,Oxfordshire County Council,5537,Payments to Other Establishments,18/02/2019,3110512409,580.32,Jackie Jones
http://statistics.data.gov.uk/id/local-authority/38,Oxfordshire County Council,5537,Payments to Other Establishments,18/02/2019,3110512420,580.32,Jolandi Hester
http://statistics.data.gov.uk/id/local-authority/38,Oxfordshire County Council,5537,Payments to Other Establishments,18/02/2019,3110512423,580.32,Julie Harvey
http://statistics.data.gov.uk/id/local-authority/38,Oxfordshire County Council,5537,Payments to Other Establishments,18/02/2019,3110512424,580.32,Julie Powell
http://statistics.data.gov.uk/id/local-authority/38,Oxfordshire County Council,5537,Payments to Other Establishments,18/02/2019,3110512435,580.32,Katrina Treen
http://statistics.data.gov.uk/id/local-authority/38,Oxfordshire County Council,5537,Payments to Other Establishments,18/02/2019,3110512439,580.32,Kerry Lydiate
http://statistics.data.gov.uk/id/local-authority/38,Oxfordshire County Council,5537,Payments to Other Establishments,18/02/2019,3110512458,580.32,Lisa Rafferty
http://statistics.data.gov.uk/id/local-authority/38,Oxfordshire County Council,5537,Payments to Other Establishments,18/02/2019,3110512477,580.32,Lorraine Walls
http://statistics.data.gov.uk/id/local-authority/38,Oxfordshire County Council,5537,Payments to Other Establishments,18/02/2019,3110512479,580.32,Louise Gomersall
http://statistics.data.gov.uk/id/local-authority/38,Oxfordshire County Council,5537,Payments to Other Establishments,18/02/2019,3110512480,580.32,Lucy Dyer
http://statistics.data.gov.uk/id/local-authority/38,Oxfordshire County Council,5537,Payments to Other Establishments,18/02/2019,3110512558,580.32,Mrs Ruth Brown
http://statistics.data.gov.uk/id/local-authority/38,Oxfordshire County Council,5537,Payments to Other Establishments,18/02/2019,3110512501,580.32,Natalie Took
http://statistics.data.gov.uk/id/local-authority/38,Oxfordshire County Council,5537,Payments to Other Establishments,18/02/2019,3110512548,580.32,Rebecca Aldred
http://statistics.data.gov.uk/id/local-authority/38,Oxfordshire County Council,5537,Payments to Other Establishments,18/02/2019,3110512561,580.32,Sally Anne Skellington
http://statistics.data.gov.uk/id/local-authority/38,Oxfordshire County Council,5537,Payments to Other Establishments,18/02/2019,3110512567,580.32,Samantha Smith
http://statistics.data.gov.uk/id/local-authority/38,Oxfordshire County Council,5537,Payments to Other Establishments,18/02/2019,3110512577,580.32,Sharon Harrison
http://statistics.data.gov.uk/id/local-authority/38,Oxfordshire County Council,5537,Payments to Other Establishments,18/02/2019,3110512578,580.32,Sharon Humphrey
http://statistics.data.gov.uk/id/local-authority/38,Oxfordshire County Council,5537,Payments to Other Establishments,18/02/2019,3110512580,580.32,Sheila Jones
http://statistics.data.gov.uk/id/local-authority/38,Oxfordshire County Council,5537,Payments to Other Establishments,18/02/2019,3110512679,580.32,Tracey Tricker
http://statistics.data.gov.uk/id/local-authority/38,Oxfordshire County Council,5537,Payments to Other Establishments,18/02/2019,3110512694,580.32,Wendy K Rakela
http://statistics.data.gov.uk/id/local-authority/38,Oxfordshire County Council,5537,Payments to Other Establishments,18/02/2019,3110512713,580.32,Zoe Heaton
http://statistics.data.gov.uk/id/local-authority/38,Oxfordshire County Council,5549,B*Fostering Allowance - Regulation 38,06/02/2019,3110502976,581.54,Redacted Personal Data
http://statistics.data.gov.uk/id/local-authority/38,Oxfordshire County Council,5549,B*Fostering Allowance - Regulation 38,13/02/2019,3110504483,581.54,Redacted Personal Data
http://statistics.data.gov.uk/id/local-authority/38,Oxfordshire County Council,5549,B*Fostering Allowance - Regulation 38,27/02/2019,3110514353,581.54,Redacted Personal Data
http://statistics.data.gov.uk/id/local-authority/38,Oxfordshire County Council,4525,Furniture,19/02/2019,3110510229,582,OCC One Time Vendor
http://statistics.data.gov.uk/id/local-authority/38,Oxfordshire County Council,5698,,27/02/2019,3110515014,582.29,Day & Night Care Assistance
http://statistics.data.gov.uk/id/local-authority/38,Oxfordshire County Council,5698,,27/02/2019,3110515294,582.3,Oxford Private Care
http://statistics.data.gov.uk/id/local-authority/38,Oxfordshire County Council,4934,,01/02/2019,3110504018,582.4,Kidlington Pharmacy (Maneph)
http://statistics.data.gov.uk/id/local-authority/38,Oxfordshire County Council,4934,,01/02/2019,3110504043,582.4,Rowlands Pharmacy
http://statistics.data.gov.uk/id/local-authority/38,Oxfordshire County Council,5689,,05/02/2019,3110502410,582.56,PLL Care Services
http://statistics.data.gov.uk/id/local-authority/38,Oxfordshire County Council,5549,B*Fostering Allowance - Regulation 38,06/02/2019,3110502933,582.82,Redacted Personal Data
http://statistics.data.gov.uk/id/local-authority/38,Oxfordshire County Council,5549,B*Fostering Allowance - Regulation 38,13/02/2019,3110504435,582.82,Redacted Personal Data
http://statistics.data.gov.uk/id/local-authority/38,Oxfordshire County Council,5549,B*Fostering Allowance - Regulation 38,20/02/2019,3110511215,582.82,Redacted Personal Data
http://statistics.data.gov.uk/id/local-authority/38,Oxfordshire County Council,5549,B*Fostering Allowance - Regulation 38,27/02/2019,3110514323,582.82,Redacted Personal Data
http://statistics.data.gov.uk/id/local-authority/38,Oxfordshire County Council,4330,Transport to School Activities,19/02/2019,3110510097,583,The Oxfordshire Taxi Company Ltd T/
http://statistics.data.gov.uk/id/local-authority/38,Oxfordshire County Council,5227,Other Transport Arrangements,19/02/2019,3110510127,583.68,The Oxfordshire Taxi Company Ltd T/
http://statistics.data.gov.uk/id/local-authority/38,Oxfordshire County Council,5689,,05/02/2019,3110501967,583.74,Day and Nightcare Assistance
http://statistics.data.gov.uk/id/local-authority/38,Oxfordshire County Council,4790,"Publicity, Promotions and Advertisement",01/02/2019,2200598418,584.44,Tmp (Uk) Ltd
http://statistics.data.gov.uk/id/local-authority/38,Oxfordshire County Council,5682,,21/02/2019,3110513579,584.6,The Brandon Trust
http://statistics.data.gov.uk/id/local-authority/38,Oxfordshire County Council,4232,Vehicle Fuel,08/02/2019,2200601194,584.67,Allstar Business Solutions Ltd
http://statistics.data.gov.uk/id/local-authority/38,Oxfordshire County Council,5227,Other Transport Arrangements,11/02/2019,3110503680,584.82,Woodstock Travel
http://statistics.data.gov.uk/id/local-authority/38,Oxfordshire County Council,5689,,05/02/2019,3110501746,584.84,Caremark (West Oxfordshire & Cherwe
http://statistics.data.gov.uk/id/local-authority/38,Oxfordshire County Council,5251,Legal Costs,26/02/2019,2200607245,585,PM Psychology
http://statistics.data.gov.uk/id/local-authority/38,Oxfordshire County Council,5696,,21/02/2019,3110513406,585.06,Orders of St John Care Trust
http://statistics.data.gov.uk/id/local-authority/38,Oxfordshire County Council,5899,Social Care - Direct Payments,26/02/2019,3110513859,585.39,Redacted Personal Data
http://statistics.data.gov.uk/id/local-authority/38,Oxfordshire County Council,5899,Social Care - Direct Payments,26/02/2019,3110513813,585.93,Purple Conversation Com In Co (DP)
http://statistics.data.gov.uk/id/local-authority/38,Oxfordshire County Council,4498,Health and Safety Equipment,19/02/2019,2200605388,586,INTERSPIRO LTD
http://statistics.data.gov.uk/id/local-authority/38,Oxfordshire County Council,1441,Uncleared Misc Income Receipts,28/02/2019,3110515328,586.08,Oxford Direct Services Ltd
http://statistics.data.gov.uk/id/local-authority/38,Oxfordshire County Council,5698,,27/02/2019,3110514987,586.2,Day & Night Care Assistance
http://statistics.data.gov.uk/id/local-authority/38,Oxfordshire County Council,5698,,27/02/2019,3110514856,586.29,Charterville Care At Home Ltd
http://statistics.data.gov.uk/id/local-authority/38,Oxfordshire County Council,5689,,05/02/2019,3110501945,586.31,Day and Nightcare Assistance
http://statistics.data.gov.uk/id/local-authority/38,Oxfordshire County Council,5689,,05/02/2019,3110502448,586.69,PLL Care Services
http://statistics.data.gov.uk/id/local-authority/38,Oxfordshire County Council,5689,,05/02/2019,3110502296,587.36,Oxford University Hospitals NHS FT
http://statistics.data.gov.uk/id/local-authority/38,Oxfordshire County Council,5693,,06/02/2019,3110503115,587.5,Heritage Healthcare Oxford - South
http://statistics.data.gov.uk/id/local-authority/38,Oxfordshire County Council,5899,Social Care - Direct Payments,26/02/2019,3110513795,587.71,Redacted Personal Data
http://statistics.data.gov.uk/id/local-authority/38,Oxfordshire County Council,5227,Other Transport Arrangements,12/02/2019,3110504060,588,Excelsior Taxis Ltd
http://statistics.data.gov.uk/id/local-authority/38,Oxfordshire County Council,5899,Social Care - Direct Payments,19/02/2019,3110511722,588,Purple Conversation Com In Co (DP)
http://statistics.data.gov.uk/id/local-authority/38,Oxfordshire County Council,5698,,27/02/2019,3110514829,588.98,Charterville Care At Home Ltd
http://statistics.data.gov.uk/id/local-authority/38,Oxfordshire County Council,5072,Telephone - Equipment,06/02/2019,2200599968,589,BT Plc (One Bill)
http://statistics.data.gov.uk/id/local-authority/38,Oxfordshire County Council,5693,,27/02/2019,3110514561,589.06,THE KINGWOOD TRUST
http://statistics.data.gov.uk/id/local-authority/38,Oxfordshire County Council,5698,,27/02/2019,3110515031,589.24,Day & Night Care Assistance
http://statistics.data.gov.uk/id/local-authority/38,Oxfordshire County Council,5698,,27/02/2019,3110515207,589.35,Oxford Private Care
http://statistics.data.gov.uk/id/local-authority/38,Oxfordshire County Council,5696,,21/02/2019,3110513414,589.48,Orders of St John Care Trust
http://statistics.data.gov.uk/id/local-authority/38,Oxfordshire County Council,5692,,13/02/2019,3110505165,589.59,Heathfield House Nursing Home
http://statistics.data.gov.uk/id/local-authority/38,Oxfordshire County Council,5899,Social Care - Direct Payments,19/02/2019,3110511273,589.6,Purple Conversation Com In Co (DP)
http://statistics.data.gov.uk/id/local-authority/38,Oxfordshire County Council,5689,,05/02/2019,3110501636,591.64,Alina Homecare
http://statistics.data.gov.uk/id/local-authority/38,Oxfordshire County Council,5899,Social Care - Direct Payments,19/02/2019,3110510274,592,Redacted Personal Data
http://statistics.data.gov.uk/id/local-authority/38,Oxfordshire County Council,5899,Social Care - Direct Payments,19/02/2019,3110512096,592,Purple Conversation Com In Co (DP)
http://statistics.data.gov.uk/id/local-authority/38,Oxfordshire County Council,5689,,05/02/2019,3110501960,592.11,Day and Nightcare Assistance
http://statistics.data.gov.uk/id/local-authority/38,Oxfordshire County Council,5689,,05/02/2019,3110502034,592.47,DoCare Ltd
http://statistics.data.gov.uk/id/local-authority/38,Oxfordshire County Council,5899,Social Care - Direct Payments,19/02/2019,3110510303,592.86,Redacted Personal Data
http://statistics.data.gov.uk/id/local-authority/38,Oxfordshire County Council,5689,,05/02/2019,3110502518,593.37,Response Organisation
http://statistics.data.gov.uk/id/local-authority/38,Oxfordshire County Council,5689,,05/02/2019,3110502172,593.49,Home Helpers Care Ltd
http://statistics.data.gov.uk/id/local-authority/38,Oxfordshire County Council,5526,Payments to Private Contractors,19/02/2019,2200605519,593.76,NSL Ltd
http://statistics.data.gov.uk/id/local-authority/38,Oxfordshire County Council,5899,Social Care - Direct Payments,19/02/2019,3110511644,593.84,Purple Conversation Com In Co (DP)
http://statistics.data.gov.uk/id/local-authority/38,Oxfordshire County Council,5696,,21/02/2019,3110513316,593.97,Orders of St John Care Trust
http://statistics.data.gov.uk/id/local-authority/38,Oxfordshire County Council,3787,Premises Repairs,19/02/2019,2200605401,594,Barker & Evans Ltd
http://statistics.data.gov.uk/id/local-authority/38,Oxfordshire County Council,5227,Other Transport Arrangements,13/02/2019,3110509250,594,Phoenixx Cars Ltd
http://statistics.data.gov.uk/id/local-authority/38,Oxfordshire County Council,5899,Social Care - Direct Payments,19/02/2019,3110511793,594,Purple Conversation Com In Co (DP)
http://statistics.data.gov.uk/id/local-authority/38,Oxfordshire County Council,3787,Premises Repairs,07/02/2019,2200600748,594,SI Pumps Ltd
http://statistics.data.gov.uk/id/local-authority/38,Oxfordshire County Council,4940,Other Services,14/02/2019,2200603766,594.34,Restore plc
http://statistics.data.gov.uk/id/local-authority/38,Oxfordshire County Council,5227,Other Transport Arrangements,15/02/2019,3110509971,594.4,Pryors Cars Ltd
http://statistics.data.gov.uk/id/local-authority/38,Oxfordshire County Council,5227,Other Transport Arrangements,15/02/2019,3110509970,594.6,Pryors Cars Ltd
http://statistics.data.gov.uk/id/local-authority/38,Oxfordshire County Council,5899,Social Care - Direct Payments,19/02/2019,3110511794,594.6,Purple Conversation Com In Co (DP)
http://statistics.data.gov.uk/id/local-authority/38,Oxfordshire County Council,4407,Equipment,07/02/2019,2200600463,595,HERITAGE MUSIC
http://statistics.data.gov.uk/id/local-authority/38,Oxfordshire County Council,5698,,27/02/2019,3110514740,595.09,Bridges Home Care Ltd
http://statistics.data.gov.uk/id/local-authority/38,Oxfordshire County Council,8102,Payments to main contractor,26/02/2019,2200607541,595.34,Skanska Construction UK Ltd Sp
http://statistics.data.gov.uk/id/local-authority/38,Oxfordshire County Council,5689,,05/02/2019,3110502026,595.36,DoCare Ltd
http://statistics.data.gov.uk/id/local-authority/38,Oxfordshire County Council,5689,,05/02/2019,3110502394,595.36,Oxford University Hospitals NHS FT
http://statistics.data.gov.uk/id/local-authority/38,Oxfordshire County Council,5664,B*Holiday Allowance,06/02/2019,3110502617,595.46,Redacted Personal Data
http://statistics.data.gov.uk/id/local-authority/38,Oxfordshire County Council,5664,B*Holiday Allowance,13/02/2019,3110504226,595.46,Redacted Personal Data
http://statistics.data.gov.uk/id/local-authority/38,Oxfordshire County Council,5664,B*Holiday Allowance,20/02/2019,3110510827,595.46,Redacted Personal Data
http://statistics.data.gov.uk/id/local-authority/38,Oxfordshire County Council,5899,Social Care - Direct Payments,19/02/2019,3110511344,596,Purple Conversation Com In Co (DP)
http://statistics.data.gov.uk/id/local-authority/38,Oxfordshire County Council,5537,Payments to Other Establishments,27/02/2019,3110515702,596.16,Ladybird Pre-School
http://statistics.data.gov.uk/id/local-authority/38,Oxfordshire County Council,5537,Payments to Other Establishments,27/02/2019,3110515580,596.16,Longworth Pre-School (PFSU)
http://statistics.data.gov.uk/id/local-authority/38,Oxfordshire County Council,5537,Payments to Other Establishments,27/02/2019,3110515647,596.16,Summertown Montessori Nursery
http://statistics.data.gov.uk/id/local-authority/38,Oxfordshire County Council,5549,B*Fostering Allowance - Regulation 38,27/02/2019,3110514299,596.25,Redacted Personal Data
http://statistics.data.gov.uk/id/local-authority/38,Oxfordshire County Council,5665,B*Fostering Project Care Fee,05/02/2019,9300037037,596.46,OCC SS Oxford City Div 1 Cash
http://statistics.data.gov.uk/id/local-authority/38,Oxfordshire County Council,5691,,18/02/2019,3110510198,596.84,Bluebird Care (Oxford South & West)
http://statistics.data.gov.uk/id/local-authority/38,Oxfordshire County Council,1441,Uncleared Misc Income Receipts,27/02/2019,3110514610,597,Bicester Learning Academy
http://statistics.data.gov.uk/id/local-authority/38,Oxfordshire County Council,5697,,06/02/2019,3110503173,598,Stepping Stones
http://statistics.data.gov.uk/id/local-authority/38,Oxfordshire County Council,5689,,05/02/2019,3110501644,598.16,Amber Healthcare Personnel Ltd
http://statistics.data.gov.uk/id/local-authority/38,Oxfordshire County Council,5689,,05/02/2019,3110502033,598.22,DoCare Ltd
http://statistics.data.gov.uk/id/local-authority/38,Oxfordshire County Council,5548,B*Fostering - Special Rates & Plus Amou,06/02/2019,3110502667,598.31,Redacted Personal Data
http://statistics.data.gov.uk/id/local-authority/38,Oxfordshire County Council,5548,B*Fostering - Special Rates & Plus Amou,13/02/2019,3110504230,598.31,Redacted Personal Data
http://statistics.data.gov.uk/id/local-authority/38,Oxfordshire County Council,5548,B*Fostering - Special Rates & Plus Amou,20/02/2019,3110510875,598.31,Redacted Personal Data
http://statistics.data.gov.uk/id/local-authority/38,Oxfordshire County Council,5548,B*Fostering - Special Rates & Plus Amou,27/02/2019,3110514075,598.31,Redacted Personal Data
http://statistics.data.gov.uk/id/local-authority/38,Oxfordshire County Council,5689,,05/02/2019,3110502514,598.35,Response Organisation
http://statistics.data.gov.uk/id/local-authority/38,Oxfordshire County Council,5691,,18/02/2019,3110510180,598.96,Greigcare Home Service
http://statistics.data.gov.uk/id/local-authority/38,Oxfordshire County Council,5365,Non-Staff Subsistence and Expenses,05/02/2019,9300037034,599.49,OCC SS Oxford City Div 1 Cash
http://statistics.data.gov.uk/id/local-authority/38,Oxfordshire County Council,5227,Other Transport Arrangements,01/02/2019,3110501205,600,1St Taxis
http://statistics.data.gov.uk/id/local-authority/38,Oxfordshire County Council,5251,Legal Costs,13/02/2019,2200603541,600,A Collinson
http://statistics.data.gov.uk/id/local-authority/38,Oxfordshire County Council,5251,Legal Costs,13/02/2019,2200603570,600,A Collinson
http://statistics.data.gov.uk/id/local-authority/38,Oxfordshire County Council,5227,Other Transport Arrangements,20/02/2019,3110512919,600,Abingdon Taxis FKN Autotaxis
http://statistics.data.gov.uk/id/local-authority/38,Oxfordshire County Council,5227,Other Transport Arrangements,11/02/2019,3110503715,600,Black and White Cars T/A Banbury Ta
http://statistics.data.gov.uk/id/local-authority/38,Oxfordshire County Council,5697,,13/02/2019,3110505816,600,Headway Oxford
http://statistics.data.gov.uk/id/local-authority/38,Oxfordshire County Council,4859,Medical and Counselling Fees,07/02/2019,2200600947,600,Insight4Children
http://statistics.data.gov.uk/id/local-authority/38,Oxfordshire County Council,5251,Legal Costs,26/02/2019,2200607696,600,Miss H Little
http://statistics.data.gov.uk/id/local-authority/38,Oxfordshire County Council,4940,Other Services,19/02/2019,2200605324,600,My Learning Tree Ltd
http://statistics.data.gov.uk/id/local-authority/38,Oxfordshire County Council,4320,Pupil / Client Travel Reimbursement,06/02/2019,3110503211,600,OCC One Time Vendor
http://statistics.data.gov.uk/id/local-authority/38,Oxfordshire County Council,3257,,21/02/2019,3110513625,600,OCC One Time Vendor
http://statistics.data.gov.uk/id/local-authority/38,Oxfordshire County Council,5227,Other Transport Arrangements,13/02/2019,3110509432,600,Oxon Transport Services Ltd
http://statistics.data.gov.uk/id/local-authority/38,Oxfordshire County Council,5227,Other Transport Arrangements,13/02/2019,3110509464,600,Oxon Transport Services Ltd
http://statistics.data.gov.uk/id/local-authority/38,Oxfordshire County Council,5227,Other Transport Arrangements,13/02/2019,3110509468,600,Oxon Transport Services Ltd
http://statistics.data.gov.uk/id/local-authority/38,Oxfordshire County Council,5227,Other Transport Arrangements,13/02/2019,3110509470,600,Oxon Transport Services Ltd
http://statistics.data.gov.uk/id/local-authority/38,Oxfordshire County Council,5227,Other Transport Arrangements,13/02/2019,3110509474,600,Oxon Transport Services Ltd
http://statistics.data.gov.uk/id/local-authority/38,Oxfordshire County Council,5227,Other Transport Arrangements,13/02/2019,3110509486,600,Oxon Transport Services Ltd
http://statistics.data.gov.uk/id/local-authority/38,Oxfordshire County Council,5227,Other Transport Arrangements,13/02/2019,3110509494,600,Oxon Transport Services Ltd
http://statistics.data.gov.uk/id/local-authority/38,Oxfordshire County Council,5227,Other Transport Arrangements,13/02/2019,3110509500,600,Oxon Transport Services Ltd
http://statistics.data.gov.uk/id/local-authority/38,Oxfordshire County Council,5227,Other Transport Arrangements,13/02/2019,3110509512,600,Oxon Transport Services Ltd
http://statistics.data.gov.uk/id/local-authority/38,Oxfordshire County Council,4330,Transport to School Activities,13/02/2019,3110509524,600,Oxon Transport Services Ltd
http://statistics.data.gov.uk/id/local-authority/38,Oxfordshire County Council,5227,Other Transport Arrangements,13/02/2019,3110509529,600,Oxon Transport Services Ltd
http://statistics.data.gov.uk/id/local-authority/38,Oxfordshire County Council,5227,Other Transport Arrangements,13/02/2019,3110509535,600,Oxon Transport Services Ltd
http://statistics.data.gov.uk/id/local-authority/38,Oxfordshire County Council,5227,Other Transport Arrangements,13/02/2019,3110509537,600,Oxon Transport Services Ltd
http://statistics.data.gov.uk/id/local-authority/38,Oxfordshire County Council,5227,Other Transport Arrangements,13/02/2019,3110509541,600,Oxon Transport Services Ltd
http://statistics.data.gov.uk/id/local-authority/38,Oxfordshire County Council,3100,Educational and Vocational Training,08/02/2019,2200601619,600,Premier Partnership
http://statistics.data.gov.uk/id/local-authority/38,Oxfordshire County Council,5899,Social Care - Direct Payments,19/02/2019,3110511289,600,Purple Conversation Com In Co (DP)
http://statistics.data.gov.uk/id/local-authority/38,Oxfordshire County Council,5899,Social Care - Direct Payments,19/02/2019,3110511348,600,Purple Conversation Com In Co (DP)
http://statistics.data.gov.uk/id/local-authority/38,Oxfordshire County Council,5899,Social Care - Direct Payments,19/02/2019,3110511462,600,Purple Conversation Com In Co (DP)
http://statistics.data.gov.uk/id/local-authority/38,Oxfordshire County Council,5899,Social Care - Direct Payments,19/02/2019,3110511579,600,Purple Conversation Com In Co (DP)
http://statistics.data.gov.uk/id/local-authority/38,Oxfordshire County Council,5899,Social Care - Direct Payments,19/02/2019,3110511581,600,Purple Conversation Com In Co (DP)
http://statistics.data.gov.uk/id/local-authority/38,Oxfordshire County Council,5899,Social Care - Direct Payments,19/02/2019,3110511689,600,Purple Conversation Com In Co (DP)
http://statistics.data.gov.uk/id/local-authority/38,Oxfordshire County Council,5899,Social Care - Direct Payments,19/02/2019,3110511690,600,Purple Conversation Com In Co (DP)
http://statistics.data.gov.uk/id/local-authority/38,Oxfordshire County Council,5899,Social Care - Direct Payments,19/02/2019,3110511996,600,Purple Conversation Com In Co (DP)
http://statistics.data.gov.uk/id/local-authority/38,Oxfordshire County Council,5899,Social Care - Direct Payments,19/02/2019,3110512051,600,Purple Conversation Com In Co (DP)
http://statistics.data.gov.uk/id/local-authority/38,Oxfordshire County Council,5899,Social Care - Direct Payments,19/02/2019,3110512057,600,Purple Conversation Com In Co (DP)
http://statistics.data.gov.uk/id/local-authority/38,Oxfordshire County Council,5227,Other Transport Arrangements,13/02/2019,3110504192,600.06,Redacted Personal Data
http://statistics.data.gov.uk/id/local-authority/38,Oxfordshire County Council,5548,B*Fostering - Special Rates & Plus Amou,20/02/2019,3110511069,600.38,Redacted Personal Data
http://statistics.data.gov.uk/id/local-authority/38,Oxfordshire County Council,5899,Social Care - Direct Payments,19/02/2019,3110510368,600.8,Redacted Personal Data
http://statistics.data.gov.uk/id/local-authority/38,Oxfordshire County Council,5698,,27/02/2019,3110515281,600.95,Oxford Private Care
http://statistics.data.gov.uk/id/local-authority/38,Oxfordshire County Council,5689,,05/02/2019,3110501771,601.48,Caremark (West Oxfordshire & Cherwe
http://statistics.data.gov.uk/id/local-authority/38,Oxfordshire County Council,5698,,27/02/2019,3110514894,601.76,Charterville Care At Home Ltd
http://statistics.data.gov.uk/id/local-authority/38,Oxfordshire County Council,5689,,05/02/2019,3110501653,602.18,Amber Healthcare Personnel Ltd
http://statistics.data.gov.uk/id/local-authority/38,Oxfordshire County Council,5899,Social Care - Direct Payments,19/02/2019,3110511331,603.42,Purple Conversation Com In Co (DP)
http://statistics.data.gov.uk/id/local-authority/38,Oxfordshire County Council,5698,,27/02/2019,3110515267,603.46,Oxford Private Care
http://statistics.data.gov.uk/id/local-authority/38,Oxfordshire County Council,4685,Clothing and Uniforms,26/02/2019,2200607639,604,NPS Shoes
http://statistics.data.gov.uk/id/local-authority/38,Oxfordshire County Council,5689,,05/02/2019,3110502564,604.11,AVR (Oxon) Ltd
http://statistics.data.gov.uk/id/local-authority/38,Oxfordshire County Council,5552,B*Fostering - Retainer Fee,13/02/2019,3110504520,604.39,Redacted Personal Data
http://statistics.data.gov.uk/id/local-authority/38,Oxfordshire County Council,5698,,27/02/2019,3110515058,604.42,Day & Night Care Assistance
http://statistics.data.gov.uk/id/local-authority/38,Oxfordshire County Council,5698,,27/02/2019,3110514843,604.71,Charterville Care At Home Ltd
http://statistics.data.gov.uk/id/local-authority/38,Oxfordshire County Council,5698,,27/02/2019,3110515198,604.78,Oxford Private Care
http://statistics.data.gov.uk/id/local-authority/38,Oxfordshire County Council,5689,,05/02/2019,3110501628,604.93,Alina Homecare
http://statistics.data.gov.uk/id/local-authority/38,Oxfordshire County Council,5899,Social Care - Direct Payments,19/02/2019,3110510688,605.08,Redacted Personal Data
http://statistics.data.gov.uk/id/local-authority/38,Oxfordshire County Council,5689,,05/02/2019,3110502225,605.43,My Carer Ltd
http://statistics.data.gov.uk/id/local-authority/38,Oxfordshire County Council,5690,,13/02/2019,3110504842,605.76,Life Path Trust Ltd
http://statistics.data.gov.uk/id/local-authority/38,Oxfordshire County Council,5690,,13/02/2019,3110504861,605.76,Life Path Trust Ltd
http://statistics.data.gov.uk/id/local-authority/38,Oxfordshire County Council,5689,,05/02/2019,3110501765,606.14,Caremark (West Oxfordshire & Cherwe
http://statistics.data.gov.uk/id/local-authority/38,Oxfordshire County Council,5693,,20/02/2019,3110512775,606.22,THE KINGWOOD TRUST
http://statistics.data.gov.uk/id/local-authority/38,Oxfordshire County Council,5698,,27/02/2019,3110514935,606.58,Charterville Care At Home Ltd
http://statistics.data.gov.uk/id/local-authority/38,Oxfordshire County Council,5899,Social Care - Direct Payments,19/02/2019,3110511797,606.64,Purple Conversation Com In Co (DP)
http://statistics.data.gov.uk/id/local-authority/38,Oxfordshire County Council,5552,B*Fostering - Retainer Fee,06/02/2019,3110502864,606.69,Redacted Personal Data
http://statistics.data.gov.uk/id/local-authority/38,Oxfordshire County Council,5227,Other Transport Arrangements,27/02/2019,3110514335,606.76,Redacted Personal Data
http://statistics.data.gov.uk/id/local-authority/38,Oxfordshire County Council,5686,,13/02/2019,3110507643,607,Orders of St John
http://statistics.data.gov.uk/id/local-authority/38,Oxfordshire County Council,5686,,13/02/2019,3110507979,607,Orders of St John
http://statistics.data.gov.uk/id/local-authority/38,Oxfordshire County Council,5681,,13/02/2019,3110507436,607,Orders of St John
http://statistics.data.gov.uk/id/local-authority/38,Oxfordshire County Council,5681,,13/02/2019,3110507463,607,Orders of St John
http://statistics.data.gov.uk/id/local-authority/38,Oxfordshire County Council,5681,,13/02/2019,3110508346,607,Orders of St John
http://statistics.data.gov.uk/id/local-authority/38,Oxfordshire County Council,5899,Social Care - Direct Payments,19/02/2019,3110511849,607.32,Purple Conversation Com In Co (DP)
http://statistics.data.gov.uk/id/local-authority/38,Oxfordshire County Council,3103,Other Training Courses and Qualification,13/02/2019,2200603572,607.5,Oxfordshire Association of Care
http://statistics.data.gov.uk/id/local-authority/38,Oxfordshire County Council,5899,Social Care - Direct Payments,19/02/2019,3110510363,608,Redacted Personal Data
http://statistics.data.gov.uk/id/local-authority/38,Oxfordshire County Council,5899,Social Care - Direct Payments,19/02/2019,3110511600,608,Purple Conversation Com In Co (DP)
http://statistics.data.gov.uk/id/local-authority/38,Oxfordshire County Council,5227,Other Transport Arrangements,12/02/2019,3110504107,608,Toots Taxis
http://statistics.data.gov.uk/id/local-authority/38,Oxfordshire County Council,4933,,01/02/2019,3110503743,608.4,White Horse Practice
http://statistics.data.gov.uk/id/local-authority/38,Oxfordshire County Council,5698,,27/02/2019,3110515235,608.74,Oxford Private Care
http://statistics.data.gov.uk/id/local-authority/38,Oxfordshire County Council,5251,Legal Costs,25/02/2019,2200607004,609.05,Psychassessments Ltd
http://statistics.data.gov.uk/id/local-authority/38,Oxfordshire County Council,5690,,13/02/2019,3110504849,609.2,Life Path Trust Ltd
http://statistics.data.gov.uk/id/local-authority/38,Oxfordshire County Council,5689,,05/02/2019,3110502099,609.37,Greigcare Home Service
http://statistics.data.gov.uk/id/local-authority/38,Oxfordshire County Council,5227,Other Transport Arrangements,13/02/2019,3110509307,609.47,Luxicars Ltd
http://statistics.data.gov.uk/id/local-authority/38,Oxfordshire County Council,3980,Service Charges - Premises,20/02/2019,2200605615,609.8,North Leigh Memorial Hall Trustees
http://statistics.data.gov.uk/id/local-authority/38,Oxfordshire County Council,5689,,05/02/2019,3110502081,611.41,Greigcare Home Service
http://statistics.data.gov.uk/id/local-authority/38,Oxfordshire County Council,4934,,01/02/2019,3110503998,611.52,Boots the Chemist
http://statistics.data.gov.uk/id/local-authority/38,Oxfordshire County Council,4934,,01/02/2019,3110504022,611.52,Lloyds Pharmacy
http://statistics.data.gov.uk/id/local-authority/38,Oxfordshire County Council,5689,,05/02/2019,3110502156,611.63,MiHomecare Ltd
http://statistics.data.gov.uk/id/local-authority/38,Oxfordshire County Council,5689,,05/02/2019,3110501701,611.82,Care Outlook Ltd
http://statistics.data.gov.uk/id/local-authority/38,Oxfordshire County Council,5899,Social Care - Direct Payments,19/02/2019,3110511909,612,Purple Conversation Com In Co (DP)
http://statistics.data.gov.uk/id/local-authority/38,Oxfordshire County Council,5899,Social Care - Direct Payments,19/02/2019,3110512017,612,Purple Conversation Com In Co (DP)
http://statistics.data.gov.uk/id/local-authority/38,Oxfordshire County Council,5227,Other Transport Arrangements,13/02/2019,3110509287,612,R & S Travel Services Ltd T/A A 2 Z
http://statistics.data.gov.uk/id/local-authority/38,Oxfordshire County Council,4330,Transport to School Activities,20/02/2019,3110512742,612,Streamline Peppard Taxi
http://statistics.data.gov.uk/id/local-authority/38,Oxfordshire County Council,5227,Other Transport Arrangements,19/02/2019,3110510121,612,The Oxfordshire Taxi Company Ltd T/
http://statistics.data.gov.uk/id/local-authority/38,Oxfordshire County Council,5689,,05/02/2019,3110501709,612.16,Care Outlook Ltd
http://statistics.data.gov.uk/id/local-authority/38,Oxfordshire County Council,5899,Social Care - Direct Payments,19/02/2019,3110510304,612.4,Redacted Personal Data
http://statistics.data.gov.uk/id/local-authority/38,Oxfordshire County Council,5690,,13/02/2019,3110504847,613.2,Life Path Trust Ltd
http://statistics.data.gov.uk/id/local-authority/38,Oxfordshire County Council,4314,"Other Trans Contract Costs (CRB, Car Sea",28/02/2019,3110515407,613.2,Oxon Transport Services Ltd
http://statistics.data.gov.uk/id/local-authority/38,Oxfordshire County Council,4314,"Other Trans Contract Costs (CRB, Car Sea",28/02/2019,3110515439,613.2,Oxon Transport Services Ltd
http://statistics.data.gov.uk/id/local-authority/38,Oxfordshire County Council,5691,,11/02/2019,3110503898,613.27,Countywide Caring Limited
http://statistics.data.gov.uk/id/local-authority/38,Oxfordshire County Council,5689,,05/02/2019,3110501661,613.41,Amber Healthcare Personnel Ltd
http://statistics.data.gov.uk/id/local-authority/38,Oxfordshire County Council,5698,,27/02/2019,3110514805,613.55,Charterville Care At Home Ltd
http://statistics.data.gov.uk/id/local-authority/38,Oxfordshire County Council,5696,,21/02/2019,3110513436,613.94,Orders of St John Care Trust
http://statistics.data.gov.uk/id/local-authority/38,Oxfordshire County Council,5690,,13/02/2019,3110504728,614,H F TRUST LTD
http://statistics.data.gov.uk/id/local-authority/38,Oxfordshire County Council,5696,,21/02/2019,3110513365,614.03,Orders of St John Care Trust
http://statistics.data.gov.uk/id/local-authority/38,Oxfordshire County Council,5365,Non-Staff Subsistence and Expenses,15/02/2019,9300037337,614.4,OCC SS Oxford City Div 1 Cash
http://statistics.data.gov.uk/id/local-authority/38,Oxfordshire County Council,4330,Transport to School Activities,05/02/2019,3110501596,614.8,Go Green Taxis
http://statistics.data.gov.uk/id/local-authority/38,Oxfordshire County Council,5698,,27/02/2019,3110514902,614.95,Charterville Care At Home Ltd
http://statistics.data.gov.uk/id/local-authority/38,Oxfordshire County Council,5555,Payments to Carers,13/02/2019,3110504946,615,Harris Ponen
http://statistics.data.gov.uk/id/local-authority/38,Oxfordshire County Council,5227,Other Transport Arrangements,13/02/2019,3110509458,615,Oxon Transport Services Ltd
http://statistics.data.gov.uk/id/local-authority/38,Oxfordshire County Council,5555,Payments to Carers,13/02/2019,3110504816,615,Redacted Personal Data
http://statistics.data.gov.uk/id/local-authority/38,Oxfordshire County Council,3103,Other Training Courses and Qualification,06/02/2019,2200600371,615,Thomas Telford Ltd
http://statistics.data.gov.uk/id/local-authority/38,Oxfordshire County Council,5689,,05/02/2019,3110501813,615.29,Caremark (West Oxfordshire & Cherwe
http://statistics.data.gov.uk/id/local-authority/38,Oxfordshire County Council,5689,,05/02/2019,3110502164,615.32,Home Helpers Care Ltd
http://statistics.data.gov.uk/id/local-authority/38,Oxfordshire County Council,8102,Payments to main contractor,25/02/2019,2200606953,615.42,Skanska Construction UK Ltd Sp
http://statistics.data.gov.uk/id/local-authority/38,Oxfordshire County Council,5899,Social Care - Direct Payments,19/02/2019,3110511704,615.84,Purple Conversation Com In Co (DP)
http://statistics.data.gov.uk/id/local-authority/38,Oxfordshire County Council,5537,Payments to Other Establishments,11/02/2019,3110503640,616,Goring and Cleeve Pre-School
http://statistics.data.gov.uk/id/local-authority/38,Oxfordshire County Council,5899,Social Care - Direct Payments,19/02/2019,3110511362,616,Purple Conversation Com In Co (DP)
http://statistics.data.gov.uk/id/local-authority/38,Oxfordshire County Council,5899,Social Care - Direct Payments,19/02/2019,3110511645,616,Purple Conversation Com In Co (DP)
http://statistics.data.gov.uk/id/local-authority/38,Oxfordshire County Council,5899,Social Care - Direct Payments,19/02/2019,3110511728,616,Purple Conversation Com In Co (DP)
http://statistics.data.gov.uk/id/local-authority/38,Oxfordshire County Council,5899,Social Care - Direct Payments,19/02/2019,3110511918,616,Purple Conversation Com In Co (DP)
http://statistics.data.gov.uk/id/local-authority/38,Oxfordshire County Council,5668,Technical and Professional Consultant F,07/02/2019,2200600500,616.2,Shellie Keen
http://statistics.data.gov.uk/id/local-authority/38,Oxfordshire County Council,5698,,27/02/2019,3110515230,616.21,Oxford Private Care
http://statistics.data.gov.uk/id/local-authority/38,Oxfordshire County Council,4330,Transport to School Activities,28/02/2019,3110515440,616.4,Oxon Transport Services Ltd
http://statistics.data.gov.uk/id/local-authority/38,Oxfordshire County Council,4934,,01/02/2019,3110503990,616.48,Bloxham Pharmacy (Chalice)
http://statistics.data.gov.uk/id/local-authority/38,Oxfordshire County Council,5899,Social Care - Direct Payments,19/02/2019,3110510745,616.88,Redacted Personal Data
http://statistics.data.gov.uk/id/local-authority/38,Oxfordshire County Council,5689,,05/02/2019,3110501868,617.87,Casa Care Ltd
http://statistics.data.gov.uk/id/local-authority/38,Oxfordshire County Council,5668,Technical and Professional Consultant F,01/02/2019,2200598506,618,Liana Tonkin
http://statistics.data.gov.uk/id/local-authority/38,Oxfordshire County Council,5693,,27/02/2019,3110514547,618.3,Harino Care
http://statistics.data.gov.uk/id/local-authority/38,Oxfordshire County Council,5689,,05/02/2019,3110502556,618.6,Risborough Carers Ltd
http://statistics.data.gov.uk/id/local-authority/38,Oxfordshire County Council,5548,B*Fostering - Special Rates & Plus Amou,13/02/2019,3110504168,618.99,Redacted Personal Data
http://statistics.data.gov.uk/id/local-authority/38,Oxfordshire County Council,5689,,05/02/2019,3110502539,619.01,Response Organisation
http://statistics.data.gov.uk/id/local-authority/38,Oxfordshire County Council,5690,,13/02/2019,3110504708,619.44,OXFORD HEALTH NHS FOUNDATION TRUST
http://statistics.data.gov.uk/id/local-authority/38,Oxfordshire County Council,5690,,13/02/2019,3110504727,619.44,OXFORD HEALTH NHS FOUNDATION TRUST
http://statistics.data.gov.uk/id/local-authority/38,Oxfordshire County Council,5690,,13/02/2019,3110504759,619.44,OXFORD HEALTH NHS FOUNDATION TRUST
http://statistics.data.gov.uk/id/local-authority/38,Oxfordshire County Council,5690,,13/02/2019,3110504765,619.44,OXFORD HEALTH NHS FOUNDATION TRUST
http://statistics.data.gov.uk/id/local-authority/38,Oxfordshire County Council,5690,,13/02/2019,3110504767,619.44,OXFORD HEALTH NHS FOUNDATION TRUST
http://statistics.data.gov.uk/id/local-authority/38,Oxfordshire County Council,5668,Technical and Professional Consultant F,01/02/2019,2200598482,619.61,Shellie Keen
http://statistics.data.gov.uk/id/local-authority/38,Oxfordshire County Council,5693,,20/02/2019,3110512799,620,HOMECARE SUPPORT LTD
http://statistics.data.gov.uk/id/local-authority/38,Oxfordshire County Council,4330,Transport to School Activities,15/02/2019,3110510042,620,Monarch Oxford
http://statistics.data.gov.uk/id/local-authority/38,Oxfordshire County Council,5227,Other Transport Arrangements,13/02/2019,3110509427,620,Oxon Transport Services Ltd
http://statistics.data.gov.uk/id/local-authority/38,Oxfordshire County Council,4330,Transport to School Activities,28/02/2019,3110515387,620,Oxon Transport Services Ltd
http://statistics.data.gov.uk/id/local-authority/38,Oxfordshire County Council,5899,Social Care - Direct Payments,19/02/2019,3110511620,620,Purple Conversation Com In Co (DP)
http://statistics.data.gov.uk/id/local-authority/38,Oxfordshire County Council,5899,Social Care - Direct Payments,19/02/2019,3110511659,620,Purple Conversation Com In Co (DP)
http://statistics.data.gov.uk/id/local-authority/38,Oxfordshire County Council,5899,Social Care - Direct Payments,19/02/2019,3110511819,620,Purple Conversation Com In Co (DP)
http://statistics.data.gov.uk/id/local-authority/38,Oxfordshire County Council,5685,B*Cycle tracks,13/02/2019,3110505293,620.2,Oakenholt Care Ltd
http://statistics.data.gov.uk/id/local-authority/38,Oxfordshire County Council,5682,,21/02/2019,3110513488,620.23,The Brandon Trust
http://statistics.data.gov.uk/id/local-authority/38,Oxfordshire County Council,5899,Social Care - Direct Payments,19/02/2019,3110511294,620.32,Purple Conversation Com In Co (DP)
http://statistics.data.gov.uk/id/local-authority/38,Oxfordshire County Council,5686,,13/02/2019,3110508941,620.57,METHODIST HOMES
http://statistics.data.gov.uk/id/local-authority/38,Oxfordshire County Council,5698,,27/02/2019,3110514899,620.65,Charterville Care At Home Ltd
http://statistics.data.gov.uk/id/local-authority/38,Oxfordshire County Council,4111,Security Costs,08/02/2019,2200601205,621.5,Securipol Ltd
http://statistics.data.gov.uk/id/local-authority/38,Oxfordshire County Council,5691,,18/02/2019,2200605020,621.56,Orders of St John Care Trust
http://statistics.data.gov.uk/id/local-authority/38,Oxfordshire County Council,5227,Other Transport Arrangements,11/02/2019,2200602398,621.83,FCC Environment (UK) Ltd
http://statistics.data.gov.uk/id/local-authority/38,Oxfordshire County Council,5690,,13/02/2019,3110504952,622,Turnstyle
http://statistics.data.gov.uk/id/local-authority/38,Oxfordshire County Council,5664,B*Holiday Allowance,06/02/2019,3110502857,622.02,Redacted Personal Data
http://statistics.data.gov.uk/id/local-authority/38,Oxfordshire County Council,5664,B*Holiday Allowance,13/02/2019,3110504516,622.02,Redacted Personal Data
http://statistics.data.gov.uk/id/local-authority/38,Oxfordshire County Council,5664,B*Holiday Allowance,20/02/2019,3110511018,622.02,Redacted Personal Data
http://statistics.data.gov.uk/id/local-authority/38,Oxfordshire County Council,5664,B*Holiday Allowance,27/02/2019,3110514292,622.02,Redacted Personal Data
http://statistics.data.gov.uk/id/local-authority/38,Oxfordshire County Council,5365,Non-Staff Subsistence and Expenses,19/02/2019,9300037386,622.1,OCC SS Oxford City Div 1 Cash
http://statistics.data.gov.uk/id/local-authority/38,Oxfordshire County Council,5696,,27/02/2019,3110514525,622.25,1st Homecare (Oxford) Ltd
http://statistics.data.gov.uk/id/local-authority/38,Oxfordshire County Council,4685,Clothing and Uniforms,06/02/2019,3110502772,622.37,Redacted Personal Data
http://statistics.data.gov.uk/id/local-authority/38,Oxfordshire County Council,5394,Other Expenses,20/02/2019,3110511145,622.6,Redacted Personal Data
http://statistics.data.gov.uk/id/local-authority/38,Oxfordshire County Council,5899,Social Care - Direct Payments,19/02/2019,3110511398,622.72,Purple Conversation Com In Co (DP)
http://statistics.data.gov.uk/id/local-authority/38,Oxfordshire County Council,5698,,27/02/2019,3110515258,622.85,Oxford Private Care
http://statistics.data.gov.uk/id/local-authority/38,Oxfordshire County Council,5689,,05/02/2019,3110501731,623.08,Caremark (West Oxfordshire & Cherwe
http://statistics.data.gov.uk/id/local-authority/38,Oxfordshire County Council,4531,Materials,04/02/2019,2200598682,623.4,Nature Planet ApS
http://statistics.data.gov.uk/id/local-authority/38,Oxfordshire County Council,5161,Adoption Expenses - Fees and Expenses,04/02/2019,2200598607,623.7,Premier Express Couriers Ltd
http://statistics.data.gov.uk/id/local-authority/38,Oxfordshire County Council,5899,Social Care - Direct Payments,19/02/2019,3110512022,624,Purple Conversation Com In Co (DP)
http://statistics.data.gov.uk/id/local-authority/38,Oxfordshire County Council,5899,Social Care - Direct Payments,19/02/2019,3110512216,624,Purple Conversation Com In Co (DP)
http://statistics.data.gov.uk/id/local-authority/38,Oxfordshire County Council,5899,Social Care - Direct Payments,19/02/2019,3110510773,624,Redacted Personal Data
http://statistics.data.gov.uk/id/local-authority/38,Oxfordshire County Council,5698,,27/02/2019,3110515224,624.17,Oxford Private Care
http://statistics.data.gov.uk/id/local-authority/38,Oxfordshire County Council,8004,Design Consultant,26/02/2019,2200607169,624.26,Skanska Construction UK Ltd Sp
http://statistics.data.gov.uk/id/local-authority/38,Oxfordshire County Council,5899,Social Care - Direct Payments,19/02/2019,3110510512,624.4,Redacted Personal Data
http://statistics.data.gov.uk/id/local-authority/38,Oxfordshire County Council,8004,Design Consultant,27/02/2019,2200608292,624.49,Skanska Construction UK Ltd Sp
http://statistics.data.gov.uk/id/local-authority/38,Oxfordshire County Council,5689,,05/02/2019,3110501706,624.51,Care Outlook Ltd
http://statistics.data.gov.uk/id/local-authority/38,Oxfordshire County Council,5698,,27/02/2019,3110514950,624.82,Day & Night Care Assistance
http://statistics.data.gov.uk/id/local-authority/38,Oxfordshire County Council,5696,,21/02/2019,3110513353,624.89,Orders of St John Care Trust
http://statistics.data.gov.uk/id/local-authority/38,Oxfordshire County Council,4790,"Publicity, Promotions and Advertisement",20/02/2019,2200605639,625,Blooberry Design ltd
http://statistics.data.gov.uk/id/local-authority/38,Oxfordshire County Council,4859,Medical and Counselling Fees,01/02/2019,2200598579,625,Dr Andrea Shortland
http://statistics.data.gov.uk/id/local-authority/38,Oxfordshire County Council,5693,,06/02/2019,3110503114,625,Heritage Healthcare Oxford - South
http://statistics.data.gov.uk/id/local-authority/38,Oxfordshire County Council,5549,B*Fostering Allowance - Regulation 38,06/02/2019,3110502987,625.08,Redacted Personal Data
http://statistics.data.gov.uk/id/local-authority/38,Oxfordshire County Council,5549,B*Fostering Allowance - Regulation 38,13/02/2019,3110504494,625.08,Redacted Personal Data
http://statistics.data.gov.uk/id/local-authority/38,Oxfordshire County Council,5549,B*Fostering Allowance - Regulation 38,20/02/2019,3110511242,625.08,Redacted Personal Data
http://statistics.data.gov.uk/id/local-authority/38,Oxfordshire County Council,5549,B*Fostering Allowance - Regulation 38,27/02/2019,3110514362,625.08,Redacted Personal Data
http://statistics.data.gov.uk/id/local-authority/38,Oxfordshire County Council,5394,Other Expenses,13/02/2019,3110504359,625.09,Redacted Personal Data
http://statistics.data.gov.uk/id/local-authority/38,Oxfordshire County Council,5689,,05/02/2019,3110502227,625.23,My Carer Ltd
http://statistics.data.gov.uk/id/local-authority/38,Oxfordshire County Council,5698,,27/02/2019,3110515095,625.25,Day & Night Care Assistance
http://statistics.data.gov.uk/id/local-authority/38,Oxfordshire County Council,5698,,27/02/2019,3110515215,625.5,Oxford Private Care
http://statistics.data.gov.uk/id/local-authority/38,Oxfordshire County Council,5693,,27/02/2019,3110514539,625.63,Harino Care
http://statistics.data.gov.uk/id/local-authority/38,Oxfordshire County Council,5689,,05/02/2019,3110501736,625.95,Caremark (West Oxfordshire & Cherwe
http://statistics.data.gov.uk/id/local-authority/38,Oxfordshire County Council,5689,,05/02/2019,3110502059,625.95,Goldsmith Personnel Ltd
http://statistics.data.gov.uk/id/local-authority/38,Oxfordshire County Council,5899,Social Care - Direct Payments,19/02/2019,3110510494,626.16,Redacted Personal Data
http://statistics.data.gov.uk/id/local-authority/38,Oxfordshire County Council,5227,Other Transport Arrangements,18/02/2019,3110510085,627,Oxford City Cars Ltd
http://statistics.data.gov.uk/id/local-authority/38,Oxfordshire County Council,5689,,05/02/2019,3110501678,627.03,Amber Healthcare Personnel Ltd
http://statistics.data.gov.uk/id/local-authority/38,Oxfordshire County Council,5689,,05/02/2019,3110502291,627.16,Oxford Private Care
http://statistics.data.gov.uk/id/local-authority/38,Oxfordshire County Council,5696,,21/02/2019,3110513337,627.19,Orders of St John Care Trust
http://statistics.data.gov.uk/id/local-authority/38,Oxfordshire County Council,5696,,13/02/2019,3110505879,627.29,Optalis
http://statistics.data.gov.uk/id/local-authority/38,Oxfordshire County Council,5668,Technical and Professional Consultant F,20/02/2019,2200605715,627.78,Jessica Howards
http://statistics.data.gov.uk/id/local-authority/38,Oxfordshire County Council,5698,,27/02/2019,3110515023,627.85,Day & Night Care Assistance
http://statistics.data.gov.uk/id/local-authority/38,Oxfordshire County Council,5899,Social Care - Direct Payments,19/02/2019,3110511441,628,Purple Conversation Com In Co (DP)
http://statistics.data.gov.uk/id/local-authority/38,Oxfordshire County Council,5899,Social Care - Direct Payments,19/02/2019,3110510423,628,Redacted Personal Data
http://statistics.data.gov.uk/id/local-authority/38,Oxfordshire County Council,5548,B*Fostering - Special Rates & Plus Amou,06/02/2019,3110502722,628.29,Redacted Personal Data
http://statistics.data.gov.uk/id/local-authority/38,Oxfordshire County Council,5548,B*Fostering - Special Rates & Plus Amou,13/02/2019,3110504292,628.29,Redacted Personal Data
http://statistics.data.gov.uk/id/local-authority/38,Oxfordshire County Council,5548,B*Fostering - Special Rates & Plus Amou,20/02/2019,3110510955,628.29,Redacted Personal Data
http://statistics.data.gov.uk/id/local-authority/38,Oxfordshire County Council,5548,B*Fostering - Special Rates & Plus Amou,27/02/2019,3110514125,628.29,Redacted Personal Data
http://statistics.data.gov.uk/id/local-authority/38,Oxfordshire County Council,5689,,05/02/2019,3110502206,628.37,Lifecarers Limited
http://statistics.data.gov.uk/id/local-authority/38,Oxfordshire County Council,5698,,27/02/2019,3110514699,628.57,Acquire Care Ltd
http://statistics.data.gov.uk/id/local-authority/38,Oxfordshire County Council,5698,,27/02/2019,3110514639,628.64,Acquire Care Ltd
http://statistics.data.gov.uk/id/local-authority/38,Oxfordshire County Council,5537,Payments to Other Establishments,18/02/2019,3110512570,628.68,Sandra East
http://statistics.data.gov.uk/id/local-authority/38,Oxfordshire County Council,5698,,27/02/2019,3110515017,629.16,Day & Night Care Assistance
http://statistics.data.gov.uk/id/local-authority/38,Oxfordshire County Council,5689,,05/02/2019,3110502067,629.31,Goldsmith Personnel Ltd
http://statistics.data.gov.uk/id/local-authority/38,Oxfordshire County Council,5899,Social Care - Direct Payments,19/02/2019,3110511608,629.56,Purple Conversation Com In Co (DP)
http://statistics.data.gov.uk/id/local-authority/38,Oxfordshire County Council,5689,,05/02/2019,3110501613,629.76,Alina Homecare
http://statistics.data.gov.uk/id/local-authority/38,Oxfordshire County Council,4330,Transport to School Activities,18/02/2019,3110510079,630,Carriage Company
http://statistics.data.gov.uk/id/local-authority/38,Oxfordshire County Council,5227,Other Transport Arrangements,13/02/2019,3110509300,630,Luxicars Ltd
http://statistics.data.gov.uk/id/local-authority/38,Oxfordshire County Council,5227,Other Transport Arrangements,01/02/2019,3110501217,630,Oxfordshire Travel Ltd
http://statistics.data.gov.uk/id/local-authority/38,Oxfordshire County Council,4330,Transport to School Activities,13/02/2019,3110509476,630,Oxon Transport Services Ltd
http://statistics.data.gov.uk/id/local-authority/38,Oxfordshire County Council,4330,Transport to School Activities,13/02/2019,3110509481,630,Oxon Transport Services Ltd
http://statistics.data.gov.uk/id/local-authority/38,Oxfordshire County Council,4330,Transport to School Activities,21/02/2019,3110513299,630,Oxon Transport Services Ltd
http://statistics.data.gov.uk/id/local-authority/38,Oxfordshire County Council,5899,Social Care - Direct Payments,19/02/2019,3110512184,630,Purple Conversation Com In Co (DP)
http://statistics.data.gov.uk/id/local-authority/38,Oxfordshire County Council,3100,Educational and Vocational Training,04/02/2019,2200598726,630,Worksafe Training & Consultancy Ltd
http://statistics.data.gov.uk/id/local-authority/38,Oxfordshire County Council,5899,Social Care - Direct Payments,19/02/2019,3110510375,630.08,Redacted Personal Data
http://statistics.data.gov.uk/id/local-authority/38,Oxfordshire County Council,5899,Social Care - Direct Payments,19/02/2019,3110511894,630.4,Purple Conversation Com In Co (DP)
http://statistics.data.gov.uk/id/local-authority/38,Oxfordshire County Council,5698,,27/02/2019,3110514865,630.54,Charterville Care At Home Ltd
http://statistics.data.gov.uk/id/local-authority/38,Oxfordshire County Council,5698,,27/02/2019,3110515217,630.61,Oxford Private Care
http://statistics.data.gov.uk/id/local-authority/38,Oxfordshire County Council,5251,Legal Costs,01/02/2019,2200598564,630.93,Forensis Ltd
http://statistics.data.gov.uk/id/local-authority/38,Oxfordshire County Council,5689,,05/02/2019,3110501626,631.3,Alina Homecare
http://statistics.data.gov.uk/id/local-authority/38,Oxfordshire County Council,5689,,05/02/2019,3110501727,631.34,Caremark (West Oxfordshire & Cherwe
http://statistics.data.gov.uk/id/local-authority/38,Oxfordshire County Council,4320,Pupil / Client Travel Reimbursement,25/02/2019,3110513661,631.4,Redacted Personal Data
http://statistics.data.gov.uk/id/local-authority/38,Oxfordshire County Council,5899,Social Care - Direct Payments,19/02/2019,3110510536,632,Redacted Personal Data
http://statistics.data.gov.uk/id/local-authority/38,Oxfordshire County Council,5698,,27/02/2019,3110515133,632.63,Day & Night Care Assistance
http://statistics.data.gov.uk/id/local-authority/38,Oxfordshire County Council,5692,,13/02/2019,3110505613,632.64,Abbey Crest Nursing Home
http://statistics.data.gov.uk/id/local-authority/38,Oxfordshire County Council,5692,,13/02/2019,3110505620,632.64,Abbey Crest Nursing Home
http://statistics.data.gov.uk/id/local-authority/38,Oxfordshire County Council,5692,,13/02/2019,3110505623,632.64,Abbey Crest Nursing Home
http://statistics.data.gov.uk/id/local-authority/38,Oxfordshire County Council,5692,,13/02/2019,3110505630,632.64,Abbey Crest Nursing Home
http://statistics.data.gov.uk/id/local-authority/38,Oxfordshire County Council,5692,,13/02/2019,3110505632,632.64,Abbey Crest Nursing Home
http://statistics.data.gov.uk/id/local-authority/38,Oxfordshire County Council,5692,,13/02/2019,3110505634,632.64,Abbey Crest Nursing Home
http://statistics.data.gov.uk/id/local-authority/38,Oxfordshire County Council,5692,,13/02/2019,3110505640,632.64,Abbey Crest Nursing Home
http://statistics.data.gov.uk/id/local-authority/38,Oxfordshire County Council,5692,,13/02/2019,3110505642,632.64,Abbey Crest Nursing Home
http://statistics.data.gov.uk/id/local-authority/38,Oxfordshire County Council,5692,,13/02/2019,3110505644,632.64,Abbey Crest Nursing Home
http://statistics.data.gov.uk/id/local-authority/38,Oxfordshire County Council,5692,,13/02/2019,3110505647,632.64,Abbey Crest Nursing Home
http://statistics.data.gov.uk/id/local-authority/38,Oxfordshire County Council,5692,,13/02/2019,3110505649,632.64,Abbey Crest Nursing Home
http://statistics.data.gov.uk/id/local-authority/38,Oxfordshire County Council,5692,,13/02/2019,3110505654,632.64,Abbey Crest Nursing Home
http://statistics.data.gov.uk/id/local-authority/38,Oxfordshire County Council,5692,,13/02/2019,3110505656,632.64,Abbey Crest Nursing Home
http://statistics.data.gov.uk/id/local-authority/38,Oxfordshire County Council,5692,,13/02/2019,3110505658,632.64,Abbey Crest Nursing Home
http://statistics.data.gov.uk/id/local-authority/38,Oxfordshire County Council,5692,,13/02/2019,3110505661,632.64,Abbey Crest Nursing Home
http://statistics.data.gov.uk/id/local-authority/38,Oxfordshire County Council,5692,,13/02/2019,3110505663,632.64,Abbey Crest Nursing Home
http://statistics.data.gov.uk/id/local-authority/38,Oxfordshire County Council,5692,,13/02/2019,3110505665,632.64,Abbey Crest Nursing Home
http://statistics.data.gov.uk/id/local-authority/38,Oxfordshire County Council,5692,,13/02/2019,3110505667,632.64,Abbey Crest Nursing Home
http://statistics.data.gov.uk/id/local-authority/38,Oxfordshire County Council,5692,,13/02/2019,3110505670,632.64,Abbey Crest Nursing Home
http://statistics.data.gov.uk/id/local-authority/38,Oxfordshire County Council,5692,,13/02/2019,3110505672,632.64,Abbey Crest Nursing Home
http://statistics.data.gov.uk/id/local-authority/38,Oxfordshire County Council,5692,,13/02/2019,3110505677,632.64,Abbey Crest Nursing Home
http://statistics.data.gov.uk/id/local-authority/38,Oxfordshire County Council,5692,,13/02/2019,3110505684,632.64,Abbey Crest Nursing Home
http://statistics.data.gov.uk/id/local-authority/38,Oxfordshire County Council,5692,,13/02/2019,3110505687,632.64,Abbey Crest Nursing Home
http://statistics.data.gov.uk/id/local-authority/38,Oxfordshire County Council,5692,,13/02/2019,3110505691,632.64,Abbey Crest Nursing Home
http://statistics.data.gov.uk/id/local-authority/38,Oxfordshire County Council,5692,,13/02/2019,3110505695,632.64,Abbey Crest Nursing Home
http://statistics.data.gov.uk/id/local-authority/38,Oxfordshire County Council,5692,,13/02/2019,3110505703,632.64,Abbey Crest Nursing Home
http://statistics.data.gov.uk/id/local-authority/38,Oxfordshire County Council,5692,,13/02/2019,3110505707,632.64,Abbey Crest Nursing Home
http://statistics.data.gov.uk/id/local-authority/38,Oxfordshire County Council,5692,,13/02/2019,3110505711,632.64,Abbey Crest Nursing Home
http://statistics.data.gov.uk/id/local-authority/38,Oxfordshire County Council,5692,,13/02/2019,3110505714,632.64,Abbey Crest Nursing Home
http://statistics.data.gov.uk/id/local-authority/38,Oxfordshire County Council,5692,,13/02/2019,3110505720,632.64,Abbey Crest Nursing Home
http://statistics.data.gov.uk/id/local-authority/38,Oxfordshire County Council,5692,,13/02/2019,3110505722,632.64,Abbey Crest Nursing Home
http://statistics.data.gov.uk/id/local-authority/38,Oxfordshire County Council,5692,,13/02/2019,3110505725,632.64,Abbey Crest Nursing Home
http://statistics.data.gov.uk/id/local-authority/38,Oxfordshire County Council,5692,,13/02/2019,3110505727,632.64,Abbey Crest Nursing Home
http://statistics.data.gov.uk/id/local-authority/38,Oxfordshire County Council,5692,,13/02/2019,3110505729,632.64,Abbey Crest Nursing Home
http://statistics.data.gov.uk/id/local-authority/38,Oxfordshire County Council,5692,,13/02/2019,3110505731,632.64,Abbey Crest Nursing Home
http://statistics.data.gov.uk/id/local-authority/38,Oxfordshire County Council,5692,,13/02/2019,3110505739,632.64,Abbey Crest Nursing Home
http://statistics.data.gov.uk/id/local-authority/38,Oxfordshire County Council,5692,,13/02/2019,3110505743,632.64,Abbey Crest Nursing Home
http://statistics.data.gov.uk/id/local-authority/38,Oxfordshire County Council,5692,,13/02/2019,3110505745,632.64,Abbey Crest Nursing Home
http://statistics.data.gov.uk/id/local-authority/38,Oxfordshire County Council,5692,,13/02/2019,3110505748,632.64,Abbey Crest Nursing Home
http://statistics.data.gov.uk/id/local-authority/38,Oxfordshire County Council,5692,,13/02/2019,3110505753,632.64,Abbey Crest Nursing Home
http://statistics.data.gov.uk/id/local-authority/38,Oxfordshire County Council,5692,,13/02/2019,3110505764,632.64,Abbey Crest Nursing Home
http://statistics.data.gov.uk/id/local-authority/38,Oxfordshire County Council,5692,,13/02/2019,3110505768,632.64,Abbey Crest Nursing Home
http://statistics.data.gov.uk/id/local-authority/38,Oxfordshire County Council,5692,,13/02/2019,3110505773,632.64,Abbey Crest Nursing Home
http://statistics.data.gov.uk/id/local-authority/38,Oxfordshire County Council,5692,,13/02/2019,3110505775,632.64,Abbey Crest Nursing Home
http://statistics.data.gov.uk/id/local-authority/38,Oxfordshire County Council,5692,,13/02/2019,3110505941,632.64,Acacia Lodge Care Home
http://statistics.data.gov.uk/id/local-authority/38,Oxfordshire County Council,5692,,13/02/2019,3110505948,632.64,Acacia Lodge Care Home
http://statistics.data.gov.uk/id/local-authority/38,Oxfordshire County Council,5692,,13/02/2019,3110505953,632.64,Acacia Lodge Care Home
http://statistics.data.gov.uk/id/local-authority/38,Oxfordshire County Council,5692,,13/02/2019,3110505956,632.64,Acacia Lodge Care Home
http://statistics.data.gov.uk/id/local-authority/38,Oxfordshire County Council,5692,,13/02/2019,3110505961,632.64,Acacia Lodge Care Home
http://statistics.data.gov.uk/id/local-authority/38,Oxfordshire County Council,5692,,13/02/2019,3110505979,632.64,Acacia Lodge Care Home
http://statistics.data.gov.uk/id/local-authority/38,Oxfordshire County Council,5692,,13/02/2019,3110505984,632.64,Acacia Lodge Care Home
http://statistics.data.gov.uk/id/local-authority/38,Oxfordshire County Council,5692,,13/02/2019,3110505992,632.64,Acacia Lodge Care Home
http://statistics.data.gov.uk/id/local-authority/38,Oxfordshire County Council,5692,,13/02/2019,3110505996,632.64,Acacia Lodge Care Home
http://statistics.data.gov.uk/id/local-authority/38,Oxfordshire County Council,5692,,13/02/2019,3110505781,632.64,ACER HEALTHCARE LTD
http://statistics.data.gov.uk/id/local-authority/38,Oxfordshire County Council,5692,,13/02/2019,3110505788,632.64,ACER HEALTHCARE LTD
http://statistics.data.gov.uk/id/local-authority/38,Oxfordshire County Council,5692,,13/02/2019,3110505794,632.64,ACER HEALTHCARE LTD
http://statistics.data.gov.uk/id/local-authority/38,Oxfordshire County Council,5692,,13/02/2019,3110505797,632.64,ACER HEALTHCARE LTD
http://statistics.data.gov.uk/id/local-authority/38,Oxfordshire County Council,5692,,13/02/2019,3110505799,632.64,ACER HEALTHCARE LTD
http://statistics.data.gov.uk/id/local-authority/38,Oxfordshire County Council,5692,,13/02/2019,3110505807,632.64,ACER HEALTHCARE LTD
http://statistics.data.gov.uk/id/local-authority/38,Oxfordshire County Council,5692,,13/02/2019,3110505833,632.64,ACER HEALTHCARE LTD
http://statistics.data.gov.uk/id/local-authority/38,Oxfordshire County Council,5692,,13/02/2019,3110505857,632.64,ACER HEALTHCARE LTD
http://statistics.data.gov.uk/id/local-authority/38,Oxfordshire County Council,5692,,13/02/2019,3110505875,632.64,ACER HEALTHCARE LTD
http://statistics.data.gov.uk/id/local-authority/38,Oxfordshire County Council,5692,,13/02/2019,3110505885,632.64,ACER HEALTHCARE LTD
http://statistics.data.gov.uk/id/local-authority/38,Oxfordshire County Council,5692,,13/02/2019,3110505890,632.64,ACER HEALTHCARE LTD
http://statistics.data.gov.uk/id/local-authority/38,Oxfordshire County Council,5692,,13/02/2019,3110505900,632.64,ACER HEALTHCARE LTD
http://statistics.data.gov.uk/id/local-authority/38,Oxfordshire County Council,5692,,13/02/2019,3110505905,632.64,ACER HEALTHCARE LTD
http://statistics.data.gov.uk/id/local-authority/38,Oxfordshire County Council,5692,,13/02/2019,3110505915,632.64,ACER HEALTHCARE LTD
http://statistics.data.gov.uk/id/local-authority/38,Oxfordshire County Council,5692,,13/02/2019,3110504670,632.64,Banbury Heights Nursing Home
http://statistics.data.gov.uk/id/local-authority/38,Oxfordshire County Council,5692,,13/02/2019,3110504677,632.64,Banbury Heights Nursing Home
http://statistics.data.gov.uk/id/local-authority/38,Oxfordshire County Council,5692,,13/02/2019,3110504694,632.64,Banbury Heights Nursing Home
http://statistics.data.gov.uk/id/local-authority/38,Oxfordshire County Council,5692,,13/02/2019,3110504725,632.64,Banbury Heights Nursing Home
http://statistics.data.gov.uk/id/local-authority/38,Oxfordshire County Council,5692,,13/02/2019,3110504737,632.64,Banbury Heights Nursing Home
http://statistics.data.gov.uk/id/local-authority/38,Oxfordshire County Council,5692,,13/02/2019,3110504813,632.64,Banbury Heights Nursing Home
http://statistics.data.gov.uk/id/local-authority/38,Oxfordshire County Council,5692,,13/02/2019,3110508522,632.64,Barchester Healthcare Homes Ltd
http://statistics.data.gov.uk/id/local-authority/38,Oxfordshire County Council,5692,,13/02/2019,3110508525,632.64,Barchester Healthcare Homes Ltd
http://statistics.data.gov.uk/id/local-authority/38,Oxfordshire County Council,5692,,13/02/2019,3110508533,632.64,Barchester Healthcare Homes Ltd
http://statistics.data.gov.uk/id/local-authority/38,Oxfordshire County Council,5692,,13/02/2019,3110508534,632.64,Barchester Healthcare Homes Ltd
http://statistics.data.gov.uk/id/local-authority/38,Oxfordshire County Council,5692,,13/02/2019,3110508552,632.64,Barchester Healthcare Homes Ltd
http://statistics.data.gov.uk/id/local-authority/38,Oxfordshire County Council,5692,,13/02/2019,3110508563,632.64,Barchester Healthcare Homes Ltd
http://statistics.data.gov.uk/id/local-authority/38,Oxfordshire County Council,5692,,13/02/2019,3110508579,632.64,Barchester Healthcare Homes Ltd
http://statistics.data.gov.uk/id/local-authority/38,Oxfordshire County Council,5692,,13/02/2019,3110508585,632.64,Barchester Healthcare Homes Ltd
http://statistics.data.gov.uk/id/local-authority/38,Oxfordshire County Council,5692,,13/02/2019,3110506091,632.64,Beech Court Nursing Home
http://statistics.data.gov.uk/id/local-authority/38,Oxfordshire County Council,5692,,13/02/2019,3110504884,632.64,Beech Haven Care Home
http://statistics.data.gov.uk/id/local-authority/38,Oxfordshire County Council,5692,,13/02/2019,3110504890,632.64,Beech Haven Care Home
http://statistics.data.gov.uk/id/local-authority/38,Oxfordshire County Council,5692,,13/02/2019,3110504921,632.64,Beech Haven Care Home
http://statistics.data.gov.uk/id/local-authority/38,Oxfordshire County Council,5692,,13/02/2019,3110504924,632.64,Beech Haven Care Home
http://statistics.data.gov.uk/id/local-authority/38,Oxfordshire County Council,5692,,13/02/2019,3110506106,632.64,Bridge House
http://statistics.data.gov.uk/id/local-authority/38,Oxfordshire County Council,5692,,13/02/2019,3110506109,632.64,Bridge House
http://statistics.data.gov.uk/id/local-authority/38,Oxfordshire County Council,5692,,13/02/2019,3110506111,632.64,Bridge House
http://statistics.data.gov.uk/id/local-authority/38,Oxfordshire County Council,5692,,13/02/2019,3110506112,632.64,Bridge House
http://statistics.data.gov.uk/id/local-authority/38,Oxfordshire County Council,5692,,13/02/2019,3110506114,632.64,Bridge House
http://statistics.data.gov.uk/id/local-authority/38,Oxfordshire County Council,5692,,13/02/2019,3110506118,632.64,Bridge House
http://statistics.data.gov.uk/id/local-authority/38,Oxfordshire County Council,5692,,13/02/2019,3110506123,632.64,Bridge House
http://statistics.data.gov.uk/id/local-authority/38,Oxfordshire County Council,5692,,13/02/2019,3110506126,632.64,Bridge House
http://statistics.data.gov.uk/id/local-authority/38,Oxfordshire County Council,5692,,13/02/2019,3110506127,632.64,Bridge House
http://statistics.data.gov.uk/id/local-authority/38,Oxfordshire County Council,5692,,13/02/2019,3110506129,632.64,Bridge House
http://statistics.data.gov.uk/id/local-authority/38,Oxfordshire County Council,5692,,13/02/2019,3110506130,632.64,Bridge House
http://statistics.data.gov.uk/id/local-authority/38,Oxfordshire County Council,5692,,13/02/2019,3110506132,632.64,Bridge House
http://statistics.data.gov.uk/id/local-authority/38,Oxfordshire County Council,5692,,13/02/2019,3110506134,632.64,Bridge House
http://statistics.data.gov.uk/id/local-authority/38,Oxfordshire County Council,5692,,13/02/2019,3110506135,632.64,Bridge House
http://statistics.data.gov.uk/id/local-authority/38,Oxfordshire County Council,5692,,13/02/2019,3110506137,632.64,Bridge House
http://statistics.data.gov.uk/id/local-authority/38,Oxfordshire County Council,5692,,13/02/2019,3110506140,632.64,Bridge House
http://statistics.data.gov.uk/id/local-authority/38,Oxfordshire County Council,5692,,13/02/2019,3110506143,632.64,Bridge House
http://statistics.data.gov.uk/id/local-authority/38,Oxfordshire County Council,5692,,13/02/2019,3110506144,632.64,Bridge House
http://statistics.data.gov.uk/id/local-authority/38,Oxfordshire County Council,5692,,13/02/2019,3110506146,632.64,Bridge House
http://statistics.data.gov.uk/id/local-authority/38,Oxfordshire County Council,5692,,13/02/2019,3110506147,632.64,Bridge House
http://statistics.data.gov.uk/id/local-authority/38,Oxfordshire County Council,5692,,13/02/2019,3110506150,632.64,Bridge House
http://statistics.data.gov.uk/id/local-authority/38,Oxfordshire County Council,5692,,13/02/2019,3110506153,632.64,Bridge House
http://statistics.data.gov.uk/id/local-authority/38,Oxfordshire County Council,5692,,13/02/2019,3110506155,632.64,Bridge House
http://statistics.data.gov.uk/id/local-authority/38,Oxfordshire County Council,5692,,13/02/2019,3110506156,632.64,Bridge House
http://statistics.data.gov.uk/id/local-authority/38,Oxfordshire County Council,5692,,13/02/2019,3110506158,632.64,Bridge House
http://statistics.data.gov.uk/id/local-authority/38,Oxfordshire County Council,5692,,13/02/2019,3110506159,632.64,Bridge House
http://statistics.data.gov.uk/id/local-authority/38,Oxfordshire County Council,5692,,13/02/2019,3110506161,632.64,Bridge House
http://statistics.data.gov.uk/id/local-authority/38,Oxfordshire County Council,5692,,13/02/2019,3110506163,632.64,Bridge House
http://statistics.data.gov.uk/id/local-authority/38,Oxfordshire County Council,5692,,13/02/2019,3110506164,632.64,Bridge House
http://statistics.data.gov.uk/id/local-authority/38,Oxfordshire County Council,5692,,13/02/2019,3110506166,632.64,Bridge House
http://statistics.data.gov.uk/id/local-authority/38,Oxfordshire County Council,5692,,13/02/2019,3110506168,632.64,Bridge House
http://statistics.data.gov.uk/id/local-authority/38,Oxfordshire County Council,5692,,13/02/2019,3110506173,632.64,Bridge House
http://statistics.data.gov.uk/id/local-authority/38,Oxfordshire County Council,5692,,13/02/2019,3110506176,632.64,Bridge House
http://statistics.data.gov.uk/id/local-authority/38,Oxfordshire County Council,5692,,13/02/2019,3110506177,632.64,Bridge House
http://statistics.data.gov.uk/id/local-authority/38,Oxfordshire County Council,5692,,13/02/2019,3110509209,632.64,Caring Homes Healthcare Group Ltd
http://statistics.data.gov.uk/id/local-authority/38,Oxfordshire County Council,5692,,13/02/2019,3110509214,632.64,Caring Homes Healthcare Group Ltd
http://statistics.data.gov.uk/id/local-authority/38,Oxfordshire County Council,5692,,13/02/2019,3110509215,632.64,Caring Homes Healthcare Group Ltd
http://statistics.data.gov.uk/id/local-authority/38,Oxfordshire County Council,5692,,13/02/2019,3110509217,632.64,Caring Homes Healthcare Group Ltd
http://statistics.data.gov.uk/id/local-authority/38,Oxfordshire County Council,5692,,13/02/2019,3110509218,632.64,Caring Homes Healthcare Group Ltd
http://statistics.data.gov.uk/id/local-authority/38,Oxfordshire County Council,5692,,13/02/2019,3110509219,632.64,Caring Homes Healthcare Group Ltd
http://statistics.data.gov.uk/id/local-authority/38,Oxfordshire County Council,5692,,13/02/2019,3110509220,632.64,Caring Homes Healthcare Group Ltd
http://statistics.data.gov.uk/id/local-authority/38,Oxfordshire County Council,5692,,13/02/2019,3110509222,632.64,Caring Homes Healthcare Group Ltd
http://statistics.data.gov.uk/id/local-authority/38,Oxfordshire County Council,5692,,13/02/2019,3110509225,632.64,Caring Homes Healthcare Group Ltd
http://statistics.data.gov.uk/id/local-authority/38,Oxfordshire County Council,5692,,13/02/2019,3110509227,632.64,Caring Homes Healthcare Group Ltd
http://statistics.data.gov.uk/id/local-authority/38,Oxfordshire County Council,5692,,13/02/2019,3110509229,632.64,Caring Homes Healthcare Group Ltd
http://statistics.data.gov.uk/id/local-authority/38,Oxfordshire County Council,5692,,13/02/2019,3110507170,632.64,Cedar Court Care Home
http://statistics.data.gov.uk/id/local-authority/38,Oxfordshire County Council,5692,,13/02/2019,3110507179,632.64,Cedar Court Care Home
http://statistics.data.gov.uk/id/local-authority/38,Oxfordshire County Council,5692,,13/02/2019,3110507183,632.64,Cedar Court Care Home
http://statistics.data.gov.uk/id/local-authority/38,Oxfordshire County Council,5692,,13/02/2019,3110507187,632.64,Cedar Court Care Home
http://statistics.data.gov.uk/id/local-authority/38,Oxfordshire County Council,5692,,13/02/2019,3110507240,632.64,Cedar Court Care Home
http://statistics.data.gov.uk/id/local-authority/38,Oxfordshire County Council,5692,,13/02/2019,3110506365,632.64,Chacombe Park Care Home
http://statistics.data.gov.uk/id/local-authority/38,Oxfordshire County Council,5692,,13/02/2019,3110506382,632.64,Chacombe Park Care Home
http://statistics.data.gov.uk/id/local-authority/38,Oxfordshire County Council,5692,,13/02/2019,3110506389,632.64,Chacombe Park Care Home
http://statistics.data.gov.uk/id/local-authority/38,Oxfordshire County Council,5692,,13/02/2019,3110506393,632.64,Chacombe Park Care Home
http://statistics.data.gov.uk/id/local-authority/38,Oxfordshire County Council,5692,,13/02/2019,3110506398,632.64,Chacombe Park Care Home
http://statistics.data.gov.uk/id/local-authority/38,Oxfordshire County Council,5692,,13/02/2019,3110506400,632.64,Chacombe Park Care Home
http://statistics.data.gov.uk/id/local-authority/38,Oxfordshire County Council,5692,,13/02/2019,3110506404,632.64,Chacombe Park Care Home
http://statistics.data.gov.uk/id/local-authority/38,Oxfordshire County Council,5692,,13/02/2019,3110506407,632.64,Chacombe Park Care Home
http://statistics.data.gov.uk/id/local-authority/38,Oxfordshire County Council,5692,,13/02/2019,3110506413,632.64,Chacombe Park Care Home
http://statistics.data.gov.uk/id/local-authority/38,Oxfordshire County Council,5692,,13/02/2019,3110506418,632.64,Chacombe Park Care Home
http://statistics.data.gov.uk/id/local-authority/38,Oxfordshire County Council,5692,,13/02/2019,3110506446,632.64,Cherwood House Care Centre
http://statistics.data.gov.uk/id/local-authority/38,Oxfordshire County Council,5692,,13/02/2019,3110506453,632.64,Cherwood House Care Centre
http://statistics.data.gov.uk/id/local-authority/38,Oxfordshire County Council,5692,,13/02/2019,3110506454,632.64,Cherwood House Care Centre
http://statistics.data.gov.uk/id/local-authority/38,Oxfordshire County Council,5692,,13/02/2019,3110506456,632.64,Cherwood House Care Centre
http://statistics.data.gov.uk/id/local-authority/38,Oxfordshire County Council,5692,,13/02/2019,3110506472,632.64,Cherwood House Care Centre
http://statistics.data.gov.uk/id/local-authority/38,Oxfordshire County Council,5692,,13/02/2019,3110506482,632.64,Cherwood House Care Centre
http://statistics.data.gov.uk/id/local-authority/38,Oxfordshire County Council,5692,,13/02/2019,3110506486,632.64,Cherwood House Care Centre
http://statistics.data.gov.uk/id/local-authority/38,Oxfordshire County Council,5692,,13/02/2019,3110506491,632.64,Cherwood House Care Centre
http://statistics.data.gov.uk/id/local-authority/38,Oxfordshire County Council,5692,,13/02/2019,3110506500,632.64,Cherwood House Care Centre
http://statistics.data.gov.uk/id/local-authority/38,Oxfordshire County Council,5692,,13/02/2019,3110506506,632.64,Cherwood House Care Centre
http://statistics.data.gov.uk/id/local-authority/38,Oxfordshire County Council,5692,,13/02/2019,3110506512,632.64,Cherwood House Care Centre
http://statistics.data.gov.uk/id/local-authority/38,Oxfordshire County Council,5692,,13/02/2019,3110506515,632.64,Cherwood House Care Centre
http://statistics.data.gov.uk/id/local-authority/38,Oxfordshire County Council,5692,,13/02/2019,3110506517,632.64,Cherwood House Care Centre
http://statistics.data.gov.uk/id/local-authority/38,Oxfordshire County Council,5692,,13/02/2019,3110506518,632.64,Cherwood House Care Centre
http://statistics.data.gov.uk/id/local-authority/38,Oxfordshire County Council,5692,,13/02/2019,3110506525,632.64,Cherwood House Care Centre
http://statistics.data.gov.uk/id/local-authority/38,Oxfordshire County Council,5692,,13/02/2019,3110506532,632.64,Cherwood House Care Centre
http://statistics.data.gov.uk/id/local-authority/38,Oxfordshire County Council,5692,,13/02/2019,3110506534,632.64,Cherwood House Care Centre
http://statistics.data.gov.uk/id/local-authority/38,Oxfordshire County Council,5692,,13/02/2019,3110506535,632.64,Cherwood House Care Centre
http://statistics.data.gov.uk/id/local-authority/38,Oxfordshire County Council,5692,,13/02/2019,3110506539,632.64,Cherwood House Care Centre
http://statistics.data.gov.uk/id/local-authority/38,Oxfordshire County Council,5692,,13/02/2019,3110506593,632.64,CHURCHFIELDS CARE HOME
http://statistics.data.gov.uk/id/local-authority/38,Oxfordshire County Council,5692,,13/02/2019,3110506596,632.64,CHURCHFIELDS CARE HOME
http://statistics.data.gov.uk/id/local-authority/38,Oxfordshire County Council,5692,,13/02/2019,3110506599,632.64,CHURCHFIELDS CARE HOME
http://statistics.data.gov.uk/id/local-authority/38,Oxfordshire County Council,5692,,13/02/2019,3110506600,632.64,CHURCHFIELDS CARE HOME
http://statistics.data.gov.uk/id/local-authority/38,Oxfordshire County Council,5692,,13/02/2019,3110506605,632.64,CHURCHFIELDS CARE HOME
http://statistics.data.gov.uk/id/local-authority/38,Oxfordshire County Council,5692,,13/02/2019,3110506606,632.64,CHURCHFIELDS CARE HOME
http://statistics.data.gov.uk/id/local-authority/38,Oxfordshire County Council,5692,,13/02/2019,3110506608,632.64,CHURCHFIELDS CARE HOME
http://statistics.data.gov.uk/id/local-authority/38,Oxfordshire County Council,5692,,13/02/2019,3110506611,632.64,CHURCHFIELDS CARE HOME
http://statistics.data.gov.uk/id/local-authority/38,Oxfordshire County Council,5692,,13/02/2019,3110506615,632.64,CHURCHFIELDS CARE HOME
http://statistics.data.gov.uk/id/local-authority/38,Oxfordshire County Council,5692,,13/02/2019,3110506619,632.64,CHURCHFIELDS CARE HOME
http://statistics.data.gov.uk/id/local-authority/38,Oxfordshire County Council,5692,,13/02/2019,3110506625,632.64,CHURCHFIELDS CARE HOME
http://statistics.data.gov.uk/id/local-authority/38,Oxfordshire County Council,5692,,13/02/2019,3110506627,632.64,CHURCHFIELDS CARE HOME
http://statistics.data.gov.uk/id/local-authority/38,Oxfordshire County Council,5692,,13/02/2019,3110506631,632.64,CHURCHFIELDS CARE HOME
http://statistics.data.gov.uk/id/local-authority/38,Oxfordshire County Council,5692,,13/02/2019,3110506665,632.64,Coxwell Hall & Mews Nursing Home
http://statistics.data.gov.uk/id/local-authority/38,Oxfordshire County Council,5692,,13/02/2019,3110506687,632.64,Coxwell Hall & Mews Nursing Home
http://statistics.data.gov.uk/id/local-authority/38,Oxfordshire County Council,5692,,13/02/2019,3110506699,632.64,Coxwell Hall & Mews Nursing Home
http://statistics.data.gov.uk/id/local-authority/38,Oxfordshire County Council,5692,,13/02/2019,3110506719,632.64,Coxwell Hall & Mews Nursing Home
http://statistics.data.gov.uk/id/local-authority/38,Oxfordshire County Council,5692,,13/02/2019,3110506729,632.64,Coxwell Hall & Mews Nursing Home
http://statistics.data.gov.uk/id/local-authority/38,Oxfordshire County Council,5692,,13/02/2019,3110506747,632.64,CUMNOR HILL HOUSE
http://statistics.data.gov.uk/id/local-authority/38,Oxfordshire County Council,5692,,13/02/2019,3110506748,632.64,CUMNOR HILL HOUSE
http://statistics.data.gov.uk/id/local-authority/38,Oxfordshire County Council,5692,,13/02/2019,3110506751,632.64,CUMNOR HILL HOUSE
http://statistics.data.gov.uk/id/local-authority/38,Oxfordshire County Council,5692,,13/02/2019,3110506753,632.64,CUMNOR HILL HOUSE
http://statistics.data.gov.uk/id/local-authority/38,Oxfordshire County Council,5692,,13/02/2019,3110506757,632.64,CUMNOR HILL HOUSE
http://statistics.data.gov.uk/id/local-authority/38,Oxfordshire County Council,5692,,13/02/2019,3110504935,632.64,Fewcott Healthcare Ltd
http://statistics.data.gov.uk/id/local-authority/38,Oxfordshire County Council,5692,,13/02/2019,3110504967,632.64,Fewcott Healthcare Ltd
http://statistics.data.gov.uk/id/local-authority/38,Oxfordshire County Council,5692,,13/02/2019,3110504969,632.64,Fewcott Healthcare Ltd
http://statistics.data.gov.uk/id/local-authority/38,Oxfordshire County Council,5692,,13/02/2019,3110505006,632.64,Fewcott Healthcare Ltd
http://statistics.data.gov.uk/id/local-authority/38,Oxfordshire County Council,5685,B*Cycle tracks,13/02/2019,3110508888,632.64,Four Seasons (Headington) Ltd
http://statistics.data.gov.uk/id/local-authority/38,Oxfordshire County Council,5692,,13/02/2019,3110508898,632.64,Four Seasons (Headington) Ltd
http://statistics.data.gov.uk/id/local-authority/38,Oxfordshire County Council,5692,,13/02/2019,3110508926,632.64,Four Seasons (Headington) Ltd
http://statistics.data.gov.uk/id/local-authority/38,Oxfordshire County Council,5692,,13/02/2019,3110508928,632.64,Four Seasons (Headington) Ltd
http://statistics.data.gov.uk/id/local-authority/38,Oxfordshire County Council,5692,,13/02/2019,3110508932,632.64,Four Seasons (Headington) Ltd
http://statistics.data.gov.uk/id/local-authority/38,Oxfordshire County Council,5692,,13/02/2019,3110505028,632.64,Freeland House
http://statistics.data.gov.uk/id/local-authority/38,Oxfordshire County Council,5692,,13/02/2019,3110505063,632.64,Freeland House
http://statistics.data.gov.uk/id/local-authority/38,Oxfordshire County Council,5692,,13/02/2019,3110505075,632.64,Freeland House
http://statistics.data.gov.uk/id/local-authority/38,Oxfordshire County Council,5692,,13/02/2019,3110505076,632.64,Freeland House
http://statistics.data.gov.uk/id/local-authority/38,Oxfordshire County Council,5692,,13/02/2019,3110505079,632.64,Freeland House
http://statistics.data.gov.uk/id/local-authority/38,Oxfordshire County Council,5692,,13/02/2019,3110505081,632.64,Freeland House
http://statistics.data.gov.uk/id/local-authority/38,Oxfordshire County Council,5692,,13/02/2019,3110505084,632.64,Freeland House
http://statistics.data.gov.uk/id/local-authority/38,Oxfordshire County Council,5692,,13/02/2019,3110505089,632.64,Freeland House
http://statistics.data.gov.uk/id/local-authority/38,Oxfordshire County Council,5692,,13/02/2019,3110505092,632.64,Freeland House
http://statistics.data.gov.uk/id/local-authority/38,Oxfordshire County Council,5692,,13/02/2019,3110505094,632.64,Freeland House
http://statistics.data.gov.uk/id/local-authority/38,Oxfordshire County Council,5692,,13/02/2019,3110505097,632.64,Freeland House
http://statistics.data.gov.uk/id/local-authority/38,Oxfordshire County Council,5692,,13/02/2019,3110505099,632.64,Freeland House
http://statistics.data.gov.uk/id/local-authority/38,Oxfordshire County Council,5692,,13/02/2019,3110505103,632.64,Freeland House
http://statistics.data.gov.uk/id/local-authority/38,Oxfordshire County Council,5692,,13/02/2019,3110505107,632.64,Freeland House
http://statistics.data.gov.uk/id/local-authority/38,Oxfordshire County Council,5692,,13/02/2019,3110505109,632.64,Freeland House
http://statistics.data.gov.uk/id/local-authority/38,Oxfordshire County Council,5692,,13/02/2019,3110505111,632.64,Freeland House
http://statistics.data.gov.uk/id/local-authority/38,Oxfordshire County Council,5692,,13/02/2019,3110507027,632.64,GCH (St Katherines) Ltd
http://statistics.data.gov.uk/id/local-authority/38,Oxfordshire County Council,5692,,13/02/2019,3110507053,632.64,GCH (St Katherines) Ltd
http://statistics.data.gov.uk/id/local-authority/38,Oxfordshire County Council,5692,,13/02/2019,3110507070,632.64,GCH (St Katherines) Ltd
http://statistics.data.gov.uk/id/local-authority/38,Oxfordshire County Council,5692,,13/02/2019,3110507080,632.64,GCH (St Katherines) Ltd
http://statistics.data.gov.uk/id/local-authority/38,Oxfordshire County Council,5692,,13/02/2019,3110505118,632.64,Glebefields Care Home
http://statistics.data.gov.uk/id/local-authority/38,Oxfordshire County Council,5692,,13/02/2019,3110505119,632.64,Glebefields Care Home
http://statistics.data.gov.uk/id/local-authority/38,Oxfordshire County Council,5692,,13/02/2019,3110505122,632.64,Glebefields Care Home
http://statistics.data.gov.uk/id/local-authority/38,Oxfordshire County Council,5692,,13/02/2019,3110505123,632.64,Glebefields Care Home
http://statistics.data.gov.uk/id/local-authority/38,Oxfordshire County Council,5692,,13/02/2019,3110505124,632.64,Glebefields Care Home
http://statistics.data.gov.uk/id/local-authority/38,Oxfordshire County Council,5692,,13/02/2019,3110505126,632.64,Glebefields Care Home
http://statistics.data.gov.uk/id/local-authority/38,Oxfordshire County Council,5692,,13/02/2019,3110505128,632.64,Glebefields Care Home
http://statistics.data.gov.uk/id/local-authority/38,Oxfordshire County Council,5692,,13/02/2019,3110505130,632.64,Glebefields Care Home
http://statistics.data.gov.uk/id/local-authority/38,Oxfordshire County Council,5692,,13/02/2019,3110505133,632.64,Glebefields Care Home
http://statistics.data.gov.uk/id/local-authority/38,Oxfordshire County Council,5692,,13/02/2019,3110505134,632.64,Glebefields Care Home
http://statistics.data.gov.uk/id/local-authority/38,Oxfordshire County Council,5692,,13/02/2019,3110505137,632.64,Glebefields Care Home
http://statistics.data.gov.uk/id/local-authority/38,Oxfordshire County Council,5692,,13/02/2019,3110505138,632.64,Glebefields Care Home
http://statistics.data.gov.uk/id/local-authority/38,Oxfordshire County Council,5692,,13/02/2019,3110505141,632.64,Glebefields Care Home
http://statistics.data.gov.uk/id/local-authority/38,Oxfordshire County Council,5692,,13/02/2019,3110506945,632.64,Godswell Park
http://statistics.data.gov.uk/id/local-authority/38,Oxfordshire County Council,5692,,13/02/2019,3110506949,632.64,Godswell Park
http://statistics.data.gov.uk/id/local-authority/38,Oxfordshire County Council,5692,,13/02/2019,3110506950,632.64,Godswell Park
http://statistics.data.gov.uk/id/local-authority/38,Oxfordshire County Council,5692,,13/02/2019,3110506952,632.64,Godswell Park
http://statistics.data.gov.uk/id/local-authority/38,Oxfordshire County Council,5692,,13/02/2019,3110506955,632.64,Godswell Park
http://statistics.data.gov.uk/id/local-authority/38,Oxfordshire County Council,5692,,13/02/2019,3110506958,632.64,Godswell Park
http://statistics.data.gov.uk/id/local-authority/38,Oxfordshire County Council,5692,,13/02/2019,3110506959,632.64,Godswell Park
http://statistics.data.gov.uk/id/local-authority/38,Oxfordshire County Council,5692,,13/02/2019,3110506961,632.64,Godswell Park
http://statistics.data.gov.uk/id/local-authority/38,Oxfordshire County Council,5692,,13/02/2019,3110506963,632.64,Godswell Park
http://statistics.data.gov.uk/id/local-authority/38,Oxfordshire County Council,5692,,13/02/2019,3110506965,632.64,Godswell Park
http://statistics.data.gov.uk/id/local-authority/38,Oxfordshire County Council,5692,,13/02/2019,3110506966,632.64,Godswell Park
http://statistics.data.gov.uk/id/local-authority/38,Oxfordshire County Council,5692,,13/02/2019,3110506968,632.64,Godswell Park
http://statistics.data.gov.uk/id/local-authority/38,Oxfordshire County Council,5692,,13/02/2019,3110506969,632.64,Godswell Park
http://statistics.data.gov.uk/id/local-authority/38,Oxfordshire County Council,5692,,13/02/2019,3110506971,632.64,Godswell Park
http://statistics.data.gov.uk/id/local-authority/38,Oxfordshire County Council,5692,,13/02/2019,3110506972,632.64,Godswell Park
http://statistics.data.gov.uk/id/local-authority/38,Oxfordshire County Council,5692,,13/02/2019,3110506974,632.64,Godswell Park
http://statistics.data.gov.uk/id/local-authority/38,Oxfordshire County Council,5692,,13/02/2019,3110506975,632.64,Godswell Park
http://statistics.data.gov.uk/id/local-authority/38,Oxfordshire County Council,5692,,13/02/2019,3110506977,632.64,Godswell Park
http://statistics.data.gov.uk/id/local-authority/38,Oxfordshire County Council,5692,,13/02/2019,3110506978,632.64,Godswell Park
http://statistics.data.gov.uk/id/local-authority/38,Oxfordshire County Council,5692,,13/02/2019,3110506980,632.64,Godswell Park
http://statistics.data.gov.uk/id/local-authority/38,Oxfordshire County Council,5692,,13/02/2019,3110506983,632.64,Godswell Park
http://statistics.data.gov.uk/id/local-authority/38,Oxfordshire County Council,5692,,13/02/2019,3110506984,632.64,Godswell Park
http://statistics.data.gov.uk/id/local-authority/38,Oxfordshire County Council,5692,,13/02/2019,3110506986,632.64,Godswell Park
http://statistics.data.gov.uk/id/local-authority/38,Oxfordshire County Council,5692,,13/02/2019,3110506987,632.64,Godswell Park
http://statistics.data.gov.uk/id/local-authority/38,Oxfordshire County Council,5692,,13/02/2019,3110506992,632.64,Godswell Park
http://statistics.data.gov.uk/id/local-authority/38,Oxfordshire County Council,5692,,13/02/2019,3110506994,632.64,Godswell Park
http://statistics.data.gov.uk/id/local-authority/38,Oxfordshire County Council,5692,,13/02/2019,3110506995,632.64,Godswell Park
http://statistics.data.gov.uk/id/local-authority/38,Oxfordshire County Council,5692,,13/02/2019,3110506997,632.64,Godswell Park
http://statistics.data.gov.uk/id/local-authority/38,Oxfordshire County Council,5692,,13/02/2019,3110506998,632.64,Godswell Park
http://statistics.data.gov.uk/id/local-authority/38,Oxfordshire County Council,5692,,13/02/2019,3110507001,632.64,Godswell Park
http://statistics.data.gov.uk/id/local-authority/38,Oxfordshire County Council,5692,,13/02/2019,3110507005,632.64,Godswell Park
http://statistics.data.gov.uk/id/local-authority/38,Oxfordshire County Council,5692,,13/02/2019,3110507006,632.64,Godswell Park
http://statistics.data.gov.uk/id/local-authority/38,Oxfordshire County Council,5692,,13/02/2019,3110507008,632.64,Godswell Park
http://statistics.data.gov.uk/id/local-authority/38,Oxfordshire County Council,5692,,13/02/2019,3110507009,632.64,Godswell Park
http://statistics.data.gov.uk/id/local-authority/38,Oxfordshire County Council,5692,,13/02/2019,3110507011,632.64,Godswell Park
http://statistics.data.gov.uk/id/local-authority/38,Oxfordshire County Council,5692,,13/02/2019,3110507012,632.64,Godswell Park
http://statistics.data.gov.uk/id/local-authority/38,Oxfordshire County Council,5692,,13/02/2019,3110507017,632.64,Godswell Park
http://statistics.data.gov.uk/id/local-authority/38,Oxfordshire County Council,5692,,13/02/2019,3110508389,632.64,Grace Care Service Ltd T/A Ramping
http://statistics.data.gov.uk/id/local-authority/38,Oxfordshire County Council,5692,,13/02/2019,3110508392,632.64,Grace Care Service Ltd T/A Ramping
http://statistics.data.gov.uk/id/local-authority/38,Oxfordshire County Council,5692,,13/02/2019,3110508396,632.64,Grace Care Service Ltd T/A Ramping
http://statistics.data.gov.uk/id/local-authority/38,Oxfordshire County Council,5692,,13/02/2019,3110507084,632.64,Gracewell Healthcare Ltd
http://statistics.data.gov.uk/id/local-authority/38,Oxfordshire County Council,5692,,13/02/2019,3110507090,632.64,Gracewell Healthcare Ltd
http://statistics.data.gov.uk/id/local-authority/38,Oxfordshire County Council,5692,,13/02/2019,3110506305,632.64,Green Gates NH (BUPA)
http://statistics.data.gov.uk/id/local-authority/38,Oxfordshire County Council,5692,,13/02/2019,3110506306,632.64,Green Gates NH (BUPA)
http://statistics.data.gov.uk/id/local-authority/38,Oxfordshire County Council,5692,,13/02/2019,3110506309,632.64,Green Gates NH (BUPA)
http://statistics.data.gov.uk/id/local-authority/38,Oxfordshire County Council,5692,,13/02/2019,3110506311,632.64,Green Gates NH (BUPA)
http://statistics.data.gov.uk/id/local-authority/38,Oxfordshire County Council,5692,,13/02/2019,3110506312,632.64,Green Gates NH (BUPA)
http://statistics.data.gov.uk/id/local-authority/38,Oxfordshire County Council,5692,,13/02/2019,3110506319,632.64,Green Gates NH (BUPA)
http://statistics.data.gov.uk/id/local-authority/38,Oxfordshire County Council,5692,,13/02/2019,3110506321,632.64,Green Gates NH (BUPA)
http://statistics.data.gov.uk/id/local-authority/38,Oxfordshire County Council,5692,,13/02/2019,3110506325,632.64,Green Gates NH (BUPA)
http://statistics.data.gov.uk/id/local-authority/38,Oxfordshire County Council,5692,,13/02/2019,3110506326,632.64,Green Gates NH (BUPA)
http://statistics.data.gov.uk/id/local-authority/38,Oxfordshire County Council,5692,,13/02/2019,3110506331,632.64,Green Gates NH (BUPA)
http://statistics.data.gov.uk/id/local-authority/38,Oxfordshire County Council,5692,,13/02/2019,3110506332,632.64,Green Gates NH (BUPA)
http://statistics.data.gov.uk/id/local-authority/38,Oxfordshire County Council,5692,,13/02/2019,3110507092,632.64,Green Pastures Christian NH
http://statistics.data.gov.uk/id/local-authority/38,Oxfordshire County Council,5692,,13/02/2019,3110507093,632.64,Green Pastures Christian NH
http://statistics.data.gov.uk/id/local-authority/38,Oxfordshire County Council,5692,,13/02/2019,3110507100,632.64,Green Pastures Christian NH
http://statistics.data.gov.uk/id/local-authority/38,Oxfordshire County Council,5692,,13/02/2019,3110507102,632.64,Green Pastures Christian NH
http://statistics.data.gov.uk/id/local-authority/38,Oxfordshire County Council,5692,,13/02/2019,3110507105,632.64,Green Pastures Christian NH
http://statistics.data.gov.uk/id/local-authority/38,Oxfordshire County Council,5692,,13/02/2019,3110507107,632.64,Green Pastures Christian NH
http://statistics.data.gov.uk/id/local-authority/38,Oxfordshire County Council,5692,,13/02/2019,3110507112,632.64,Green Pastures Christian NH
http://statistics.data.gov.uk/id/local-authority/38,Oxfordshire County Council,5692,,13/02/2019,3110507115,632.64,Green Pastures Christian NH
http://statistics.data.gov.uk/id/local-authority/38,Oxfordshire County Council,5692,,13/02/2019,3110507116,632.64,Green Pastures Christian NH
http://statistics.data.gov.uk/id/local-authority/38,Oxfordshire County Council,5692,,13/02/2019,3110507118,632.64,Green Pastures Christian NH
http://statistics.data.gov.uk/id/local-authority/38,Oxfordshire County Council,5692,,13/02/2019,3110507122,632.64,Green Pastures Christian NH
http://statistics.data.gov.uk/id/local-authority/38,Oxfordshire County Council,5692,,13/02/2019,3110507128,632.64,Green Pastures Christian NH
